Workbook

Sheet Léeme
B2: Instrucciones para el funcionamiento del fichero
B4: Para el correcto funcionamiento de las fórmulas incluidas en el fichero, es necesario tener activada la opción de cálculo iterativo en las Opciones de Excel
B5: (Archivo -> Opciones -> Fórmulas -> Opciones de Cálculo -> Activar cálculo iterativo)
B7: Instrucciones para el cálculo de ingresos de la seguridad social
B9: 1. Las cotizaciones modelizadas se refieren a las totales de la Seguridad Social (incluyen contingencias comunes, accidentes de trabajo, cotizaciones de desempleo y cese de actividad).
B11: 2. La Proyección de las cuotas se realiza mediante supuestos sobre la evolución de sus principales determinantes.
B12: 3. Hay elementos adicionales de carácter estructural (i.e. permaente) con posibilidad de incidir de forma significativa en los ingresos, que no han sido incluidas en el modelo y sobre los que no existe certeza absoluta de su potencial recaudador. La fórmula incluye las variables ingresos por cambios normativos y otros ingresos a tales efectos.
C14: • La puesta en marcha del nuevo Sistema de liquidación directa (CRETA), actualmente en etapa de prueba pero que estará plenamente operativo en el mes de mayo de 2015 según fuentes de la Seguridad Social, puede mejorar sustancialmente la recaudación mediante un mejor control del uso de las bases individuales de los trabajadores, las bonificaciones por contrato y la aplicación de las deducciones de incapacidad temporal.
C17: • La plena incorporación de las retribuciones en especie en la base de cotización durante el ejercicio 2015.
B18: El usuario puede interactuar introduciendo supuestos propios respecto a los determinantes macroeconómicos y al impacto de los cambios estructurales en las celdas preparadas a tal efecto (en verde oscuro en la hoja "Resultados"). De esta manera puede comprobar la sensibilidad del resultado final a los distintos ajustes o escenarios.
B22: Fórmula para el cálculo de los ingresos totales de la Seguridad Social:
B24: Ingresos totales = Ingresos por cotizaciones + Ingresos por cambios normativos + Otros ingresos
A28: EXP( 0.982 * LN(Número total de asalariados en miles) + 0.718 * LN(Remuneración por asalariado en miles) + 0.48877 * LN(Base máxima de cotización) - 4.36574 )
B30: Fórmula para el cálculo del gasto en pensiones de la Seguridad Social:
B32: Gastos en pensiones(t+1) = Gastos en pensiones(t) + Efecto sustitución(t+1) + Efecto nuevos pensionistas(t+1) + Efecto revalorización(t+1)

Sheet Resultados
C1: Supuestos a introducir:
C4: Número Total de Asalariados (miles) | D4: Remuneración por Asalariado | E4: Base Máxima de Cotización | F4: Cambios normativos permanentes | G4: Nuevos ingresos corrientes permanentes | H4: Número de pensiones | I4: Tasa de sustitución | K4: Total ingresos | L4: Tipo implícito (sobre la base de cotización)
C5: A | D5: B | E5: C | F5: E | G5: F | H5: G | I5: H
C6: T. anual | D6: T. anual | E6: T. anual | F6: % Ing. Totales | G6: % Ing. Totales | H6: T. anual | I6: T. anual | K6: T. anual | L6: %
B7: =B8-1 -> 2001 | C7: =Resultados_aux!D7 -> 4.613023106 | D7: =Resultados_aux!E7 -> 2.545879021 | E7: =Resultados_aux!F7 -> 2.000922122 | F7: =Resultados_aux!G7 -> 0 | G7: =Resultados_aux!H7 -> 0 | K7: =Resultados_aux!N7 -> 8.943297101 | L7: =Resultados_aux!O7 -> 0.1954921651
B8: 2002 | C8: =Resultados_aux!D8 -> 4.038921924 | D8: =Resultados_aux!E8 -> 2.128775081 | E8: =Resultados_aux!F8 -> 2.999707989 | F8: =Resultados_aux!G8 -> 0 | G8: =Resultados_aux!H8 -> 0 | K8: =Resultados_aux!N8 -> 6.543675108 | L8: =Resultados_aux!O8 -> 0.1955546381
B9: 2003 | C9: =Resultados_aux!D9 -> 4.861935867 | D9: =Resultados_aux!E9 -> 1.623966803 | E9: =Resultados_aux!F9 -> 2.99429104 | F9: =Resultados_aux!G9 -> 0 | G9: =Resultados_aux!H9 -> 0 | K9: =Resultados_aux!N9 -> 8.363950882 | L9: =Resultados_aux!O9 -> 0.1970264369
B10: 2004 | C10: =Resultados_aux!D10 -> 4.204714377 | D10: =Resultados_aux!E10 -> 1.735336753 | E10: =Resultados_aux!F10 -> 2.997737557 | F10: =Resultados_aux!G10 -> 0 | G10: =Resultados_aux!H10 -> 0 | K10: =Resultados_aux!N10 -> 7.649369631 | L10: =Resultados_aux!O10 -> 0.1982668193
B11: 2005 | C11: =Resultados_aux!D11 -> 5.305346104 | D11: =Resultados_aux!E11 -> 2.058189576 | E11: =Resultados_aux!F11 -> 2.998352554 | F11: =Resultados_aux!G11 -> 0 | G11: =Resultados_aux!H11 -> 0 | K11: =Resultados_aux!N11 -> 8.149192208 | L11: =Resultados_aux!O11 -> 0.1978235254
B12: 2006 | C12: =Resultados_aux!D12 -> 4.554251064 | D12: =Resultados_aux!E12 -> 3.187445675 | E12: =Resultados_aux!F12 -> 2.996374493 | F12: =Resultados_aux!G12 -> 0 | G12: =Resultados_aux!H12 -> 0 | K12: =Resultados_aux!N12 -> 9.062856082 | L12: =Resultados_aux!O12 -> 0.1981184325
B13: 2007 | C13: =Resultados_aux!D13 -> 3.405725568 | D13: =Resultados_aux!E13 -> 4.598624541 | E13: =Resultados_aux!F13 -> 3.395796666 | F13: =Resultados_aux!G13 -> 0 | G13: =Resultados_aux!H13 -> 0 | K13: =Resultados_aux!N13 -> 8.706038459 | L13: =Resultados_aux!O13 -> 0.197397419
B14: 2008 | C14: =Resultados_aux!D14 -> -0.4713603819 | D14: =Resultados_aux!E14 -> 7.148940005 | E14: =Resultados_aux!F14 -> 2.6033844 | F14: =Resultados_aux!G14 -> 0 | G14: =Resultados_aux!H14 -> 0 | K14: =Resultados_aux!N14 -> 5.488324461 | L14: =Resultados_aux!O14 -> 0.1928643199
B15: 2009 | C15: =Resultados_aux!D15 -> -5.994844434 | D15: =Resultados_aux!E15 -> 3.807953943 | E15: =Resultados_aux!F15 -> 2.995998829 | F15: =Resultados_aux!G15 -> 0 | G15: =Resultados_aux!H15 -> 0 | K15: =Resultados_aux!N15 -> -1.073984301 | L15: =Resultados_aux!O15 -> 0.1937794048
B16: 2010 | C16: =Resultados_aux!D16 -> -2.129966201 | D16: =Resultados_aux!E16 -> 0.2611650573 | E16: =Resultados_aux!F16 -> 1.004358537 | F16: =Resultados_aux!G16 -> 0 | G16: =Resultados_aux!H16 -> 0 | H16: =100*Input!AL39 -> 1.557515163 | I16: =100*Input!AM39 -> 1.8 | K16: =Resultados_aux!N16 -> -0.6067229491 | L16: =Resultados_aux!O16 -> 0.1945130123
B17: 2011 | C17: =Resultados_aux!D17 -> -1.576855411 | D17: =Resultados_aux!E17 -> 0.8411249041 | E17: =Resultados_aux!F17 -> 1.003752345 | F17: =Resultados_aux!G17 -> 0 | G17: =Resultados_aux!H17 -> 0 | H17: =100*Input!AL40 -> 1.398791229 | I17: =100*Input!AM40 -> 1.8 | K17: =Resultados_aux!N17 -> 0.05696257763 | L17: =Resultados_aux!O17 -> 0.1976681495
B18: 2012 | C18: =Resultados_aux!D18 -> -5.713339954 | D18: =Resultados_aux!E18 -> 0.172765187 | E18: =Resultados_aux!F18 -> 1.003064921 | F18: =Resultados_aux!G18 -> 0 | G18: =Resultados_aux!H18 -> 0 | H18: =100*Input!AL41 -> 1.543324163 | I18: =100*Input!AM41 -> 1.7 | K18: =Resultados_aux!N18 -> -2.478904385 | L18: =Resultados_aux!O18 -> 0.2008091046
B19: 2013 | C19: =Resultados_aux!D19 -> -3.76351636 | D19: =Resultados_aux!E19 -> 0.2872237301 | E19: =Resultados_aux!F19 -> 5.011494253 | F19: =Resultados_aux!G19 -> 0 | G19: =Resultados_aux!H19 -> 0 | H19: =100*Input!AL42 -> 1.623682472 | I19: =100*Input!AM42 -> 1.7 | K19: =Resultados_aux!N19 -> 0.5747199338 | L19: =Resultados_aux!O19 -> 0.1995049465
B20: 2014 | C20: 0.7 | D20: 0.8 | E20: 5 | F20: 0 | G20: 0 | H20: =100*Input!AL43 -> 1.271118169 | I20: =100*Input!AM43 -> 1.715 | K20: =Resultados_aux!N20 -> 3.098130116 | L20: =Resultados_aux!O20 -> 0.2049747932
B21: 2015 | C21: 1.4 | D21: 1 | E21: 0.25 | F21: 5.5 | G21: 0 | H21: =100*0.0129278632050129 -> 1.292786321 | I21: =100*0.0155 -> 1.55 | K21: =Resultados_aux!N21 -> 6.938718176 | L21: =Resultados_aux!O21 -> 0.2168537
B22: 2016-2020 | K22: =IF(ISNUMBER(AVERAGE(Resultados_aux!N22:N26)),AVERAGE(Resultados_aux!N22:N26),"ND") -> ND | L22: =IF(ISNUMBER(AVERAGE(Resultados_aux!O22:O26)),AVERAGE(Resultados_aux!O22:O26),"ND") -> ND
C24: Resultado de su simulación | H24: Haga click aquí para conocer el IRP
C26: IRP 2015 | D26: =IF(COUNT(Resultados_aux!D21:H26)=30,Iterativo_C!$D$13,"ND") -> ND | E26: IRP 2015 con límite legal | F26: =IF(COUNT(Resultados_aux!D21:H26)=30,Iterativo_C!$E$13,"ND") -> ND
C34: =IF(ISNUMBER(D34-E34+F34),(D34-E34+F34),"ND") -> ND | D34: =IF(COUNT(Resultados_aux!D21:H26)=30,Iterativo_C!AE13,"ND") -> ND | E34: =IF(COUNT(Resultados_aux!D21:H26)=30,Iterativo_C!AG13+Iterativo_C!AF13,"ND") -> ND | F34: =IF(COUNT(Resultados_aux!D21:H26)=30,Iterativo_C!Z13,"ND") -> ND
B36: El usuario puede modificar los casilleros de color verde (celdas C20:I22) relativos a las variables subyacentes de ingresos y gastos. La estimación relativa a 2016-2020 debe realizarse en tasa media anual. Para 2014 y 2015 se facilitan las siguientes estimaciones (en tasa de variación anual)
B43: 2014: Estimación de liquidación realizado por AIReF
B44: 2015: Previsión de la Seguridad Social incluída en el Proyecto de PGE
K52: a | L52: 0.98203
K53: b | L53: 0.718267
K54: c | L54: 0.488774
K55: d | L55: -4.365742

Sheet Notas_internas (hidden)
B2: Uso público
B4: Se publicarán solamente las hojas "Léeme" y "Resultados"
B6: Resultados:
B7: Permite a un usuario externo crear un escenario personalizado con las variables explicativas del modelo, comprobar su impacto en ingresos totales y analizar gráficamente su evolución.
B9: Para que esta hoja funcione, se debe elegir el escenario "usuario_externo" en la hoja "Escenarios"
B11: Uso interno
B12: Personal de AIReF ha realizado simulaciones y análisis de sensibilidad utilizando las hojas "Escenarios", "Output", "Iterativo_A", "Iterativo_C" e "Input"
B13: 1. Seleccione el escenario correspondiente en la hoja "Escenarios"
B14: 2. (Opcional) En caso de optar por el escenario "Usuario_interno" por favor especifique sus supuestos en la en Escenarios!F51:J56
B15: Escenarios:
B16: Permite seleccionar entre una serie de escenarios predefinidos (distinta macro, shocks, etc) . La lista actual incluye:
B17: 1 | C17: AWG | F17: Macro del Ageing Working Group
B18: 2 | C18: Usuario_externo | F18: Escenario contenido en la hoja Resultados
B19: 3 | C19: Cambios normativos | F19: Escenario AWG + posibilidad de cambios normativos en 2015
B20: 4 | C20: Usuario_interno | F20: Escenario totalemente personalizable por el usuario.
B21: 5 | C21: Shock_permanente_AWG | F21: Escenario AWG + shocks permanentes seleccionados
B22: 6 | C22: Plan_presupuestario | F22: Macro del plan de estabilidad + extensión a 2020 contenida en la hoja INPUT + Ingresos en 2015 por Cambios Normativos (Creta, etc)
B23: 7 | C23: Macro_SS_sin_residuo | F23: Supuestos macro necesarios para que el modelo de cotizaciones arroje el resultado previsto por la SS
B24: 8 | C24: Macro_SS_con_residuo | F24: Escenario plan presupuestario + Otros ingresos necesarios para que el modelo de cotizaciones arroje el resultado de provisto por la SS
B25: 9 | C25: Shock_permanente_SS | F25: Escenario Macro_SS_con_residuo + shocks permanentes seleccionados
B26: 10 | C26: Plan_pres_solo_macro | F26: Escenario plan presupuestario sin otros ingresos por cambios normativos
B27: El usuario puede analizar por medio de gráficos preestablecidos para cada escenario seleccionado, las consecuencias de aplicar el los topes legales sobre:
C28: 1. La evolución del saldo de la SS (en niveles y como porcentaje del PIB)
C29: 2. El IRP de cada año
C30: 3. La tasa de crecimiento de ingresos y gastos
B31: Además, hay gráficos para realizar una comparación visual del escenario seleccionado con el escenario provisto por la Seguridad Social
B32: Finalmente, hay gráficos auxiliares para analizar la evolución de
C33: 1. Cotizaciones/Ingresos totales
C34: 2. Gasto en pensiones/Gasto totales
C35: 3. Supuestos macroeconómicos subyacentes
C36: 4. Composición del Gasto
B37: Iterativo_C:
B38: Esta hoja contiene los cálculos del IRP de manera consolidada.
B39: Ingresos: Evolucionan de manera consistente con lo seleccionado en la hoja "Escenarios"
B40: Gastos: Gastos en pensiones evolucionan utilizando la fórmula del IRP
C41: Solución convergente: Gastos e IRP se obtienen iterativamente utilizando una solución inicial de crecimiento de gastos.
C42: Solución supuesto IRP fijo: Se elimina la circularidad con un IRP subyacente de 0.25 para toda la serie.
C43: Escenario acotado: variables derivadas de imponer límites mínimos y máximos legales
B44: Iterativo_A:
B45: Idem Iterativo_C pero los cálculos son realizados de manera agregado (no consolidado) como lo estipula la ley.
B46: Ingresos: Estimación agregada de la SS hasta 2020 luego se extrapola con los mismos supuestos que en Iterativo_C
B47: Gastos: Gastos en pensiones evolucionan utilizando la fórmula del IRP
C48: Gastos totales agregados hasta 2020 evolucionan como lo prevee la SS. Hasta 2020 "otros gastos" es un residuo entre el resultado del gasto en pensiones y el gasto total.
B49: Input:
B50: Esta hoja alimenta a las hojas Iterativo_A e Iterativo_C. Contiene los datos históricos y previsiones de la SS y los supuestos macroeconómicos del Plan de Estabilidad extendido.
B52: Fuente:
C53: AWG: http://ec.europa.eu/economy_finance/publications/european_economy/2014/pdf/ee8_en.pdf y MINECO
C54: Plan de Estabilidad 2014-2017, Plan presupuestario.
C55: SS: Las celdas coloreadas de amarillo en la hoja Input, Iterativo_A e Iterativo_C han sido provistas por la SS (historia y previsiones).

Sheet Escenarios (hidden)
B2: Elija el escenario
B4: Usuario_externo | M4: Impacto del límite legal | R4: calibración del shock (permanente)
M5: Δ Saldo 2015 conver. gob (niveles) | P5: =Iterativo_A!AO13-Iterativo_A!AN13 -> 1439.592105 | R5: Otros ingresos en 2016 (nivel) | T5: 0 | V5: Otros ingresos en 2017 (nivel) | X5: 0
E6: Base para el cálculo | M6: Δ Saldo 2015 conver. gob (%PIB) | P6: =Iterativo_A!AT13-Iterativo_A!AS13 -> 0.001315921899
M7: Δ Saldo 2015 (niveles) | P7: =Iterativo_C!AM13-Iterativo_C!AL13 -> -2596.809267 | R7: Asalariados (tasa) | T7: 0 | V7: Base max cotización (tasa) | X7: 0
B8: Usuario_externo debe estar seleccionado para que funcione la hoja Resultados | F8: Número Total de Asalariados (miles) | G8: Remuneración por Asalariado | H8: Base Máxima de Cotización | I8: Cambios normativos permanentes | J8: Nuevos ingresos corrientes permanentes | M8: Δ Saldo 2015 (% PIB) | P8: =Iterativo_C!AQ13-Iterativo_C!AP13 -> -0.002373726675 | R8: Remuneración p/a (tasa) | T8: 0 | V8: Cambios normativos en ingresos 2015 (nivel) | X8: 0
F9: A | G9: B | H9: C | I9: E | J9: F | M9: Δ Saldo 2015-2018 (niveles) | P9: =-(SUM(Iterativo_C!AM13:AM16)-SUM(Iterativo_C!AL13:AL16)) -> 
F10: T. anual | G10: T. anual | H10: T. anual | I10: % Ing. Totales | J10: % Ing. Totales | M10: Δ Saldo 2015-2018 (% PIB) | P10: =-(SUM(Iterativo_C!AQ13:AQ16)-SUM(Iterativo_C!AP13:AP16)) ->  | R10: Índice de Revalorización de Pensiones en 2015
E11: 2014 | F11: =IF($B$4="AWG",F24,IF($B$4="Usuario_externo",IF(ISNUMBER(Resultados_aux!D20),Resultados_aux!D20,"ND"),IF($B$4="Cambios normativos",F37,IF($B$4="Usuario_interno",F50,IF($B$4="Shock_permanente_AWG",F63,IF($B$4="Plan_presupuestario",F76,IF($B$4="Macro_ss_sin_residuo",F89,IF($B$4="Macro_ss_con_residuo",F102,IF($B$4="Shock_permanente_SS",F115,IF($B$4="Plan_pres_solo_macro",F128,"ma")))))))))) -> 0.7 | G11: =IF($B$4="AWG",G24,IF($B$4="Usuario_externo",IF(ISNUMBER(Resultados_aux!E20),Resultados_aux!E20,"ND"),IF($B$4="Cambios normativos",G37,IF($B$4="Usuario_interno",G50,IF($B$4="Shock_permanente_AWG",G63,IF($B$4="Plan_presupuestario",G76,IF($B$4="Macro_ss_sin_residuo",G89,IF($B$4="Macro_ss_con_residuo",G102,IF($B$4="Shock_permanente_SS",G115,IF($B$4="Plan_pres_solo_macro",G128,"ma")))))))))) -> 0.8 | H11: =IF($B$4="AWG",H24,IF($B$4="Usuario_externo",IF(ISNUMBER(Resultados_aux!F20),Resultados_aux!F20,"ND"),IF($B$4="Cambios normativos",H37,IF($B$4="Usuario_interno",H50,IF($B$4="Shock_permanente_AWG",H63,IF($B$4="Plan_presupuestario",H76,IF($B$4="Macro_ss_sin_residuo",H89,IF($B$4="Macro_ss_con_residuo",H102,IF($B$4="Shock_permanente_SS",H115,IF($B$4="Plan_pres_solo_macro",H128,"ma")))))))))) -> 5 | I11: =IF($B$4="AWG",I24,IF($B$4="Usuario_externo",IF(ISNUMBER(Resultados_aux!G20),Resultados_aux!G20,"ND"),IF($B$4="Cambios normativos",I37,IF($B$4="Usuario_interno",I50,IF($B$4="Shock_permanente_AWG",I63,IF($B$4="Plan_presupuestario",I76,IF($B$4="Macro_ss_sin_residuo",I89,IF($B$4="Macro_ss_con_residuo",I102,IF($B$4="Shock_permanente_SS",I115,IF($B$4="Plan_pres_solo_macro",I128,"ma")))))))))) -> 0 | J11: =IF($B$4="AWG",J24,IF($B$4="Usuario_externo",IF(ISNUMBER(Resultados_aux!H20),Resultados_aux!H20,"ND"),IF($B$4="Cambios normativos",J37,IF($B$4="Usuario_interno",J50,IF($B$4="Shock_permanente_AWG",J63,IF($B$4="Plan_presupuestario",J76,IF($B$4="Macro_ss_sin_residuo",J89,IF($B$4="Macro_ss_con_residuo",J102,IF($B$4="Shock_permanente_SS",J115,IF($B$4="Plan_pres_solo_macro",J128,"ma")))))))))) -> 0 | M11: Δ Saldo 2015-2025 (niveles) | P11: =-(SUM(Iterativo_C!AM13:AM23)-SUM(Iterativo_C!AL13:AL23)) ->  | R11: LEGAL | S11: FÓRMULA sin mínimo legal | V11: FÓRMULA con mínimo legal
E12: 2015 | F12: =IF($B$4="AWG",F25,IF($B$4="Usuario_externo",IF(ISNUMBER(Resultados_aux!D21),Resultados_aux!D21,"ND"),IF($B$4="Cambios normativos",F38,IF($B$4="Usuario_interno",F51,IF($B$4="Shock_permanente_AWG",F64,IF($B$4="Plan_presupuestario",F77,IF($B$4="Macro_ss_sin_residuo",F90,IF($B$4="Macro_ss_con_residuo",F103,IF($B$4="Shock_permanente_SS",F116,IF($B$4="Plan_pres_solo_macro",F129,"ma")))))))))) -> 1.4 | G12: =IF($B$4="AWG",G25,IF($B$4="Usuario_externo",IF(ISNUMBER(Resultados_aux!E21),Resultados_aux!E21,"ND"),IF($B$4="Cambios normativos",G38,IF($B$4="Usuario_interno",G51,IF($B$4="Shock_permanente_AWG",G64,IF($B$4="Plan_presupuestario",G77,IF($B$4="Macro_ss_sin_residuo",G90,IF($B$4="Macro_ss_con_residuo",G103,IF($B$4="Shock_permanente_SS",G116,IF($B$4="Plan_pres_solo_macro",G129,"ma")))))))))) -> 1 | H12: =IF($B$4="AWG",H25,IF($B$4="Usuario_externo",IF(ISNUMBER(Resultados_aux!F21),Resultados_aux!F21,"ND"),IF($B$4="Cambios normativos",H38,IF($B$4="Usuario_interno",H51,IF($B$4="Shock_permanente_AWG",H64,IF($B$4="Plan_presupuestario",H77,IF($B$4="Macro_ss_sin_residuo",H90,IF($B$4="Macro_ss_con_residuo",H103,IF($B$4="Shock_permanente_SS",H116,IF($B$4="Plan_pres_solo_macro",H129,"ma")))))))))) -> 0.25 | I12: =IF($B$4="AWG",I25,IF($B$4="Usuario_externo",IF(ISNUMBER(Resultados_aux!G21),Resultados_aux!G21,"ND"),IF($B$4="Cambios normativos",I38,IF($B$4="Usuario_interno",I51,IF($B$4="Shock_permanente_AWG",I64,IF($B$4="Plan_presupuestario",I77,IF($B$4="Macro_ss_sin_residuo",I90,IF($B$4="Macro_ss_con_residuo",I103,IF($B$4="Shock_permanente_SS",I116,IF($B$4="Plan_pres_solo_macro",I129,"ma")))))))))) -> 5.5 | J12: =IF($B$4="AWG",J25,IF($B$4="Usuario_externo",IF(ISNUMBER(Resultados_aux!H21),Resultados_aux!H21,"ND"),IF($B$4="Cambios normativos",J38,IF($B$4="Usuario_interno",J51,IF($B$4="Shock_permanente_AWG",J64,IF($B$4="Plan_presupuestario",J77,IF($B$4="Macro_ss_sin_residuo",J90,IF($B$4="Macro_ss_con_residuo",J103,IF($B$4="Shock_permanente_SS",J116,IF($B$4="Plan_pres_solo_macro",J129,"ma")))))))))) -> 0 | M12: Δ Saldo 2015-2025 (% PIB) | P12: =-(SUM(Iterativo_C!AQ13:AQ23)-SUM(Iterativo_C!AP13:AP23)) ->  | R12: =Resultados!$F$26 -> ND | T12: =Iterativo_C!F13 -> 0.025 | W12: =Iterativo_C!$D$13 ->  | AA12: SENSIBILIDAD | AE12: Gobierno
E13: 2016 | F13: =IF($B$4="AWG",F26,IF($B$4="Usuario_externo",IF(ISNUMBER(Resultados_aux!D22),Resultados_aux!D22,"ND"),IF($B$4="Cambios normativos",F39,IF($B$4="Usuario_interno",F52,IF($B$4="Shock_permanente_AWG",F65,IF($B$4="Plan_presupuestario",F78,IF($B$4="Macro_ss_sin_residuo",F91,IF($B$4="Macro_ss_con_residuo",F104,IF($B$4="Shock_permanente_SS",F117,IF($B$4="Plan_pres_solo_macro",F130,"ma")))))))))) -> ND | G13: =IF($B$4="AWG",G26,IF($B$4="Usuario_externo",IF(ISNUMBER(Resultados_aux!E22),Resultados_aux!E22,"ND"),IF($B$4="Cambios normativos",G39,IF($B$4="Usuario_interno",G52,IF($B$4="Shock_permanente_AWG",G65,IF($B$4="Plan_presupuestario",G78,IF($B$4="Macro_ss_sin_residuo",G91,IF($B$4="Macro_ss_con_residuo",G104,IF($B$4="Shock_permanente_SS",G117,IF($B$4="Plan_pres_solo_macro",G130,"ma")))))))))) -> ND | H13: =IF($B$4="AWG",H26,IF($B$4="Usuario_externo",IF(ISNUMBER(Resultados_aux!F22),Resultados_aux!F22,"ND"),IF($B$4="Cambios normativos",H39,IF($B$4="Usuario_interno",H52,IF($B$4="Shock_permanente_AWG",H65,IF($B$4="Plan_presupuestario",H78,IF($B$4="Macro_ss_sin_residuo",H91,IF($B$4="Macro_ss_con_residuo",H104,IF($B$4="Shock_permanente_SS",H117,IF($B$4="Plan_pres_solo_macro",H130,"ma")))))))))) -> ND | I13: =IF($B$4="AWG",I26,IF($B$4="Usuario_externo",IF(ISNUMBER(Resultados_aux!G22),Resultados_aux!G22,"ND"),IF($B$4="Cambios normativos",I39,IF($B$4="Usuario_interno",I52,IF($B$4="Shock_permanente_AWG",I65,IF($B$4="Plan_presupuestario",I78,IF($B$4="Macro_ss_sin_residuo",I91,IF($B$4="Macro_ss_con_residuo",I104,IF($B$4="Shock_permanente_SS",I117,IF($B$4="Plan_pres_solo_macro",I130,"ma")))))))))) -> ND | J13: =IF($B$4="AWG",J26,IF($B$4="Usuario_externo",IF(ISNUMBER(Resultados_aux!H22),Resultados_aux!H22,"ND"),IF($B$4="Cambios normativos",J39,IF($B$4="Usuario_interno",J52,IF($B$4="Shock_permanente_AWG",J65,IF($B$4="Plan_presupuestario",J78,IF($B$4="Macro_ss_sin_residuo",J91,IF($B$4="Macro_ss_con_residuo",J104,IF($B$4="Shock_permanente_SS",J117,IF($B$4="Plan_pres_solo_macro",J130,"ma")))))))))) -> ND | AA13: AWG | AE13: subida 1 punto | AH13: Bajada 1 punto
E14: 2017 | F14: =IF($B$4="AWG",F27,IF($B$4="Usuario_externo",IF(ISNUMBER(Resultados_aux!D23),Resultados_aux!D23,"ND"),IF($B$4="Cambios normativos",F40,IF($B$4="Usuario_interno",F53,IF($B$4="Shock_permanente_AWG",F66,IF($B$4="Plan_presupuestario",F79,IF($B$4="Macro_ss_sin_residuo",F92,IF($B$4="Macro_ss_con_residuo",F105,IF($B$4="Shock_permanente_SS",F118,IF($B$4="Plan_pres_solo_macro",F131,"ma")))))))))) -> ND | G14: =IF($B$4="AWG",G27,IF($B$4="Usuario_externo",IF(ISNUMBER(Resultados_aux!E23),Resultados_aux!E23,"ND"),IF($B$4="Cambios normativos",G40,IF($B$4="Usuario_interno",G53,IF($B$4="Shock_permanente_AWG",G66,IF($B$4="Plan_presupuestario",G79,IF($B$4="Macro_ss_sin_residuo",G92,IF($B$4="Macro_ss_con_residuo",G105,IF($B$4="Shock_permanente_SS",G118,IF($B$4="Plan_pres_solo_macro",G131,"ma")))))))))) -> ND | H14: =IF($B$4="AWG",H27,IF($B$4="Usuario_externo",IF(ISNUMBER(Resultados_aux!F23),Resultados_aux!F23,"ND"),IF($B$4="Cambios normativos",H40,IF($B$4="Usuario_interno",H53,IF($B$4="Shock_permanente_AWG",H66,IF($B$4="Plan_presupuestario",H79,IF($B$4="Macro_ss_sin_residuo",H92,IF($B$4="Macro_ss_con_residuo",H105,IF($B$4="Shock_permanente_SS",H118,IF($B$4="Plan_pres_solo_macro",H131,"ma")))))))))) -> ND | I14: =IF($B$4="AWG",I27,IF($B$4="Usuario_externo",IF(ISNUMBER(Resultados_aux!G23),Resultados_aux!G23,"ND"),IF($B$4="Cambios normativos",I40,IF($B$4="Usuario_interno",I53,IF($B$4="Shock_permanente_AWG",I66,IF($B$4="Plan_presupuestario",I79,IF($B$4="Macro_ss_sin_residuo",I92,IF($B$4="Macro_ss_con_residuo",I105,IF($B$4="Shock_permanente_SS",I118,IF($B$4="Plan_pres_solo_macro",I131,"ma")))))))))) -> ND | J14: =IF($B$4="AWG",J27,IF($B$4="Usuario_externo",IF(ISNUMBER(Resultados_aux!H23),Resultados_aux!H23,"ND"),IF($B$4="Cambios normativos",J40,IF($B$4="Usuario_interno",J53,IF($B$4="Shock_permanente_AWG",J66,IF($B$4="Plan_presupuestario",J79,IF($B$4="Macro_ss_sin_residuo",J92,IF($B$4="Macro_ss_con_residuo",J105,IF($B$4="Shock_permanente_SS",J118,IF($B$4="Plan_pres_solo_macro",J131,"ma")))))))))) -> ND | L14: Evolución del sistema bajo el escenario seleccionado t+10
E15: 2018 | F15: =IF($B$4="AWG",F28,IF($B$4="Usuario_externo",IF(ISNUMBER(Resultados_aux!D24),Resultados_aux!D24,"ND"),IF($B$4="Cambios normativos",F41,IF($B$4="Usuario_interno",F54,IF($B$4="Shock_permanente_AWG",F67,IF($B$4="Plan_presupuestario",F80,IF($B$4="Macro_ss_sin_residuo",F93,IF($B$4="Macro_ss_con_residuo",F106,IF($B$4="Shock_permanente_SS",F119,IF($B$4="Plan_pres_solo_macro",F132,"ma")))))))))) -> ND | G15: =IF($B$4="AWG",G28,IF($B$4="Usuario_externo",IF(ISNUMBER(Resultados_aux!E24),Resultados_aux!E24,"ND"),IF($B$4="Cambios normativos",G41,IF($B$4="Usuario_interno",G54,IF($B$4="Shock_permanente_AWG",G67,IF($B$4="Plan_presupuestario",G80,IF($B$4="Macro_ss_sin_residuo",G93,IF($B$4="Macro_ss_con_residuo",G106,IF($B$4="Shock_permanente_SS",G119,IF($B$4="Plan_pres_solo_macro",G132,"ma")))))))))) -> ND | H15: =IF($B$4="AWG",H28,IF($B$4="Usuario_externo",IF(ISNUMBER(Resultados_aux!F24),Resultados_aux!F24,"ND"),IF($B$4="Cambios normativos",H41,IF($B$4="Usuario_interno",H54,IF($B$4="Shock_permanente_AWG",H67,IF($B$4="Plan_presupuestario",H80,IF($B$4="Macro_ss_sin_residuo",H93,IF($B$4="Macro_ss_con_residuo",H106,IF($B$4="Shock_permanente_SS",H119,IF($B$4="Plan_pres_solo_macro",H132,"ma")))))))))) -> ND | I15: =IF($B$4="AWG",I28,IF($B$4="Usuario_externo",IF(ISNUMBER(Resultados_aux!G24),Resultados_aux!G24,"ND"),IF($B$4="Cambios normativos",I41,IF($B$4="Usuario_interno",I54,IF($B$4="Shock_permanente_AWG",I67,IF($B$4="Plan_presupuestario",I80,IF($B$4="Macro_ss_sin_residuo",I93,IF($B$4="Macro_ss_con_residuo",I106,IF($B$4="Shock_permanente_SS",I119,IF($B$4="Plan_pres_solo_macro",I132,"ma")))))))))) -> ND | J15: =IF($B$4="AWG",J28,IF($B$4="Usuario_externo",IF(ISNUMBER(Resultados_aux!H24),Resultados_aux!H24,"ND"),IF($B$4="Cambios normativos",J41,IF($B$4="Usuario_interno",J54,IF($B$4="Shock_permanente_AWG",J67,IF($B$4="Plan_presupuestario",J80,IF($B$4="Macro_ss_sin_residuo",J93,IF($B$4="Macro_ss_con_residuo",J106,IF($B$4="Shock_permanente_SS",J119,IF($B$4="Plan_pres_solo_macro",J132,"ma")))))))))) -> ND | AB15: -3.7 | AE15: -1.44 | AH15: -1.44
E16: 2019 | F16: =IF($B$4="AWG",F29,IF($B$4="Usuario_externo",IF(ISNUMBER(Resultados_aux!D25),Resultados_aux!D25,"ND"),IF($B$4="Cambios normativos",F42,IF($B$4="Usuario_interno",F55,IF($B$4="Shock_permanente_AWG",F68,IF($B$4="Plan_presupuestario",F81,IF($B$4="Macro_ss_sin_residuo",F94,IF($B$4="Macro_ss_con_residuo",F107,IF($B$4="Shock_permanente_SS",F120,IF($B$4="Plan_pres_solo_macro",F133,"ma")))))))))) -> ND | G16: =IF($B$4="AWG",G29,IF($B$4="Usuario_externo",IF(ISNUMBER(Resultados_aux!E25),Resultados_aux!E25,"ND"),IF($B$4="Cambios normativos",G42,IF($B$4="Usuario_interno",G55,IF($B$4="Shock_permanente_AWG",G68,IF($B$4="Plan_presupuestario",G81,IF($B$4="Macro_ss_sin_residuo",G94,IF($B$4="Macro_ss_con_residuo",G107,IF($B$4="Shock_permanente_SS",G120,IF($B$4="Plan_pres_solo_macro",G133,"ma")))))))))) -> ND | H16: =IF($B$4="AWG",H29,IF($B$4="Usuario_externo",IF(ISNUMBER(Resultados_aux!F25),Resultados_aux!F25,"ND"),IF($B$4="Cambios normativos",H42,IF($B$4="Usuario_interno",H55,IF($B$4="Shock_permanente_AWG",H68,IF($B$4="Plan_presupuestario",H81,IF($B$4="Macro_ss_sin_residuo",H94,IF($B$4="Macro_ss_con_residuo",H107,IF($B$4="Shock_permanente_SS",H120,IF($B$4="Plan_pres_solo_macro",H133,"ma")))))))))) -> ND | I16: =IF($B$4="AWG",I29,IF($B$4="Usuario_externo",IF(ISNUMBER(Resultados_aux!G25),Resultados_aux!G25,"ND"),IF($B$4="Cambios normativos",I42,IF($B$4="Usuario_interno",I55,IF($B$4="Shock_permanente_AWG",I68,IF($B$4="Plan_presupuestario",I81,IF($B$4="Macro_ss_sin_residuo",I94,IF($B$4="Macro_ss_con_residuo",I107,IF($B$4="Shock_permanente_SS",I120,IF($B$4="Plan_pres_solo_macro",I133,"ma")))))))))) -> ND | J16: =IF($B$4="AWG",J29,IF($B$4="Usuario_externo",IF(ISNUMBER(Resultados_aux!H25),Resultados_aux!H25,"ND"),IF($B$4="Cambios normativos",J42,IF($B$4="Usuario_interno",J55,IF($B$4="Shock_permanente_AWG",J68,IF($B$4="Plan_presupuestario",J81,IF($B$4="Macro_ss_sin_residuo",J94,IF($B$4="Macro_ss_con_residuo",J107,IF($B$4="Shock_permanente_SS",J120,IF($B$4="Plan_pres_solo_macro",J133,"ma")))))))))) -> ND | AA16: Asal | AB16: -2.8 | AC16: =+AB16-$AB$15 -> 0.9 | AD16: =+AC16/$AB$15 -> -0.2432432432 | AE16: -0.71 | AF16: =+AE16-$AE$15 -> 0.73 | AG16: =+AF16/$AE$15 -> -0.5069444444 | AH16: -2.25 | AI16: =+AH16-$AH$15 -> -0.81 | AJ16: =+AI16/$AH$15 -> 0.5625
E17: 2020 | F17: =IF($B$4="AWG",F30,IF($B$4="Usuario_externo",IF(ISNUMBER(Resultados_aux!D26),Resultados_aux!D26,"ND"),IF($B$4="Cambios normativos",F43,IF($B$4="Usuario_interno",F56,IF($B$4="Shock_permanente_AWG",F69,IF($B$4="Plan_presupuestario",F82,IF($B$4="Macro_ss_sin_residuo",F95,IF($B$4="Macro_ss_con_residuo",F108,IF($B$4="Shock_permanente_SS",F121,IF($B$4="Plan_pres_solo_macro",F134,"ma")))))))))) -> ND | G17: =IF($B$4="AWG",G30,IF($B$4="Usuario_externo",IF(ISNUMBER(Resultados_aux!E26),Resultados_aux!E26,"ND"),IF($B$4="Cambios normativos",G43,IF($B$4="Usuario_interno",G56,IF($B$4="Shock_permanente_AWG",G69,IF($B$4="Plan_presupuestario",G82,IF($B$4="Macro_ss_sin_residuo",G95,IF($B$4="Macro_ss_con_residuo",G108,IF($B$4="Shock_permanente_SS",G121,IF($B$4="Plan_pres_solo_macro",G134,"ma")))))))))) -> ND | H17: =IF($B$4="AWG",H30,IF($B$4="Usuario_externo",IF(ISNUMBER(Resultados_aux!F26),Resultados_aux!F26,"ND"),IF($B$4="Cambios normativos",H43,IF($B$4="Usuario_interno",H56,IF($B$4="Shock_permanente_AWG",H69,IF($B$4="Plan_presupuestario",H82,IF($B$4="Macro_ss_sin_residuo",H95,IF($B$4="Macro_ss_con_residuo",H108,IF($B$4="Shock_permanente_SS",H121,IF($B$4="Plan_pres_solo_macro",H134,"ma")))))))))) -> ND | I17: =IF($B$4="AWG",I30,IF($B$4="Usuario_externo",IF(ISNUMBER(Resultados_aux!G26),Resultados_aux!G26,"ND"),IF($B$4="Cambios normativos",I43,IF($B$4="Usuario_interno",I56,IF($B$4="Shock_permanente_AWG",I69,IF($B$4="Plan_presupuestario",I82,IF($B$4="Macro_ss_sin_residuo",I95,IF($B$4="Macro_ss_con_residuo",I108,IF($B$4="Shock_permanente_SS",I121,IF($B$4="Plan_pres_solo_macro",I134,"ma")))))))))) -> ND | J17: =IF($B$4="AWG",J30,IF($B$4="Usuario_externo",IF(ISNUMBER(Resultados_aux!H26),Resultados_aux!H26,"ND"),IF($B$4="Cambios normativos",J43,IF($B$4="Usuario_interno",J56,IF($B$4="Shock_permanente_AWG",J69,IF($B$4="Plan_presupuestario",J82,IF($B$4="Macro_ss_sin_residuo",J95,IF($B$4="Macro_ss_con_residuo",J108,IF($B$4="Shock_permanente_SS",J121,IF($B$4="Plan_pres_solo_macro",J134,"ma")))))))))) -> ND | AA17: R*Asal | AB17: -3.05 | AC17: =+AB17-$AB$15 -> 0.65 | AD17: =+AC17/$AB$15 -> -0.1756756757 | AE17: -0.9 | AF17: =+AE17-$AE$15 -> 0.54 | AG17: =+AF17/$AE$15 -> -0.375 | AH17: -2.04 | AI17: =+AH17-$AH$15 -> -0.6 | AJ17: =+AI17/$AH$15 -> 0.4166666667
AA18: Bmax | AB18: -3.25 | AC18: 0.45 | AD18: -0.1216216216 | AE18: -0.7 | AF18: =+AE18-$AE$15 -> 0.74 | AG18: =+AF18/$AE$15 -> -0.5138888889 | AH18: -2.27 | AI18: -0.83 | AJ18: 0.5763888889
E19: AWG | AA19: Cambios | AB19: -3.51 | AC19: 0.19 | AD19: -0.05135135135 | AE19: -1.27 | AF19: =+AE19-$AE$15 -> 0.17 | AG19: =+AF19/$AE$15 -> -0.1180555556 | AH19: -1.62 | AI19: -0.18 | AJ19: 0.125
F21: Número Total de Asalariados (miles) | G21: Remuneración por Asalariado | H21: Base Máxima de Cotización | I21: Cambios normativos permanentes | J21: Nuevos ingresos corrientes permanentes
B22: Escenarios | F22: A | G22: B | H22: C | I22: E | J22: F
B23: AWG | F23: T. anual | G23: T. anual | H23: T. anual | I23: % Ing. Totales | J23: % Ing. Totales
B24: Usuario_externo | E24: 2014 | F24: =F$11 -> 0.7 | G24: =G$11 -> 0.8 | H24: 5 | I24: 0 | J24: 0
B25: Cambios normativos | E25: 2015 | F25: 2.055712911 | G25: 0.7476158672 | H25: 0.25 | I25: 0 | J25: 0
B26: Usuario_interno | E26: 2016 | F26: 1.30492097 | G26: 1.801790107 | H26: =100*Iterativo_C!E13 -> 0.25 | I26: 0 | J26: 0
B27: Shock_permanente_AWG | E27: 2017 | F27: 1.197538101 | G27: 2.731205204 | H27: =100*Iterativo_C!E14 -> 0.25 | I27: 0 | J27: 0
B28: Plan_presupuestario | E28: 2018 | F28: 1.1597231 | G28: 3.176486289 | H28: =100*Iterativo_C!E15 -> 0.25 | I28: 0 | J28: 0
B29: Macro_SS_sin_residuo | E29: 2019 | F29: 0.5759246545 | G29: 2.748010569 | H29: =100*Iterativo_C!E16 -> 0.25 | I29: 0 | J29: 0
B30: Macro_SS_con_residuo | E30: 2020 | F30: 0.8816646759 | G30: 2.796320536 | H30: =100*Iterativo_C!E17 -> 0.25 | I30: 0 | J30: 0
B31: Shock_permanente_SS
B32: Plan_pres_solo_macro | E32: Cambios normativos
F34: Número Total de Asalariados (miles) | G34: Remuneración por Asalariado | H34: Base Máxima de Cotización | I34: Cambios normativos permanentes | J34: Nuevos ingresos corrientes permanentes
F35: A | G35: B | H35: C | I35: E | J35: F
F36: T. anual | G36: T. anual | H36: T. anual | I36: % Ing. Totales | J36: % Ing. Totales | L36: Evolución del sistema vs el escenario del gobierno t+5
E37: 2014 | F37: =F$11 -> 0.7 | G37: =G$11 -> 0.8 | H37: 5 | I37: 0 | J37: 0
E38: 2015 | F38: =F25 -> 2.055712911 | G38: =G25 -> 0.7476158672 | H38: 0.25 | I38: 0 | J38: 0
E39: 2016 | F39: 1.30492097 | G39: =G26 -> 1.801790107 | H39: 0.25 | I39: 0 | J39: 0
E40: 2017 | F40: 1.197538101 | G40: =G27 -> 2.731205204 | H40: 0.25 | I40: 0 | J40: 0
E41: 2018 | F41: 1.1597231 | G41: =G28 -> 3.176486289 | H41: 0.25 | I41: 0 | J41: 0
E42: 2019 | F42: 0.5759246545 | G42: =G29 -> 2.748010569 | H42: 0.25 | I42: 0 | J42: 0
E43: 2020 | F43: 0.8816646759 | G43: =G30 -> 2.796320536 | H43: 0.25 | I43: 0 | J43: 0
E45: Usuario_interno
F47: Número Total de Asalariados (miles) | G47: Remuneración por Asalariado | H47: Base Máxima de Cotización | I47: Cambios normativos permanentes | J47: Nuevos ingresos corrientes permanentes
F48: A | G48: B | H48: C | I48: E | J48: F
F49: T. anual | G49: T. anual | H49: T. anual | I49: % Ing. Totales | J49: % Ing. Totales
E50: 2014 | F50: =F$11 -> 0.7 | G50: =G$11 -> 0.8 | H50: 5 | I50: 0 | J50: 0
E51: 2015 | F51: =F38 -> 2.055712911 | G51: 0.7476158672 | H51: 0.25 | I51: 0 | J51: 0
E52: 2016 | F52: =F39 -> 1.30492097 | G52: 1.801790107 | H52: 0.25 | I52: 0 | J52: 0
E53: 2017 | F53: =F40 -> 1.197538101 | G53: 2.731205204 | H53: 0.25 | I53: 0 | J53: 0
E54: 2018 | F54: =F41 -> 1.1597231 | G54: 3.176486289 | H54: 0.25 | I54: 0 | J54: 0
E55: 2019 | F55: =F42 -> 0.5759246545 | G55: 2.748010569 | H55: 0.25 | I55: 0 | J55: 0
E56: 2020 | F56: =F43 -> 0.8816646759 | G56: 2.796320536 | H56: 0.25 | I56: 0 | J56: 0
E58: Shock permanente de AWG
F60: Número Total de Asalariados (miles) | G60: Remuneración por Asalariado | H60: Base Máxima de Cotización | I60: Cambios normativos permanentes | J60: Nuevos ingresos corrientes permanentes | L60: Variables subyacentes
F61: A | G61: B | H61: C | I61: E | J61: F
F62: T. anual | G62: T. anual | H62: T. anual | I62: % Ing. Totales | J62: % Ing. Totales | M62: Cotizaciones/Ingresos totales SS | T62: Gasto en pensiones/Gasto total SS
E63: 2014 | F63: =F$11 -> 0.7 | G63: =G$11 -> 0.8 | H63: 5 | I63: 0 | J63: 0
E64: 2015 | F64: =F25+$T$7 -> 2.055712911 | G64: =G25+$T$8 -> 0.7476158672 | H64: =0.25+$X$7 -> 0.25 | I64: =I25+$X$8 -> 0 | J64: =J25 -> 0
E65: 2016 | F65: 1.30492097 | G65: 1.801790107 | H65: 0.25 | I65: =I26 -> 0 | J65: 0
E66: 2017 | F66: 1.197538101 | G66: 2.731205204 | H66: 0.25 | I66: 0 | J66: 0
E67: 2018 | F67: 1.1597231 | G67: 3.176486289 | H67: 0.25 | I67: 0 | J67: 0
E68: 2019 | F68: 0.5759246545 | G68: 2.748010569 | H68: 0.25 | I68: 0 | J68: 0
E69: 2020 | F69: 0.8816646759 | G69: 2.796320536 | H69: 0.25 | I69: 0 | J69: 0
E71: Plan_presupuestario
F73: Número Total de Asalariados (miles) | G73: Remuneración por Asalariado | H73: Base Máxima de Cotización | I73: Cambios normativos permanentes | J73: Nuevos ingresos corrientes permanentes
F74: A | G74: B | H74: C | I74: E | J74: F
F75: T. anual | G75: T. anual | H75: T. anual | I75: % Ing. Totales | J75: % Ing. Totales
E76: 2014 | F76: =F$11 -> 0.7 | G76: =G$11 -> 0.8 | H76: 5 | I76: 0 | J76: 0
E77: 2015 | F77: =100*Input!BR19 -> 1.4 | G77: =100*Input!BT19 -> 1 | H77: =0.25+$X$7 -> 0.25 | I77: =100*4800/Input!AB18 -> 4.224438704 | J77: =J38 -> 0 | M77: Composición del Gasto | T77: Bases macro
E78: 2016 | F78: =100*Input!BR20 -> 1.5 | G78: =100*Input!BT20 -> 1.1 | H78: 0.25 | I78: =I39 -> 0 | J78: 0
E79: 2017 | F79: =100*Input!BR21 -> 2.3 | G79: =100*Input!BT21 -> 1.7 | H79: 0.25 | I79: 0 | J79: 0
E80: 2018 | F80: =100*Input!BR22 -> 2.144124089 | G80: =100*Input!BT22 -> 1.555875911 | H80: 0.25 | I80: 0 | J80: 0
E81: 2019 | F81: =100*Input!BR23 -> 1.631039958 | G81: =100*Input!BT23 -> 1.668960042 | H81: 0.25 | I81: 0 | J81: 0
E82: 2020 | F82: =100*Input!BR24 -> 1.35 | G82: =100*Input!BT24 -> 1.65 | H82: 0.25 | I82: 0 | J82: 0
E84: macro_SS_sin_residuo
F86: Número Total de Asalariados (miles) | G86: Remuneración por Asalariado | H86: Base Máxima de Cotización | I86: Cambios normativos permanentes | J86: Nuevos ingresos corrientes permanentes
F87: A | G87: B | H87: C | I87: E | J87: F
F88: T. anual | G88: T. anual | H88: T. anual | I88: % Ing. Totales | J88: % Ing. Totales
A89: Res | B89: Extra | E89: 2014 | F89: =F$11 -> 0.7 | G89: =G$11 -> 0.8 | H89: 5 | I89: 0 | J89: 0
A90: =(Input!AG19-Input!AB19)/Input!AB19 -> -0.006670971831 | B90: 0.405 | E90: 2015 | F90: =B90+F77 -> 1.805 | G90: =B90+G77 -> 1.405 | H90: =H77 -> 0.25 | I90: 4.224438704 | J90: =J77 -> 0
A91: =(Input!AG20-Input!AB20)/Input!AB20 ->  | B91: 2.445 | E91: 2016 | F91: 3.945 | G91: 3.545 | H91: =H78 -> 0.25 | I91: 0 | J91: 0
A92: =(Input!AG21-Input!AB21)/Input!AB21 ->  | B92: 1.69 | E92: 2017 | F92: 3.99 | G92: 3.39 | H92: =H79 -> 0.25 | I92: 0 | J92: 0
A93: =(Input!AG22-Input!AB22)/Input!AB22 ->  | B93: 0.215 | E93: 2018 | F93: 2.359124089 | G93: 1.770875911 | H93: =H80 -> 0.25 | I93: 0 | J93: 0
A94: =(Input!AG23-Input!AB23)/Input!AB23 ->  | B94: 0.61 | E94: 2019 | F94: 2.241039958 | G94: 2.278960042 | H94: =H81 -> 0.25 | I94: 0 | J94: 0
A95: =(Input!AG24-Input!AB24)/Input!AB24 ->  | B95: 0.32 | E95: 2020 | F95: 1.67 | G95: 1.97 | H95: =H82 -> 0.25 | I95: 0 | J95: 0
E97: macro_SS_con_residuo
A99: Para replicar debe estar seleccionado el escenario correspondiente | F99: Número Total de Asalariados (miles) | G99: Remuneración por Asalariado | H99: Base Máxima de Cotización | I99: Cambios normativos permanentes | J99: Nuevos ingresos corrientes permanentes | L99: Acumulado | U99: supuestos macro subyacentes para calcular Remuneración y número de asalariados
F100: A | G100: B | H100: C | I100: E | J100: F | L100: F | M100: IRP irrestricto | N100: IRP legal | U100: pi | V100: pib_r | W100: pib_n
F101: T. anual | G101: T. anual | H101: T. anual | I101: % Ing. Totales | J101: % Ing. Totales | L101: mill. EUR | O101: Calibración residuos
A102: SS - modelo | E102: 2014 | F102: =F$11 -> 0.7 | G102: =G$11 -> 0.8 | H102: 5 | I102: 0 | J102: 0 | O102: Iter 0 | P102: Iter 1 | Q102: Iter 2
A103: =(Input!AG19-Input!AB19) -> -810.5807867 | E103: 2015 | F103: =V103+U103-G103 -> 1.6 | G103: =0.4+U103 -> 1 | H103: =H77 -> 0.25 | I103: 0 | J103: =100*L103/Input!AB18 -> 4.674048005 | L103: =SUM(O103:Q103) -> 5310.866602 | M103: =Iterativo_C!F13 -> 0.025 | N103: =Iterativo_C!E13 -> 0.0025 | O103: 5038.465025 | P103: 272.4015774 | Q103: 0 | S103: =A103-L103 -> -6121.447389 | U103: 0.6 | V103: =2 -> 2 | W103: =V103+U103 -> 2.6
A104: =(Input!AG20-Input!AB20) ->  | E104: 2016 | F104: 2.14 | G104: 1.6 | H104: =H78 -> 0.25 | I104: 0 | J104: =100*(L104-L103)/Input!AB19 -> 2.816575146 | L104: 8733.24906 | M104: =Iterativo_C!F14 -> 0.025 | N104: =Iterativo_C!E14 -> 0.0025 | O104: 9479.808063 | P104: -772.7677344 | Q104: 26.20873109 | U104: 1.2 | V104: =W104-U104 -> 2.54 | W104: 3.74
A105: =(Input!AG21-Input!AB21) ->  | E105: 2017 | F105: 2.43 | G105: 2 | H105: =H79 -> 0.25 | I105: 0 | J105: =100*(L105-L104)/Input!AB20 ->  | L105: 11795.59885 | M105: =Iterativo_C!F15 -> 0.025 | N105: =Iterativo_C!E15 -> 0.0025 | O105: 13443.65746 | P105: -1705.915428 | Q105: 57.85681354 | U105: 1.6 | V105: =W105-U105 -> 2.83 | W105: 4.43
A106: =(Input!AG22-Input!AB22) ->  | E106: 2018 | F106: 2.053333333 | G106: 2.2 | H106: =H80 -> 0.25 | I106: 0 | J106: =100*(L106-L105)/Input!AB21 ->  | L106: 12046.15066 | M106: =Iterativo_C!F16 -> 0.025 | N106: =Iterativo_C!E16 -> 0.0025 | O106: 13964.90457 | P106: -1986.113771 | Q106: 67.35985398 | U106: 1.8 | V106: =($V$108-$V$105)/3+V105 -> 2.453333333 | W106: =V106+U106 -> 4.253333333
A107: =(Input!AG23-Input!AB23) ->  | E107: 2019 | F107: 1.676666667 | G107: 2.2 | H107: =H81 -> 0.25 | I107: 0 | J107: =100*(L107-L106)/Input!AB22 ->  | L107: 13059.9361 | M107: =Iterativo_C!F17 -> 0.025 | N107: =Iterativo_C!E17 -> 0.0025 | O107: 15904.37638 | P107: -2944.297313 | Q107: 99.85703736 | U107: =U106 -> 1.8 | V107: =($V$108-$V$105)/3+V106 -> 2.076666667 | W107: 3.876666667
A108: =(Input!AG24-Input!AB24) ->  | E108: 2020 | F108: 1.3 | G108: 2.2 | H108: =H82 -> 0.25 | I108: 0 | J108: =100*(L108-L107)/Input!AB23 ->  | L108: 13569.66012 | M108: =Iterativo_C!F18 -> 0.025 | N108: =Iterativo_C!E18 -> 0.0025 | O108: 16488.891 | P108: -3021.713515 | Q108: 102.4826392 | U108: 1.8 | V108: 1.7 | W108: 3.5
E110: Shock permanente de macro_SS forzado
F112: Número Total de Asalariados (miles) | G112: Remuneración por Asalariado | H112: Base Máxima de Cotización | I112: Cambios normativos permanentes | J112: Nuevos ingresos corrientes permanentes
F113: A | G113: B | H113: C | I113: E | J113: F
F114: T. anual | G114: T. anual | H114: T. anual | I114: % Ing. Totales | J114: % Ing. Totales
E115: 2014 | F115: =F$11 -> 0.7 | G115: =G$11 -> 0.8 | H115: 5 | I115: 0 | J115: 0
E116: 2015 | F116: =F103+$T$7 -> 1.6 | G116: =G103+$T$8 -> 1 | H116: =H103+$X$7 -> 0.25 | I116: =$X$8 -> 0 | J116: 0
E117: 2016 | F117: 2.14 | G117: 1.6 | H117: 0.25 | I117: =I91 -> 0 | J117: =+T5 -> 0
E118: 2017 | F118: 2.43 | G118: 2 | H118: 0.25 | I118: =I92 -> 0 | J118: =+X5 -> 0
E119: 2018 | F119: 2.053333333 | G119: 2.2 | H119: 0.25 | I119: =I93 -> 0 | J119: 0
E120: 2019 | F120: 1.676666667 | G120: 2.2 | H120: 0.25 | I120: =I94 -> 0 | J120: 0
E121: 2020 | F121: 1.3 | G121: 2.2 | H121: 0.25 | I121: =I95 -> 0 | J121: 0
E123: Plan_presupuestario_solo_macro
F125: Número Total de Asalariados (miles) | G125: Remuneración por Asalariado | H125: Base Máxima de Cotización | I125: Cambios normativos permanentes | J125: Nuevos ingresos corrientes permanentes
F126: A | G126: B | H126: C | I126: E | J126: F
F127: T. anual | G127: T. anual | H127: T. anual | I127: % Ing. Totales | J127: % Ing. Totales
E128: 2014 | F128: =F$11 -> 0.7 | G128: =G$11 -> 0.8 | H128: 5 | I128: 0 | J128: 0
E129: 2015 | F129: =F77 -> 1.4 | G129: =G77 -> 1 | H129: 0.25 | I129: 0 | J129: 0
E130: 2016 | F130: =F78 -> 1.5 | G130: 1.1 | H130: 0.25 | I130: 0 | J130: 0
E131: 2017 | F131: =F79 -> 2.3 | G131: 1.7 | H131: 0.25 | I131: 0 | J131: 0
E132: 2018 | F132: =F80 -> 2.144124089 | G132: 1.555875911 | H132: 0.25 | I132: 0 | J132: 0
E133: 2019 | F133: =F81 -> 1.631039958 | G133: 1.668960042 | H133: 0.25 | I133: 0 | J133: 0
E134: 2020 | F134: =F82 -> 1.35 | G134: 1.65 | H134: 0.25 | I134: 0 | J134: 0

Sheet Output (hidden)
C1: Evolución del sistema de pensiones - principales variables
C3: Ingresos | F3: Gastos | I3: Saldo nominal | L3: IRP legal
C4: Gobierno* | D4: =Escenarios!B4 -> Usuario_externo | E4: Plan presupuestario 2015 solo macro** | F4: Gobierno* | G4: =D4 -> Usuario_externo | H4: Plan presupuestario 2015 solo macro** | I4: Gobierno | J4: =G4 -> Usuario_externo | K4: Plan presupuestario 2015 solo macro** | L4: Gobierno | M4: =J4 -> Usuario_externo | N4: Plan presupuestario 2015 solo macro**
C5: millones de euros | F5: millones de euros | I5: millones de euros | L5: % variación
B7: 2010 | C7: =Input!AE14 -> 116458.18 | D7: =Input!AB14 -> 112301.8 | E7: 112301.8 | F7: =Iterativo_A!I8 -> 113646.09 | G7: =Iterativo_C!I8 -> 109544.42 | H7: 109544.42 | I7: =C7-F7 -> 2812.09 | J7: =D7-G7 -> 2757.38 | K7: 2757.38
B8: =B7+1 -> 2011 | C8: =Input!AE15 -> 116119 | D8: =Input!AB15 -> 112365.77 | E8: 112365.77 | F8: =Iterativo_A!I9 -> 116415.8 | G8: =Iterativo_C!I9 -> 112665.62 | H8: 112665.62 | I8: -296.8 | J8: =D8-G8 -> -299.85 | K8: -299.85
B9: =B8+1 -> 2012 | C9: =Input!AE16 -> 113081.34 | D9: =Input!AB16 -> 109580.33 | E9: 109580.33 | F9: =Iterativo_A!I10 -> 119029.84 | G9: =Iterativo_C!I10 -> 115446.18 | H9: 115446.18 | I9: -5948.5 | J9: -5865.85 | K9: -5865.85
B10: 2013 | C10: =Input!AE17 -> 112934.97 | D10: =Input!AB17 -> 110210.11 | E10: 110210.11 | F10: =Iterativo_A!I11 -> 123332.68 | G10: =Iterativo_C!I11 -> 119950.43 | H10: 119950.43 | I10: -10397.71 | J10: -9740.32 | K10: -9740.32
B11: 2014 | C11: =Input!AE18 -> 117993.95 | D11: =Input!AB18 -> 113624.5626 | E11: 111308.98 | F11: =Iterativo_A!I12 -> 127521.99 | G11: =Iterativo_C!I12 -> 124048 | H11: 124048 | I11: -9528.04 | J11: -10423.43739 | K11: -12739.02
B12: 2015 | C12: =Input!AE19 -> 124803.04 | D12: =Input!AB19 -> 121508.6508 | E12: 115184.7595 | F12: =Iterativo_A!I13 -> 131367.37 | G12: =Iterativo_C!I13 -> 128016.3097 | H12: 128016.3097 | I12: -6564.33 | J12: -6507.658946 | K12: -12831.55021 | L12: =Iterativo_A!E13 -> 0.0025 | M12: =Iterativo_C!E13 -> 0.0025 | N12: 0.0025
B13: 2016 | C13: =Input!AE20 -> 131799.3 | D13: =Input!AB20 ->  | E13: 117489.2423 | F13: =Iterativo_A!I14 -> 135901.91 | G13: =Iterativo_C!I14 ->  | H13: 132156.1969 | I13: -4102.61 | K13: -14666.95455 | L13: =Iterativo_A!E14 -> 0.0025 | M13: =Iterativo_C!E14 -> 0.0025 | N13: 0.0025
B14: 2017 | C14: =Input!AE21 -> 139048.26 | D14: =Input!AB21 ->  | E14: 121015.5922 | F14: =Iterativo_A!I15 -> 139929.52 | G14: =Iterativo_C!I15 ->  | H14: 136425.1797 | I14: -881.26 | K14: -15409.58755 | L14: =Iterativo_A!E15 -> 0.0025 | M14: =Iterativo_C!E15 -> 0.0025 | N14: 0.0025
B15: 2018 | C15: =Input!AE22 -> 143303.14 | D15: =Input!AB22 ->  | E15: 124396.4451 | F15: =Iterativo_A!I16 -> 144005.76 | G15: =Iterativo_C!I16 ->  | H15: 139603.9683 | I15: -702.62 | K15: -15207.52324 | L15: =Iterativo_A!E16 -> 0.0025 | M15: =Iterativo_C!E16 -> 0.0025 | N15: 0.0025
B16: 2019 | C16: =Input!AE23 -> 147903.17 | D16: =Input!AB23 ->  | E16: 127265.242 | F16: =Iterativo_A!I17 -> 148310.34 | G16: =Iterativo_C!I17 ->  | H16: 145189.2205 | I16: -407.17 | K16: -17923.9785 | L16: =Iterativo_A!E17 -> 0.005348940574 | M16: =Iterativo_C!E17 -> 0.0025 | N16: 0.0025
B17: 2020 | C17: =Input!AE24 -> 152325.47 | D17: =Input!AB24 ->  | E17: 130539.475 | F17: =Iterativo_A!I18 -> 152774.48 | G17: =Iterativo_C!I18 ->  | H17: 149677.5776 | I17: -449.01 | K17: -19138.10261 | L17: =Iterativo_A!E18 -> 0.005663739505 | M17: =Iterativo_C!E18 -> 0.0025 | N17: 0.0025
C18: % variación anual | F18: % variación anual
B19: 2010 | C19: =Input!AE14/Input!AE13-1 -> -0.007996798555 | D19: =Input!AB14/Input!AB13-1 -> -0.006067229491 | E19: =E7/Input!AB13-1 -> -0.006067229491 | F19: =F7/Iterativo_A!I7-1 -> 0.04462047903 | G19: =G7/Iterativo_C!I7-1 -> 0.04928329008 | H19: =H7/Iterativo_C!I7-1 -> 0.04928329008 | L19: IRP teórico 2015
B20: 2011 | C20: =Input!AE15/Input!AE14-1 -> -0.002912461795 | D20: =Input!AB15/Input!AB14-1 -> 0.0005696257763 | E20: =E8/E7-1 -> 0.0005696257763 | F20: 0.02437136201 | G20: 0.02849255124 | H20: 0.02849255124 | L20: % variación
B21: 2012 | C21: =Input!AE16/Input!AE15-1 -> -0.0261598877 | D21: =Input!AB16/Input!AB15-1 -> -0.02478904385 | E21: -0.02478904385 | F21: 0.02245434039 | G21: 0.0246797559 | H21: 0.0246797559 | L21: =Iterativo_A!D13 -> -0.01242121123 | M21: =Iterativo_C!D13 ->  | N21: -0.03749666875
B22: 2013 | C22: =Input!AE17/Input!AE16-1 -> -0.001294378011 | D22: =Input!AB17/Input!AB16-1 -> 0.005747199338 | E22: 0.005747199338 | F22: 0.03614925467 | G22: 0.03901601595 | H22: 0.03901601595
B23: 2014 | C23: =Input!AE18/Input!AE17-1 -> 0.04479551374 | D23: =Input!AB18/Input!AB17-1 -> 0.03098130116 | E23: 0.009970682363 | F23: 0.03396755831 | G23: 0.03416052781 | H23: 0.03416052781
B24: 2015 | C24: =Input!AE19/Input!AE18-1 -> 0.05770711125 | D24: =Input!AB19/Input!AB18-1 -> 0.06938718176 | E24: 0.03482000755 | F24: 0.03015464235 | G24: 0.03199011458 | H24: 0.03199011458
B25: 2016 | C25: =Input!AE20/Input!AE19-1 -> 0.05605841012 | D25: =Input!AB20/Input!AB19-1 ->  | E25: 0.02000683773 | F25: 0.03451800854 | H25: 0.03233874766
B26: 2017 | C26: =Input!AE21/Input!AE20-1 -> 0.05499998862 | D26: =Input!AB21/Input!AB20-1 ->  | E26: 0.03001423603 | F26: 0.02963615449 | H26: 0.03230255519
B27: 2018 | C27: =Input!AE22/Input!AE21-1 -> 0.03060002333 | D27: =Input!AB22/Input!AB21-1 ->  | E27: 0.02793733295 | F27: 0.02913066521 | H27: 0.02330060033
B28: 2019 | C28: =Input!AE23/Input!AE22-1 -> 0.03209999446 | D28: =Input!AB23/Input!AB22-1 ->  | E28: 0.02306172777 | F28: 0.029891721 | H28: 0.04000783271
B29: 2020 | C29: =Input!AE24/Input!AE23-1 -> 0.02989996766 | D29: =Input!AB24/Input!AB23-1 ->  | E29: 0.02572762949 | F29: 0.03009999168 | H29: 0.03091384528
C30: % variación media 2016-2020 | F30: % variación media 2016-2020
C31: =AVERAGE(C25:C29) -> 0.04073167684 | D31: =AVERAGE(D25:D29) ->  | E31: 0.02534955279 | F31: 0.03065530818 | H31: 0.03177271623
C33: * Nivel agregado
C34: ** Macro derivada del plan presupuestario 2015, actualización del plan de estabilidad 2014-2017 y extensión consistente con un crecimiento real del PIB de 1,5% en 2020.
C35: Evolución del sistema de pensiones - supuestos subyacentes
C37: Número de asalariados | F37: Remuneración por asalariado | I37: Base máxima de cotización | L37: Otros ingresos permanentes
C38: Gobierno | D38: =D4 -> Usuario_externo | E38: Plan presupuestario 2015 solo macro** | F38: Gobierno | G38: =D38 -> Usuario_externo | H38: Plan presupuestario 2015 solo macro** | I38: Gobierno | J38: =G38 -> Usuario_externo | K38: Plan presupuestario 2015 solo macro** | L38: Gobierno*** | M38: =J38 -> Usuario_externo | N38: Plan presupuestario 2015 solo macro**
C39: tasa de variación anual | F39: tasa de variación anual | I39: tasa de variación anual | L39: tasa de variación anual (sobre cotizaciones t-1)
B41: 2010
B42: =B41+1 -> 2011
B43: =B42+1 -> 2012
B44: 2013 | P44: Memo:
B45: 2014 | P45: en eur mill
B46: 2015 | C46: =Escenarios!F116 -> 1.6 | D46: =Escenarios!F12 -> 1.4 | E46: 1.4 | F46: =Escenarios!G116 -> 1 | G46: =Escenarios!G12 -> 1 | H46: 1 | I46: =Escenarios!H116 -> 0.25 | J46: =Escenarios!H12 -> 0.25 | K46: 0.25 | L46: =Escenarios!I103+Escenarios!J103 -> 4.674048005 | M46: =Escenarios!I12+Escenarios!J12 -> 5.5 | N46: 0 | P46: 5310.866602
B47: 2016 | C47: =Escenarios!F117 -> 2.14 | D47: =Escenarios!F13 -> ND | E47: 1.5 | F47: =Escenarios!G117 -> 1.6 | G47: =Escenarios!G13 -> ND | H47: 1.1 | I47: =Escenarios!H117 -> 0.25 | J47: =Escenarios!H13 -> ND | K47: 0.25 | L47: =Escenarios!I104+Escenarios!J104 -> 2.816575146 | M47: =Escenarios!I13+Escenarios!J13 ->  | N47: 0 | P47: 8733.24906
B48: 2017 | C48: =Escenarios!F118 -> 2.43 | D48: =Escenarios!F14 -> ND | E48: 2.3 | F48: =Escenarios!G118 -> 2 | G48: =Escenarios!G14 -> ND | H48: 1.7 | I48: =Escenarios!H118 -> 0.25 | J48: =Escenarios!H14 -> ND | K48: 0.25 | L48: =Escenarios!I105+Escenarios!J105 ->  | M48: =Escenarios!I14+Escenarios!J14 ->  | N48: 0 | P48: 11795.59885
B49: 2018 | C49: =Escenarios!F119 -> 2.053333333 | D49: =Escenarios!F15 -> ND | E49: 2.144124089 | F49: =Escenarios!G119 -> 2.2 | G49: =Escenarios!G15 -> ND | H49: 1.555875911 | I49: =Escenarios!H119 -> 0.25 | J49: =Escenarios!H15 -> ND | K49: 0.25 | L49: =Escenarios!I106+Escenarios!J106 ->  | M49: =Escenarios!I15+Escenarios!J15 ->  | N49: 0 | P49: 12046.15066
B50: 2019 | C50: =Escenarios!F120 -> 1.676666667 | D50: =Escenarios!F16 -> ND | E50: 1.631039958 | F50: =Escenarios!G120 -> 2.2 | G50: =Escenarios!G16 -> ND | H50: 1.668960042 | I50: =Escenarios!H120 -> 0.25 | J50: =Escenarios!H16 -> ND | K50: 0.25 | L50: =Escenarios!I107+Escenarios!J107 ->  | M50: =Escenarios!I16+Escenarios!J16 ->  | N50: 0 | P50: 13059.9361
B51: 2020 | C51: =Escenarios!F121 -> 1.3 | D51: =Escenarios!F17 -> ND | E51: 1.35 | F51: =Escenarios!G121 -> 2.2 | G51: =Escenarios!G17 -> ND | H51: 1.65 | I51: =Escenarios!H121 -> 0.25 | J51: =Escenarios!H17 -> ND | K51: 0.25 | L51: =Escenarios!I108+Escenarios!J108 ->  | M51: =Escenarios!I17+Escenarios!J17 ->  | N51: 0 | P51: 13569.66012
C52: % variación media 2016-2020 | F52: % variación media 2016-2020 | I52: % variación media 2016-2020
C53: =AVERAGE(C47:C51) -> 1.92 | D53: =AVERAGE(D47:D51) ->  | E53: 1.785032809 | F53: 2.04 | H53: 1.534967191 | I53: =AVERAGE(I47:I51) -> 0.25 | K53: 0.25
C55: *** Otros ingresos permanentes como residuo del modelo de cotizaciones utilizando factores subyacentes consistentes con el cuadro macro del plan presupuestario extendido.

Sheet Iterativo_A (hidden)
E2: Solución convergente: Gastos aumentan linealmente desde 2013 hasta equiparar ingresos en 2026. | Y2: irrestricto | Z2: =M12*(1+F13+AJ13+AI13)
E3: Solución supuesto IRP fijo: Se elimina la circularidad con un IRP subyacente de 0.25 para toda la serie.
E4: Escenario acotado: variables derivadas de imponer límites mínimos y máximos legales | Y4: acotado | Z4: =I12*(1+E13+AI13+AJ13) | BA4: Tasa inflación
BA5: =0.01 -> 0.01
D6: IRP - derivado con ajuste legal | E6: IRP - legal gob | F6: IRP - fórmula | G6: IRP fijo | H6: IRP fijo aux | I6: G acotado gobierno | J6: Otros gastos residuo | K6: G pensiones | L6: G Pensiones / G acotado gob | M6: G* acotado | N6: G fijo | O6: G pensiones | P6: G Pensiones / G sol fija | Q6: G* fijo | R6: G | S6: G pensiones | T6: Otros gastos | U6: G Pensiones / G | V6: Crecimiento otros gastos | W6: G* | X6: Solución inicial para G | Y6: G % anual | Z6: gi-gp-gs | AA6: alfa * (I*-G*)/G* - acotado | AB6: (I*-G*/G)*alfa | AC6: alfa * (I*-G*)/G* - fijo | AD6: alfa * (I*-G*)/G* | AE6: (I*-G*)/G* | AF6: Gi | AG6: Gp | AH6: Gs | AI6: IRP + Gp + Gs | AJ6: I* | AK6: Saldo esctructural acotado gob | AL6: Saldo estructural gob | AM6: Saldo nominal acotado gob | AN6: Saldo nominal fijo gob | AO6: Saldo nominal gob | AP6: Saldo esctructural acotado gob | AQ6: Saldo estructural gob | AR6: Saldo nominal acotado gob | AS6: Saldo nominal fijo gob | AT6: Saldo nominal gob | AU6: PIB nominal | AV6: alfa | AW6: I nivel | AX6: I % anual | AY6: P | AZ6: S | BA6: pi
B7: =B8-1 -> 2009 | I7: =Input!N38 -> 108791.75 | J7: =I7-K7 -> 18819.67 | K7: =S7 -> 89972.08 | L7: =K7/I7 -> 0.8270119747 | N7: =R7 -> 108791.75 | O7: =S7 -> 89972.08 | P7: =O7/N7 -> 0.8270119747 | R7: =Input!N38 -> 108791.75 | S7: =Input!V38 -> 89972.08 | T7: =R7-S7 -> 18819.67 | U7: =S7/R7 -> 0.8270119747 | AU7: =Iterativo_C!AT7 -> 1079.034 | AV7: =AV8 -> 0.25 | AW7: =Input!AE13 -> 117396.98 | BA7: =BA8/(1+$BA$5) -> 0.9514656876 | BB7: 8614876
A8: t-4 | B8: =B9-1 -> 2010 | I8: =Input!N39 -> 113646.09 | J8: =I8-K8 -> 17945.09 | K8: 95701 | L8: =K8/I8 -> 0.8420967233 | N8: 113646.09 | O8: 95701 | P8: =O8/N8 -> 0.8420967233 | R8: =Input!N39 -> 113646.09 | S8: =Input!V39 -> 95701 | T8: =R8-S8 -> 17945.09 | U8: =S8/R8 -> 0.8420967233 | AU8: =Iterativo_C!AT8 -> 1080.913 | AV8: =AV9 -> 0.25 | AW8: =Input!AE14 -> 116458.18 | AX8: =AW8/AW7-1 -> -0.007996798555 | AY8: =Input!AL39 -> 0.01557515163 | AZ8: =Input!AM39 -> 0.018 | BA8: =BA9/(1+$BA$5) -> 0.9609803445 | BB8: 8749054
A9: t-3 | B9: =B10-1 -> 2011 | I9: =Input!N40 -> 116415.8 | J9: 16882.09 | K9: 99533.71 | L9: 0.8549845468 | N9: 116415.8 | O9: 99533.71 | P9: 0.8549845468 | R9: =Input!N40 -> 116415.8 | S9: =Input!V40 -> 99533.71 | T9: 16882.09 | U9: 0.8549845468 | AU9: =Iterativo_C!AT9 -> 1075.147 | AV9: =AV10 -> 0.25 | AW9: =Input!AE15 -> 116119 | AX9: -0.002912461795 | AY9: =Input!AL40 -> 0.01398791229 | AZ9: =Input!AM40 -> 0.018 | BA9: =BA10/(1+$BA$5) -> 0.9705901479 | BB9: 8871435
A10: t-2 | B10: =B11-1 -> 2012 | I10: =Input!N41 -> 119029.84 | J10: 15526.05 | K10: 103503.79 | L10: 0.8695616998 | N10: 119029.84 | O10: 103503.79 | P10: 0.8695616998 | R10: =Input!N41 -> 119029.84 | S10: =Input!V41 -> 103503.79 | T10: 15526.05 | U10: 0.8695616998 | AU10: =Iterativo_C!AT10 -> 1055.158 | AV10: =AV11 -> 0.25 | AW10: =Input!AE16 -> 113081.34 | AX10: -0.0261598877 | AY10: =Input!AL41 -> 0.01543324163 | AZ10: =Input!AM41 -> 0.017 | BA10: =BA11/(1+$BA$5) -> 0.9802960494 | BB10: 9008350
A11: t-1 | B11: =B12-1 -> 2013 | I11: =Input!N42 -> 123332.68 | J11: 14768.38 | K11: 108564.3 | L11: 0.8802557441 | N11: 123332.68 | O11: 108564.3 | P11: 0.8802557441 | R11: =Input!N42 -> 123332.68 | S11: =Input!V42 -> 108564.3 | T11: 14768.38 | U11: 0.8802557441 | AU11: =Iterativo_C!AT11 -> 1049.181 | AV11: =AV12 -> 0.25 | AW11: =Input!AE17 -> 112934.97 | AX11: -0.001294378011 | AY11: =Input!AL42 -> 0.01623682472 | AZ11: =Input!AM42 -> 0.017 | BA11: =BA12/(1+$BA$5) -> 0.9900990099 | BB11: 9154617
A12: t | B12: 2014 | H12: 0.025 | I12: =Input!N43 -> 127521.99 | J12: 15320.38 | K12: =S12 -> 112201.61 | L12: 0.8798608773 | M12: =PRODUCT(I7:I17)^(1/11) -> 127421.1091 | N12: 127521.99 | O12: =S12 -> 112201.61 | P12: 0.8798608773 | Q12: =PRODUCT(N7:N17)^(1/11) -> 127352.925 | R12: =Input!N43 -> 127521.99 | S12: =Input!V43 -> 112201.61 | T12: 15320.38 | U12: 0.8798608773 | W12: =PRODUCT(R7:R17)^(1/11) -> 126266.7676 | Z12: =AF12-AG12-AH12 -> -0.006629044379 | AA12: =AV12*(AJ12-M12)/M12 -> -0.004835611381 | AD12: =AV12*(AJ12-W12)/W12 -> -0.002594297626 | AE12: =(AJ12-W12)/W12 -> -0.0103771905 | AF12: =AVERAGE(AX7:AX17) -> 0.02378975155 | AG12: 0.01389379592 | AH12: 0.016525 | AI12: =AH12+AG12+H12 -> 0.05541879592 | AJ12: =PRODUCT(AW7:AW17)^(1/11) -> 124956.4733 | AU12: =Iterativo_C!AT12 -> 1064.148322 | AV12: 0.25 | AW12: =Input!AE18 -> 117993.95 | AX12: 0.04479551374 | AY12: =Input!AL43 -> 0.01271118169 | AZ12: =Input!AM43 -> 0.01715 | BA12: 1 | BB12: 9270983
A13: =$A$12&"+"&B13-2014 -> t+1 | B13: =B12+1 -> 2015 | D13: =Z13+AA13 -> -0.01242121123 | E13: =IF(ISNUMBER(IF(Z13+AA13>0.025,0.025,IF(Z13+AA13<0.0025,0.0025,Z13+AA13))),IF(Z13+AA13>0.025,0.025,IF(Z13+AA13<0.0025,0.0025,Z13+AA13)),0.0025) -> 0.0025 | F13: =Z13+AD13 -> -0.009973315918 | G13: =Z13+AC13 -> -0.0123238653 | H13: 0.0025 | I13: =Input!N44 -> 131367.37 | J13: 15665.09045 | K13: =K12*((1+E13)*(1+AY13)*(1+AZ13)) -> 115702.2796 | L13: 0.8807535658 | M13: 131415.4322 | N13: =O13+T13 -> 131342.4234 | O13: =O12*((1+H13)*(1+AY13)*(1+AZ13)) -> 115702.2796 | P13: 0.8809208524 | Q13: =PRODUCT(N8:N18)^(1/11) -> 131362.8964 | R13: =S13+T13 -> 129902.8313 | S13: =S12*((1+F13)*(1+AZ13)*(1+AY13)) -> 114262.6874 | T13: =(V13+1)*T12 -> 15640.14381 | U13: 0.8796012091 | V13: 0.02087179382 | W13: 130106.9802 | X13: =($X$24-$R$12)/12+R12 -> 132049.2617 | Z13: =AF13-AG13-AH13 -> -0.005829653465 | AA13: -0.006591557763 | AB13: =AV12*(AJ13-M13)/M13 -> -0.006591557763 | AC13: =AV13*(AJ13-Q13)/Q13 -> -0.006494211838 | AD13: -0.004143662454 | AE13: -0.01657464981 | AF13: 0.02434522574 | AG13: 0.01387942466 | AH13: 0.01629545455 | AJ13: =PRODUCT(AW8:AW18)^(1/11) -> 127950.5025 | AK13: =AJ13-M13 -> -3464.929648 | AL13: =AJ13-W13 -> -2156.477635 | AM13: =AW13-I13 -> -6564.33 | AN13: =AW13-N13 -> -6539.383366 | AO13: =AW13-R13 -> -5099.791261 | AP13: =AK13/$AU$13/1000 -> -0.003167269941 | AQ13: =AL13/$AU$13/1000 -> -0.001971222357 | AR13: =AM13/$AU$13/1000 -> -0.006000411899 | AS13: =AN13/AU13/1000 -> -0.00597760834 | AT13: =AO13/$AU$13/1000 -> -0.004661686442 | AU13: =Iterativo_C!AT13 -> 1093.979898 | AV13: 0.25 | AW13: =Input!AE19 -> 124803.04 | AX13: 0.05770711125 | AY13: =Input!AL44 -> 0.01292786321 | AZ13: =Input!AM44 -> 0.0155 | BA13: =BA12*(1+$BA$5) -> 1.01 | BB13: 9390837 | BC13: ΔI*/I*-ΔG*/G* | BD13: ΔI/I-ΔG/G | BE13: ΔI/I-ΔGa/Ga gob
A14: =$A$12&"+"&B14-2014 -> t+2 | B14: =B13+1 -> 2016 | E14: =IF(ISNUMBER(IF(Z14+AA14>0.025,0.025,IF(Z14+AA14<0.0025,0.0025,Z14+AA14))),IF(Z14+AA14>0.025,0.025,IF(Z14+AA14<0.0025,0.0025,Z14+AA14)),0.0025) -> 0.0025 | F14: -0.006505192228 | G14: =Z14+AC14 -> -0.009000976468 | H14: 0.0025 | I14: =Input!N45 -> 135901.91 | J14: 16534.17579 | K14: =K13*((1+E14)*(1+AY14)*(1+AZ14)) -> 119367.7342 | L14: 0.8783374289 | M14: =PRODUCT(I9:I19)^(1/11) -> 135461.9962 | N14: =O14+T14 -> 135907.9801 | O14: =O13*((1+H14)*(1+AY14)*(1+AZ14)) -> 119367.7342 | P14: 0.8782981995 | Q14: =PRODUCT(N9:N19)^(1/11) -> 135325.5715 | R14: =S14+T14 -> 133363.874 | S14: =S13*((1+F14)*(1+AZ14)*(1+AY14)) -> 116823.6281 | T14: =(V14+1)*T13 -> 16540.24587 | U14: 0.8759765641 | V14: 0.05755075338 | W14: 133949.0583 | X14: =($X$24-$R$12)/12+X13 -> 136576.5335 | Y14: =((R14/R13)-1) -> 0.02664332024 | Z14: -0.001866751254 | AA14: -0.007378817026 | AC14: =AV14*(AJ14-Q14)/Q14 -> -0.007134225214 | AD14: -0.004638440974 | AE14: -0.01855376389 | AF14: 0.02779220507 | AG14: 0.01373622905 | AH14: 0.01592272727 | AJ14: =PRODUCT(AW9:AW19)^(1/11) -> 131463.7991 | AK14: -3998.197137 | AL14: -2485.259201 | AM14: -4102.61 | AN14: =AW14-N14 -> -4108.680083 | AO14: -1564.573994 | AP14: =AK14/$AU$13/1000 -> -0.003654726327 | AQ14: =AL14/$AU$13/1000 -> -0.002271759476 | AR14: =AM14/$AU$13/1000 -> -0.003750169455 | AS14: =AN14/AU14/1000 -> -0.003642554437 | AT14: =AO14/$AU$13/1000 -> -0.001430167041 | AU14: =Iterativo_C!AT14 -> 1127.966693 | AV14: =AV13 -> 0.25 | AW14: =Input!AE20 -> 131799.3 | AX14: 0.05605841012 | AY14: =Input!AL45 -> 0.01290087348 | AZ14: =Input!AM45 -> 0.016 | BA14: =BA13*(1+$BA$5) -> 1.0201 | BB14: 9511987 | BC14: =AJ14/AJ13-W14/W13 -> -0.002071898602 | BD14: =AW14/AW13-R14/R13 -> 0.02941508987 | BE14: =AW14/AW13-I14/I13 -> 0.02154040157
A15: t+3 | B15: 2017 | E15: 0.0025 | F15: -0.003105389481 | G15: -0.005687166253 | H15: 0.0025 | I15: =Input!N46 -> 139929.52 | J15: 16773.39677 | K15: 123156.1232 | L15: 0.8801296769 | M15: 139702.7835 | N15: 139945.826 | O15: 123156.1232 | P15: 0.8800271276 | Q15: 139477.2379 | R15: 136647.0374 | S15: 119857.3346 | T15: 16789.70273 | U15: 0.8771308691 | V15: 0.01508181053 | W15: 138009.8603 | X15: =($X$24-$R$12)/12+X14 -> 141103.8052 | Y15: =((R15/R14)-1) -> 0.02461808634 | Z15: 0.001491462808 | AA15: -0.007570656225 | AC15: -0.007178629061 | AD15: -0.004596852289 | AE15: -0.01838740916 | AF15: =AVERAGE(AX10:AX20) -> 0.03077879074 | AG15: =AVERAGE(AY10:AY20) -> 0.01374641885 | AH15: =AVERAGE(AZ10:AZ20) -> 0.01554090909 | AJ15: 135472.2165 | AK15: -4230.56699 | AL15: -2537.643768 | AM15: -881.26 | AN15: -897.5659552 | AO15: 2401.222642 | AP15: -0.003867134118 | AQ15: -0.002319643873 | AR15: -0.0008055541068 | AS15: -0.0007656572859 | AT15: 0.002194942197 | AU15: =Iterativo_C!AT15 -> 1172.281609 | AV15: 0.25 | AW15: =Input!AE21 -> 139048.26 | AX15: 0.05499998862 | AY15: =Input!AL46 -> 0.01315634683 | AZ15: =Input!AM46 -> 0.0158 | BA15: 1.030301 | BB15: 9637130 | BC15: 0.0001746381464 | BD15: 0.03038190228 | BE15: 0.02536383413
A16: t+4 | B16: 2018 | E16: 0.0025 | F16: 0.003523693162 | G16: 0.0008589802245 | H16: 0.0025 | I16: =Input!N47 -> 144005.76 | J16: 18156.92998 | K16: 125848.83 | L16: 0.8739152519 | M16: =PRODUCT(I11:I21)^(1/11) -> 144172.7586 | N16: 142983.392 | O16: 125848.83 | P16: 0.8801639702 | Q16: 143852.4288 | R16: 139737.5453 | S16: 122602.9833 | T16: 17134.56203 | U16: 0.8773803992 | V16: 0.02053992883 | W16: 142297.4715 | X16: 145631.077 | Y16: 0.02261672116 | Z16: 0.007005382481 | AA16: -0.006688207717 | AC16: -0.006146402257 | AD16: -0.003481689319 | AE16: -0.01392675728 | AF16: 0.03588059754 | AG16: 0.01363430597 | AH16: 0.01524090909 | AJ16: 140315.7292 | AK16: -3857.029428 | AL16: -1981.742347 | AM16: -702.62 | AN16: 319.7479557 | AO16: 3565.5947 | AP16: -0.003525685831 | AQ16: -0.001811497953 | AR16: -0.00064226043 | AS16: 0.0002614211798 | AT16: 0.003259287218 | AU16: =Iterativo_C!AT16 -> 1223.114194 | AV16: 0.25 | AW16: =Input!AE22 -> 143303.14 | AX16: 0.03060002333 | AY16: =Input!AL47 -> 0.003461196435 | AZ16: =Input!AM47 -> 0.0158 | BA16: 1.04060401 | BB16: 9670486 | BC16: 0.004685384947 | BD16: 0.007983302166 | BE16: 0.001469358121
A17: t+5 | B17: 2019 | E17: 0.005348940574 | F17: 0.008814439979 | G17: 0.006044115581 | H17: 0.0025 | I17: =Input!N48 -> 148310.34 | J17: 16994.99345 | K17: 131315.3466 | L17: 0.8854092476 | M17: 148705.3969 | N17: 148498.1863 | O17: 130943.2274 | P17: 0.8817833444 | Q17: 148284.6729 | R17: 145924.4458 | S17: 128369.4868 | T17: 17554.95895 | U17: 0.8796982997 | V17: 0.02453502592 | W17: 146631.4398 | X17: 150158.3487 | Y17: 0.04427514789 | Z17: 0.01033367305 | AA17: -0.004984732477 | AC17: -0.00428955747 | AD17: -0.001519233071 | AE17: -0.006076932286 | AF17: 0.03872372223 | AG17: 0.01345823099 | AH17: 0.01493181818 | AJ17: 145740.3704 | AK17: -2965.026486 | AL17: -891.0693303 | AM17: -407.17 | AN17: -595.0163262 | AO17: 1978.724215 | AP17: -0.00271031167 | AQ17: -0.0008145207527 | AR17: -0.0003721914823 | AS17: -0.0004708265421 | AT17: 0.001808739099 | AU17: =Iterativo_C!AT17 -> 1263.769718 | AV17: 0.25 | AW17: =Input!AE23 -> 147903.17 | AX17: 0.03209999446 | AY17: =Input!AL48 -> 0.02254736732 | AZ17: =Input!AM48 -> 0.015 | BA17: 1.05101005 | BB17: 9888530 | BC17: 0.008203151184 | BD17: -0.01217515343 | BE17: 0.002208273461
A18: t+6 | B18: 2020 | E18: 0.005663739505 | F18: 0.009393265047 | G18: 0.006513786063 | H18: 0.0025 | I18: =Input!N49 -> 152774.48 | J18: 17027.2499 | K18: 135747.2301 | L18: 0.888546504 | M18: 153327.1149 | N18: 153002.1978 | O18: 134936.7119 | P18: 0.881926625 | Q18: 152800.182 | R18: 151259.5617 | S18: 133194.0758 | T18: 18065.48588 | U18: 0.8805663214 | V18: 0.02908163619 | W18: 151041.8344 | X18: 154685.6204 | Y18: 0.03656081004 | Z18: 0.009166915592 | AA18: -0.003503176087 | AC18: -0.002653129529 | AD18: 0.0002263494553 | AE18: 0.0009053978212 | AF18: 0.03737867552 | AG18: 0.01361175993 | AH18: 0.0146 | AJ18: 151178.5873 | AK18: -2148.527529 | AL18: 136.7529478 | AM18: -449.01 | AN18: -676.727803 | AO18: 1065.908272 | AP18: -0.001963955217 | AQ18: 0.0001250049914 | AR18: -0.0004104371576 | AS18: -0.0005164871561 | AT18: 0.0009743399069 | AU18: =Iterativo_C!AT18 -> 1310.250981 | AV18: 0.25 | AW18: =Input!AE24 -> 152325.47 | AX18: 0.02989996766 | AY18: =Input!AL49 -> 0.01373571198 | AZ18: =Input!AM49 -> 0.014 | BA18: 1.061520151 | BB18: 10024356 | BC18: 0.007236319933 | BD18: -0.006660842382 | BE18: -0.0002000240183
A19: t+7 | B19: 2021 | E19: 0.004088728159 | F19: 0.007828168511 | G19: 0.005088978689 | H19: 0.0025 | I19: =K19+T19 -> 158648.7442 | J19: 18517.12303 | K19: 140131.6212 | L19: 0.8832822591 | M19: 158090.5421 | N19: 157591.6472 | O19: 139074.5241 | P19: 0.882499337 | Q19: 157453.9291 | R19: 156525.1921 | S19: 138008.0691 | T19: 18517.12303 | U19: 0.8816987683 | V19: =0.025 -> 0.025 | W19: 155736.5214 | X19: 159212.8922 | Y19: 0.03481188439 | Z19: 0.00669607486 | AA19: -0.002607346701 | AC19: -0.001607096171 | AD19: 0.00113209365 | AE19: 0.004528374602 | AF19: 0.03485984723 | AG19: 0.01375468146 | AH19: 0.01440909091 | AJ19: 156441.7547 | AK19: -1648.787414 | AL19: 705.233308 | AM19: -1765.700103 | AN19: -708.6030374 | AO19: 357.8520184 | AP19: -0.001507145987 | AQ19: 0.000644649238 | AR19: -0.001614015126 | AS19: -0.0005200141685 | AT19: 0.000327110232 | AU19: =Iterativo_C!AT19 -> 1362.66102 | AV19: 0.25 | AW19: =+AW18*(1+AX19) -> 156883.0441 | AX19: =AX18-($AX$18-$AX$23)/5 -> 0.02991997413 | AY19: 0.014 | AZ19: =AZ18-0.0001 -> 0.0139 | BA19: 1.072135352 | BC19: 0.003732207125 | BD19: -0.00489191026 | BE19: -0.008530585316
A20: t+8 | B20: 2022 | E20: 0.0025 | F20: 0.005821535284 | G20: 0.003399580586 | H20: 0.0025 | I20: 163408.7827 | J20: 18980.0511 | K20: 144428.7316 | L20: 0.8838492596 | M20: 162937.3868 | N20: 162319.27 | O20: 143339.2189 | P20: 0.8830696374 | Q20: 162181.6217 | R20: 161691.3895 | S20: 142711.3384 | T20: 18980.0511 | U20: 0.882615573 | V20: =V19 -> 0.025 | W20: 160619.2064 | X20: 163740.1639 | Y20: 0.03300553286 | Z20: 0.004418116984 | AA20: -0.002173406542 | AC20: -0.001018536399 | AD20: 0.0014034183 | AE20: 0.0056136732 | AF20: 0.03249090085 | AG20: 0.01390914751 | AH20: 0.01416363636 | AJ20: 161520.8701 | AK20: -1416.51673 | AL20: 901.6637342 | AM20: -1828.663325 | AN20: -739.1505715 | AO20: -111.2700562 | AP20: -0.001294828847 | AQ20: 0.0008242050292 | AR20: -0.001671569402 | AS20: -0.0005215689689 | AT20: -0.0001017112438 | AU20: =Iterativo_C!AT20 -> 1417.167461 | AV20: 0.25 | AW20: 161580.1194 | AX20: =AX19-($AX$18-$AX$23)/5 -> 0.0299399806 | AY20: =AY19+0.0001 -> 0.0141 | AZ20: =AZ19-0.0001 -> 0.0138 | BA20: 1.082856706 | BC20: 0.00111427924 | BD20: -0.003065552265 | BE20: -6.365127448e-05
A21: t+9 | B21: 2023 | E21: 0.0025 | F21: 0.00325702516 | G21: 0.001262557871 | H21: 0.0025 | I21: 168312.1588 | J21: 19454.55238 | K21: 148857.6064 | L21: 0.8844138622 | M21: 167938.5527 | N21: 167189.2364 | O21: 147734.684 | P21: 0.8836375307 | Q21: 167055.8055 | R21: 166653.1733 | S21: 147198.6209 | T21: 19454.55238 | U21: 0.8832632347 | V21: =V20 -> 0.025 | W21: 165728.4484 | X21: 168267.4356 | Y21: 0.03068675373 | Z21: 0.002241422276 | AA21: -0.002287811616 | AC21: -0.0009788644047 | AD21: 0.001015602884 | AE21: 0.004062411537 | AF21: 0.03021817462 | AG21: 0.01404947961 | AH21: 0.01392727273 | AJ21: 166401.7056 | AK21: -1536.847086 | AL21: 673.2571609 | AM21: -1891.101069 | AN21: -768.1786508 | AO21: -232.1156175 | AP21: -0.001404822052 | AQ21: 0.0006154200473 | AR21: -0.001728643343 | AS21: -0.0005212039778 | AT21: -0.0002121753954 | AU21: =Iterativo_C!AT21 -> 1473.85416 | AV21: 0.25 | AW21: 166421.0577 | AX21: =AX20-($AX$18-$AX$23)/5 -> 0.02995998706 | AY21: =AY20+0.0001 -> 0.0142 | AZ21: 0.0137 | BA21: 1.093685273 | BC21: -0.001591671641 | BD21: -0.0007267666649 | BE21: -4.682131833e-05
A22: t+10 | B22: 2024 | E22: 0.0025 | F22: 0.001860248767 | G22: 0.0002656991256 | H22: 0.0025 | I22: 173363.1988 | J22: 19940.91619 | K22: 153422.2827 | L22: 0.8849760715 | M22: 173106.8957 | N22: 172205.8423 | O22: 152264.9261 | P22: 0.8842030217 | Q22: 172203.3289 | R22: 171556.5249 | S22: 151615.6087 | T22: 19940.91619 | U22: 0.8837647463 | V22: 0.025 | W22: 171106.9935 | X22: 172794.7074 | Y22: 0.0294224915 | Z22: 0.001401528922 | AA22: -0.002434827127 | AC22: -0.001135829796 | AD22: 0.0004587198445 | AE22: 0.001834879378 | AF22: 0.03016362704 | AG22: 0.01508027994 | AH22: 0.01368181818 | AJ22: 171420.9542 | AK22: -1685.941462 | AL22: 313.9606939 | AM22: -1952.838899 | AN22: -795.4823837 | AO22: -146.1649591 | AP22: -0.001541108264 | AQ22: 0.0002869894541 | AR22: -0.001785077497 | AS22: -0.0005189705524 | AT22: -0.0001336084505 | AU22: =Iterativo_C!AT22 -> 1532.808326 | AV22: 0.25 | AW22: 171410.3599 | AX22: =AX21-($AX$18-$AX$23)/5 -> 0.02997999353 | AY22: 0.0143 | AZ22: 0.0136 | BA22: 1.104622125 | BC22: -0.002290519375 | BD22: 0.0005575020341 | BE22: -2.996000043e-05
A23: t+11 | B23: 2025 | E23: 0.0025 | F23: 0.002264258847 | G23: 0.0009357548296 | H23: 0.0025 | I23: 178566.3602 | J23: 20439.43909 | K23: 158126.9211 | L23: 0.8855358923 | M23: 178436.4444 | N23: 177373.5138 | O23: 156934.0747 | P23: 0.884766115 | Q23: 177376.1838 | R23: 176667.5391 | S23: 156228.1 | T23: 20439.43909 | U23: 0.8843056331 | V23: 0.025 | W23: 176434.2693 | X23: 177321.9791 | Y23: 0.0297920127 | Z23: 0.002087653727 | AA23: -0.002630542116 | AC23: -0.001151898898 | AD23: 0.0001766051196 | AE23: 0.0007064204783 | AF23: 0.02997271845 | AG23: 0.01438506473 | AH23: 0.0135 | AJ23: 176558.9061 | AK23: -1877.538329 | AL23: 124.6367809 | AM23: -2013.689458 | AN23: -820.8430257 | AO23: -114.8683291 | AP23: -0.001716245729 | AQ23: 0.0001139296811 | AR23: -0.001840700602 | AS23: -0.0005149190063 | AT23: -0.000105000402 | AU23: =Iterativo_C!AT23 -> 1594.120659 | AV23: 0.25 | AW23: 176552.6707 | AX23: 0.03 | AY23: 0.0144 | AZ23: 0.0135 | BA23: 1.115668347 | BC23: -0.0011614614 | BD23: 0.000207987302 | BE23: -1.306731376e-05
B24: 2026 | E24: 0.0025 | F24: 0.002098760904 | G24: =Z24+AA24 -> -0.000740604618 | H24: 0.0025 | I24: 183926.2348 | J24: 20950.42507 | K24: 162975.8097 | L24: 0.8860933292 | M24: 183928.9589 | N24: 182696.8103 | O24: 161746.3852 | P24: 0.8853268153 | Q24: 182699.5326 | R24: 181904.7413 | S24: 160954.3162 | T24: 20950.42507 | U24: 0.8848274931 | V24: 0.025 | W24: 181840.1343 | X24: =AW24 -> 181849.2509 | Y24: 0.02964439452 | Z24: 0.002081812302 | AA24: -0.00282241692 | AC24: -0.001159103385 | AD24: 1.694860168e-05 | AE24: 6.779440673e-05 | AF24: 0.0299818123 | AG24: 0.0145 | AH24: 0.0134 | AJ24: 181852.462 | AV24: 0.25 | AW24: 181849.2509 | AX24: =AX23 -> 0.03 | AY24: 0.0145 | AZ24: 0.0134 | BA24: 1.12682503
B25: 2027 | E25: 0.0025 | F25: 0.002054137467 | G25: -0.000740518333 | H25: 0.0025 | I25: 189447.5534 | J25: 21474.1857 | K25: 167973.3677 | L25: 0.8866483873 | M25: 189450.3303 | N25: 188180.4293 | O25: 166706.2436 | P25: 0.8858851275 | Q25: 188183.2046 | R25: 187290.2923 | S25: 165816.1066 | T25: 21474.1857 | U25: 0.8853427723 | V25: 0.025 | W25: 187332.2404 | X25: 187304.7284 | Y25: 0.02960643562 | Z25: 0.002089087381 | AA25: -0.002829605714 | AC25: -0.001165291592 | AD25: -3.49499139e-05 | AE25: -0.0001397996556 | AF25: 0.02998908738 | AG25: 0.0146 | AH25: 0.0133 | AJ25: 187306.0514 | AV25: 0.25 | AW25: 187304.7284 | AX25: =AX24 -> 0.03 | AY25: 0.0146 | AZ25: 0.0133 | BA25: 1.13809328
B26: 2028 | E26: 0.0025 | F26: 0.002075237535 | G26: -0.0007416658359 | H26: 0.0025 | I26: 195135.1896 | J26: 22011.04034 | K26: 173124.1492 | L26: 0.8872010713 | M26: 195138.0202 | N26: 193829.21 | O26: 171818.1697 | P26: 0.8864410563 | Q26: 193832.0391 | R26: 192839.3665 | S26: 170828.3261 | T26: 22011.04034 | U26: 0.8858581588 | V26: 0.025 | W26: 192939.1106 | X26: 192923.8702 | Y26: 0.02962819959 | Z26: 0.002094543691 | AA26: -0.002836209527 | AC26: -0.001170895414 | AD26: -1.930615606e-05 | AE26: -7.722462423e-05 | AF26: 0.02999454369 | AG26: 0.0147 | AH26: 0.0132 | AJ26: 192924.2109 | AV26: 0.25 | AW26: 192923.8702 | AX26: =AX25 -> 0.03 | AY26: 0.0147 | AZ26: 0.0132 | BA26: 1.149474213
B27: 2029 | E27: 0.0025 | F27: 0.002110551392 | G27: -0.0007444760906 | H27: 0.0025 | I27: 200994.1643 | J27: 22561.31635 | K27: 178432.848 | L27: 0.8877513861 | M27: 200997.0493 | N27: 199648.1381 | O27: 177086.8217 | P27: 0.8869946068 | Q27: 199651.0216 | R27: 198559.544 | S27: 175998.2276 | T27: 22561.31635 | U27: 0.8863750596 | V27: 0.025 | W27: 198701.7545 | X27: 198711.5863 | Y27: 0.02966291371 | Z27: 0.00209818123 | AA27: -0.002842657321 | AC27: -0.00117634669 | AD27: 1.237016183e-05 | AE27: 4.948064731e-05 | AF27: 0.02999818123 | AG27: 0.0148 | AH27: 0.0131 | AJ27: 198711.5863 | AV27: 0.25 | AW27: 198711.5863 | AX27: 0.03 | AY27: 0.0148 | AZ27: 0.0131 | BA27: 1.160968955
B28: 2030 | E28: 0.0025 | F28: 0.002131743602 | G28: -0.0007493780055 | H28: 0.0025 | I28: 207029.6504 | J28: 23125.34926 | K28: 183904.3011 | L28: 0.8882993368 | M28: 207032.5904 | N28: 205642.3497 | O28: 182517.0004 | P28: 0.8875457838 | Q28: 205645.2884 | R28: 204453.7416 | S28: 181328.3924 | T28: 23125.34926 | U28: 0.8868920223 | V28: 0.025 | W28: 204646.949 | X28: 204672.9339 | Y28: 0.02968478661 | Z28: 0.0021 | AA28: -0.002849378005 | AC28: -0.001182077209 | AD28: 3.174360178e-05 | AE28: 0.0001269744071 | AF28: 0.03 | AG28: 0.0149 | AH28: 0.013 | AJ28: 204672.9339 | AV28: 0.25 | AW28: =AW27*(1+AX28) -> 204672.9339 | AX28: 0.03 | AY28: 0.0149 | AZ28: 0.013 | BA28: 1.172578645
B29: 2031 | E29: 0.0025 | F29: 0.002146527878 | G29: -0.000756800432 | H29: 0.0025 | I29: 213246.9766 | J29: 23703.48299 | K29: 189543.4936 | L29: 0.8888449282 | M29: 213249.9724 | N29: 211817.1361 | O29: 188113.6531 | P29: 0.8880945922 | Q29: 211820.1307 | R29: =X29 -> 210813.122 | S29: 186822.7028 | T29: 23703.48299 | U29: 0.8862005412 | V29: 0.025 | W29: 210773.8945 | X29: 210813.122 | Y29: 0.03110425006 | Z29: 0.0021 | AA29: -0.002856800432 | AC29: -0.001188518713 | AD29: 4.652787822e-05 | AE29: 0.0001861115129 | AF29: 0.03 | AG29: 0.015 | AH29: 0.0129 | AJ29: 210813.122 | AV29: 0.25 | AW29: 210813.122 | AX29: 0.03 | AY29: 0.015 | AZ29: 0.0129 | BA29: 1.184304431
B30: 2032 | E30: 0.0025 | F30: 0.002153463326 | G30: -0.0007649170014 | H30: 0.0025 | I30: 219651.6331 | J30: 24296.07006 | K30: 195355.5631 | L30: 0.8893881656 | M30: 219654.6854 | N30: 218177.9487 | O30: 193881.8786 | P30: 0.8886410372 | Q30: 218180.9999 | R30: 217137.5156 | S30: 192484.7835 | T30: 24296.07006 | U30: 0.8864648881 | V30: 0.025 | W30: 217091.09 | X30: 217137.5156 | Y30: 0.03 | Z30: 0.0021 | AA30: -0.002864917001 | AC30: -0.001195663549 | AD30: 5.346332611e-05 | AE30: 0.0002138533045 | AF30: 0.03 | AG30: 0.0151 | AH30: 0.0128 | AJ30: 217137.5156 | AV30: 0.25 | AW30: 217137.5156 | AX30: 0.03 | AY30: 0.0151 | AZ30: 0.0128 | BA30: 1.196147476
B31: 2033 | E31: 0.0025 | F31: 0.002151711238 | G31: -0.0007737201095 | H31: 0.0025 | I31: 226249.2758 | J31: 24903.47181 | K31: 201345.8039 | L31: 0.889929054 | M31: 226252.3852 | N31: 224730.4033 | O31: 199826.9315 | P31: 0.8891851238 | Q31: 224733.5119 | R31: 223651.6411 | S31: 198318.0732 | T31: 24903.47181 | U31: 0.8867275565 | V31: 0.025 | W31: 223605.3894 | X31: 223651.6411 | Y31: 0.03 | Z31: 0.0021 | AA31: -0.002873720109 | AC31: -0.001203504061 | AD31: 5.171123796e-05 | AE31: 0.0002068449518 | AF31: 0.03 | AG31: 0.0152 | AH31: 0.0127 | AJ31: 223651.6411 | AV31: 0.25 | AW31: 223651.6411 | AX31: 0.03 | AY31: 0.0152 | AZ31: 0.0127 | BA31: 1.20810895
B32: 2034 | E32: 0.0025 | F32: 0.002141752283 | G32: -0.0007832021465 | H32: 0.0025 | I32: 233045.7313 | J32: 25526.05861 | K32: 207519.6727 | L32: 0.8904675985 | M32: 233048.8987 | N32: 231480.2857 | O32: 205954.2271 | P32: 0.8897268572 | Q32: 231483.4523 | R32: 230361.1903 | S32: 204326.0598 | T32: 25526.05861 | U32: 0.886981264 | V32: 0.025 | W32: 230322.7243 | X32: 230361.1903 | Y32: 0.03 | Z32: 0.0021 | AA32: -0.002883202147 | AC32: -0.001212032585 | AD32: 4.175228336e-05 | AE32: 0.0001670091334 | AF32: 0.03 | AG32: 0.0153 | AH32: 0.0126 | AJ32: 230361.1903 | AV32: 0.25 | AW32: 230361.1903 | AX32: 0.03 | AY32: 0.0153 | AZ32: 0.0126 | BA32: 1.22019004
B33: 2035 | E33: 0.0025 | F33: 0.002124353758 | G33: -0.0007933554984 | H33: 0.0025 | I33: 240047.0028 | J33: 26164.21007 | K33: 213882.7927 | L33: 0.8910038044 | M33: 240050.2286 | N33: 238433.5563 | O33: 212269.3462 | P33: 0.8902662424 | Q33: 238436.7816 | R33: 237272.026 | S33: 210512.3443 | T33: 26164.21007 | U33: 0.8872193988 | V33: 0.025 | W33: 237248.9144 | X33: 237272.026 | Y33: 0.03 | Z33: 0.0021 | AA33: -0.002893355498 | AC33: -0.001221241456 | AD33: 2.435375806e-05 | AE33: 9.741503223e-05 | AF33: 0.03 | AG33: 0.0154 | AH33: 0.0125 | AJ33: 237272.026 | AV33: 0.25 | AW33: 237272.026 | AX33: 0.03 | AY33: 0.0154 | AZ33: 0.0125 | BA33: 1.23239194
B34: 2036 | E34: 0.0025 | F34: 0.0021 | G34: -0.0008041725462 | H34: 0.0025 | I34: 247259.2743 | J34: 26818.31533 | K34: 220440.9589 | L34: 0.8915376768 | M34: 247262.5593 | N34: 245596.3556 | O34: 218778.0403 | P34: 0.8908032847 | Q34: 245599.6403 | R34: 244390.1868 | S34: 216880.594 | T34: 26818.31533 | U34: 0.8874357714 | V34: 0.025 | W34: 244390.1868 | X34: 244390.1868 | Y34: 0.03 | Z34: 0.0021 | AA34: -0.002904172546 | AC34: -0.001231122999 | AD34: 0 | AE34: 0 | AF34: 0.03 | AG34: 0.0155 | AH34: 0.0124 | AJ34: 244390.1868 | AV34: 0.25 | AW34: 244390.1868 | AX34: 0.03 | AY34: 0.0155 | AZ34: 0.0124 | BA34: 1.24471586
B35: 2037 | E35: 0.0025 | F35: 0.0021 | G35: -0.000815645667 | H35: 0.0025 | I35: 254688.917 | J35: 27488.77321 | K35: 227200.1438 | L35: 0.892069221 | M35: 254692.262 | N35: 252975.0097 | O35: 225486.2365 | P35: 0.8913379893 | Q35: 252978.3545 | R35: 251721.8924 | S35: 223441.4213 | T35: 27488.77321 | U35: 0.8876519206 | V35: 0.025 | W35: 251721.8924 | X35: 251721.8924 | Y35: 0.03 | Z35: 0.0021 | AA35: -0.002915645667 | AC35: -0.001241669538 | AD35: 0 | AE35: 0 | AF35: 0.03 | AG35: 0.0156 | AH35: 0.0123 | AJ35: 251721.8924 | AV35: 0.25 | AW35: 251721.8924 | AX35: 0.03 | AY35: 0.0156 | AZ35: 0.0123 | BA35: 1.257163018
B36: 2038 | E36: 0.0025 | F36: 0.0021 | G36: -0.0008277672342 | H36: 0.0025 | I36: 262342.4946 | J36: 28175.99254 | K36: 234166.5021 | L36: 0.8925984424 | M36: 262345.9001 | N36: 260576.0359 | O36: 232400.0434 | P36: 0.8918703616 | Q36: 260579.4414 | R36: 259273.5492 | S36: 230200.6432 | T36: 28175.99254 | U36: 0.8878678288 | V36: 0.025 | W36: 259273.5492 | X36: 259273.5492 | Y36: 0.03 | Z36: 0.0021 | AA36: -0.002927767234 | AC36: -0.001252873393 | AD36: 0 | AE36: 0 | AF36: 0.03 | AG36: 0.0157 | AH36: 0.0122 | AJ36: 259273.5492 | AV36: 0.25 | AW36: 259273.5492 | AX36: 0.03 | AY36: 0.0157 | AZ36: 0.0122 | BA36: 1.269734649
B37: 2039 | E37: 0.0025 | F37: 0.0021 | G37: -0.0008405296176 | H37: 0.0025 | I37: 270226.7691 | J37: 28880.39235 | K37: 241346.3768 | L37: 0.8931253464 | M37: 270230.2357 | N37: 268406.1483 | O37: 239525.7559 | P37: 0.8924004069 | Q37: 268409.6151 | R37: 267051.7557 | S37: 237164.2521 | T37: 28880.39235 | U37: 0.8880834785 | V37: 0.025 | W37: 267051.7557 | X37: 267051.7557 | Y37: 0.03 | Z37: 0.0021 | AA37: -0.002940529618 | AC37: -0.001264726878 | AD37: 0 | AE37: 0 | AF37: 0.03 | AG37: 0.0158 | AH37: 0.0121 | AJ37: 267051.7557 | AV37: 0.25 | AW37: 267051.7557 | AX37: 0.03 | AY37: 0.0158 | AZ37: 0.0121 | BA37: =BA36*(1+$BA$5) -> 1.282431995
B38: 2040 | E38: 0.0025 | F38: 0.0021 | G38: -0.0008539251836 | H38: 0.0025 | I38: 278348.7067 | J38: 29602.40216 | K38: 248746.3045 | L38: 0.8936499382 | M38: 278352.235 | N38: 276472.2638 | O38: 246869.8616 | P38: 0.8929281304 | Q38: 276475.7925 | R38: 275063.3083 | S38: 244338.4211 | T38: 29602.40216 | U38: 0.8882988523 | V38: 0.025 | W38: 275063.3083 | X38: 275063.3083 | Y38: 0.03 | Z38: 0.0021 | AA38: -0.002953925184 | AC38: -0.001277222305 | AD38: 0 | AE38: 0 | AF38: 0.03 | AG38: 0.0159 | AH38: 0.012 | AJ38: 275063.3083 | AV38: 0.25 | AW38: 275063.3083 | AX38: 0.03 | AY38: 0.0159 | AZ38: 0.012 | BA38: =BA37*(1+$BA$5) -> 1.295256315
B39: 2041 | E39: 0.0025 | F39: 0.0021 | G39: -0.0008679462962 | H39: 0.0025 | I39: 286715.4842 | J39: 30342.46222 | K39: 256373.0219 | L39: 0.8941722234 | M39: 286719.0748 | N39: 284781.5083 | O39: 254439.0461 | P39: 0.8934535378 | Q39: 284785.0996 | R39: 283315.2076 | S39: 251729.5092 | T39: 30342.46222 | U39: 0.8885139326 | V39: 0.025 | W39: 283315.2076 | X39: 283315.2076 | Y39: 0.03 | Z39: 0.0021 | AA39: -0.002967946296 | AC39: -0.001290351983 | AD39: 0 | AE39: 0 | AF39: 0.03 | AG39: 0.016 | AH39: 0.0119 | AJ39: 283315.2076 | AV39: 0.25 | AW39: 283315.2076 | AX39: 0.03 | AY39: 0.016 | AZ39: 0.0119 | BA39: 1.308208878
B40: 2042 | E40: 0.0025 | F40: 0.0021 | G40: -0.0008825853164 | H40: 0.0025 | I40: 295334.4951 | J40: 31101.02377 | K40: 264233.4713 | L40: 0.8946922074 | M40: 295338.1487 | N40: 293341.2232 | O40: 262240.1994 | P40: 0.8939766343 | Q40: 293344.8777 | R40: 291814.6638 | S40: 259344.0673 | T40: 31101.02377 | U40: 0.8887287019 | V40: 0.025 | W40: 291814.6638 | X40: 291814.6638 | Y40: 0.03 | Z40: 0.0021 | AA40: -0.002982585316 | AC40: -0.001304108217 | AD40: 0 | AE40: 0 | AF40: 0.03 | AG40: 0.0161 | AH40: 0.0118 | AJ40: 291814.6638 | AV40: 0.25 | AW40: 291814.6638 | AX40: 0.03 | AY40: 0.0161 | AZ40: 0.0118 | BA40: 1.321290967
B41: 2043 | E41: 0.0025 | F41: 0.0021 | G41: -0.0008978346033 | H41: 0.0025 | I41: 304213.3565 | J41: 31878.54937 | K41: 272334.8072 | L41: 0.8952098957 | M41: 304217.0736 | N41: 302158.9714 | O41: 270280.422 | P41: 0.8944974256 | Q41: 302162.6896 | R41: 300569.1037 | S41: 267188.8436 | T41: 31878.54937 | U41: 0.8889431426 | V41: 0.025 | W41: 300569.1037 | X41: 300569.1037 | Y41: 0.03 | Z41: 0.0021 | AA41: -0.002997834603 | AC41: -0.001318483312 | AD41: 0 | AE41: 0 | AF41: 0.03 | AG41: 0.0162 | AH41: 0.0117 | AJ41: 300569.1037 | AV41: 0.25 | AW41: 300569.1037 | AX41: 0.03 | AY41: 0.0162 | AZ41: 0.0117 | BA41: 1.334503877
B42: 2044 | E42: 0.0025 | F42: 0.0021 | G42: -0.0009136865139 | H42: 0.0025 | I42: 313359.9156 | J42: 32675.5131 | K42: 280684.4025 | L42: 0.8957252939 | M42: 313363.6966 | N42: 311242.5444 | O42: 278567.0313 | P42: 0.895015917 | Q42: 311246.3268 | R42: 309586.1768 | S42: 275270.7897 | T42: 32675.5131 | U42: 0.8891572373 | V42: 0.025 | W42: 309586.1768 | X42: 309586.1768 | Y42: 0.03 | Z42: 0.0021 | AA42: -0.003013686514 | AC42: -0.001333469567 | AD42: 0 | AE42: 0 | AF42: 0.03 | AG42: 0.0163 | AH42: 0.0116 | AJ42: 309586.1768 | AV42: 0.25 | AW42: 309586.1768 | AX42: 0.03 | AY42: 0.0163 | AZ42: 0.0116 | BA42: 1.347848915
B43: 2045 | E43: 0.0025 | F43: 0.0021 | G43: -0.0009301447876 | H43: 0.0025 | I43: 322782.2564 | J43: 33492.40093 | K43: 289289.8555 | L43: 0.8962384076 | M43: 322786.1168 | N43: 320599.9691 | O43: 287107.5682 | P43: 0.8955321143 | Q43: 320603.8311 | R43: 318873.7621 | S43: 283597.0666 | T43: 33492.40093 | U43: 0.8893709683 | V43: 0.025 | W43: 318873.7621 | X43: 318873.7621 | Y43: 0.03 | Z43: 0.0021 | AA43: -0.003030144788 | AC43: -0.001349070736 | AD43: 0 | AE43: 0 | AF43: 0.03 | AG43: 0.01639090909 | AH43: 0.01150909091 | AJ43: 318873.7621 | AV43: 0.25 | AW43: 318873.7621 | AX43: 0.03 | AY43: 0.0164 | AZ43: 0.0115 | BA43: 1.361327404
B44: 2046 | E44: 0.0025 | F44: 0.0021 | G44: -0.0009472135711 | H44: 0.0025 | I44: 332488.7074 | J44: 34329.71095 | K44: 298158.9965 | L44: 0.8967492424 | M44: 332492.6798 | N44: 330239.5149 | O44: 295909.8039 | P44: 0.8960460229 | Q44: 330243.4888 | R44: 328439.975 | S44: 292175.0512 | T44: 34329.71095 | U44: 0.8895843181 | V44: 0.025 | W44: 328439.975 | X44: 328439.975 | Y44: 0.03 | Z44: 0.0021 | AA44: -0.003047213571 | AC44: -0.00136529098 | AD44: 0 | AE44: 0 | AF44: 0.03 | AG44: 0.01647272727 | AH44: 0.01142727273 | AJ44: 328439.975 | AV44: 0.25 | AW44: 328439.975 | AX44: 0.03 | AY44: 0.0165 | AZ44: 0.0114 | BA44: 1.374940679
B45: 2047 | E45: 0.0025 | F45: 0.0021 | G45: -0.0009648974191 | H45: 0.0025 | I45: 342487.8488 | J45: 35187.95372 | K45: 307299.8951 | L45: 0.8972578039 | M45: 342491.9855 | N45: 340169.7009 | O45: 304981.7472 | P45: 0.8965576486 | Q45: =PRODUCT(N40:N50)^(1/11) -> 340173.8387 | R45: 338293.1742 | S45: 301012.3425 | T45: 35187.95372 | U45: 0.8897972689 | V45: 0.025 | W45: =PRODUCT(R40:R50)^(1/11) -> 338293.1742 | X45: 338293.1742 | Y45: 0.03 | Z45: 0.0021 | AA45: -0.003064897419 | AC45: -0.00138213487 | AD45: 0 | AE45: 0 | AF45: 0.03 | AG45: 0.01654545455 | AH45: 0.01135454545 | AJ45: 338293.1742 | AV45: 0.25 | AW45: 338293.1742 | AX45: 0.03 | AY45: 0.0166 | AZ45: 0.0113 | BA45: 1.388690085
B46: 2048 | E46: 0.0025 | F46: 0.0021 | G46: -0.0009832012943 | H46: 0.0025 | I46: 352788.5197 | J46: 36067.65257 | K46: 316720.8671 | L46: 0.8977640979 | M46: 352792.8955 | N46: 350399.3038 | O46: 314331.6512 | P46: 0.897066997 | Q46: 350403.6798 | R46: 348441.9695 | S46: 310116.7687 | T46: 36067.65257 | U46: 0.8900098033 | V46: 0.025 | W46: 348441.9695 | X46: 348441.9695 | Y46: 0.03 | Z46: 0.0021 | AA46: -0.003083201294 | AC46: -0.00139960739 | AD46: 0 | AE46: 0 | AF46: 0.03 | AG46: 0.01660909091 | AH46: 0.01129090909 | AJ46: 348441.9695 | AV46: 0.25 | AW46: 348441.9695 | AX46: 0.03 | AY46: 0.0167 | AZ46: 0.0112 | BA46: 1.402576986
B47: 2049 | E47: 0.0025 | F47: 0.0021 | G47: -0.001002130569 | H47: 0.0025 | I47: 363399.8264 | J47: 36969.34388 | K47: 326430.4825 | L47: 0.89826813 | M47: 363404.5419 | N47: 360937.365 | O47: 323968.0211 | P47: 0.8975740739 | Q47: 360942.079 | R47: 358895.2286 | S47: 319496.3935 | T47: 36969.34388 | U47: 0.8902219035 | V47: 0.025 | W47: 358895.2286 | X47: 358895.2286 | Y47: 0.03 | Z47: 0.0021 | AA47: -0.003102130569 | AC47: -0.001417713934 | AD47: 0 | AE47: 0 | AF47: 0.03 | AG47: 0.01666363636 | AH47: 0.01123636364 | AJ47: 358895.2286 | AV47: 0.25 | AW47: 358895.2286 | AX47: 0.03 | AY47: 0.0168 | AZ47: 0.0111 | BA47: 1.416602756
B48: 2050 | E48: 0.0025 | F48: 0.0021 | G48: -0.001021691023 | H48: 0.0025 | I48: 374331.3401 | J48: 37893.57748 | K48: 336437.7626 | L48: 0.8987699575 | M48: 374336.3349 | N48: 371793.3878 | O48: 333899.8103 | P48: 0.8980789365 | Q48: 371798.3799 | R48: 369662.0854 | S48: =S47*(1+F48+AZ48+AY48) -> 329081.2853 | T48: 37893.57748 | U48: 0.8902219035 | V48: 0.025 | W48: 369662.0854 | X48: 369662.0854 | Y48: 0.03 | Z48: 0.0021 | AA48: -0.003121691023 | AC48: =AV48*(AJ48-Q48)/Q48 -> -0.001436460309 | AD48: 0 | AE48: 0 | AF48: 0.03 | AG48: 0.01670909091 | AH48: 0.01119090909 | AJ48: 369662.0854 | AV48: 0.25 | AW48: 369662.0854 | AX48: 0.03 | AY48: =AY47 -> 0.0168 | AZ48: =AZ47 -> 0.0111 | BA48: 1.430768784
B49: 2051 | E49: 0.0025 | F49: 0.0021 | G49: -0.001041888849 | H49: 0.0025 | I49: 385592.7498 | J49: 38840.91692 | K49: 346751.8329 | L49: 0.8992695871 | M49: 385597.9718 | N49: 382976.9923 | O49: 344136.0754 | P49: 0.8985815919 | Q49: 382982.2108 | R49: 380751.948 | S49: 338953.7239 | T49: 38840.91692 | U49: 0.8902219035 | V49: 0.025 | W49: 380751.948 | X49: 380751.948 | Y49: 0.03 | Z49: 0.0021 | AA49: -0.003141888849 | AC49: -0.001455852734 | AD49: 0 | AE49: 0 | AF49: 0.03 | AG49: 0.01674545455 | AH49: 0.01115454545 | AJ49: 380751.948 | AV49: 0.25 | AW49: 380751.948 | AX49: 0.03 | AY49: 0.0168 | AZ49: 0.0111 | BA49: 1.445076471
B50: 2052 | E50: 0.0025 | F50: 0.0021 | G50: -0.001062730648 | H50: 0.0025 | I50: 397194.0384 | J50: 39811.93984 | K50: 357382.0985 | L50: 0.8997670257 | M50: 397199.4459 | N50: 394498.0903 | O50: 354686.1505 | P50: 0.8990820467 | Q50: 394503.4938 | R50: 392174.5064 | S50: 349122.3356 | T50: 39811.93984 | U50: 0.8902219035 | V50: 0.025 | W50: 392174.5064 | X50: 392174.5064 | Y50: 0.03 | Z50: 0.0021 | AA50: -0.003162730648 | AC50: -0.00147589784 | AD50: 0 | AE50: 0 | AF50: 0.03 | AG50: 0.01677272727 | AH50: 0.01112727273 | AJ50: 392174.5064 | AV50: 0.25 | AW50: 392174.5064 | AX50: 0.03 | AY50: 0.0168 | AZ50: 0.0111 | BA50: 1.459527236
B51: 2053 | E51: 0.0025 | F51: 0.0021 | G51: -0.001084223431 | H51: 0.0025 | I51: 409145.4913 | J51: 40807.23833 | K51: 368338.2529 | L51: 0.9002622803 | M51: 409151.0551 | N51: 406366.8944 | O51: 365559.656 | P51: 0.8995803081 | Q51: 406372.454 | R51: 403939.7416 | S51: 359596.0057 | T51: 40807.23833 | U51: 0.8902219035 | V51: 0.025 | W51: 403939.7416 | X51: 403939.7416 | Y51: 0.03 | Z51: 0.0021 | AA51: -0.003184223431 | AC51: -0.001496602673 | AD51: 0 | AE51: 0 | AF51: 0.03 | AG51: 0.01679090909 | AH51: 0.01110909091 | AJ51: 403939.7416 | AV51: 0.25 | AW51: 403939.7416 | AX51: 0.03 | AY51: 0.0168 | AZ51: 0.0111 | BA51: 1.474122509
B52: 2054 | E52: 0.0025 | F52: 0.0021 | G52: -0.001106374621 | H52: 0.0025 | I52: 421457.7061 | J52: 41827.41929 | K52: 379630.2869 | L52: 0.9007553577 | M52: 421463.4122 | N52: 418593.9267 | O52: 376766.5074 | P52: 0.9000763828 | Q52: 418599.6284 | R52: 416057.9339 | S52: 370383.8859 | T52: 41827.41929 | U52: 0.8902219035 | V52: 0.025 | W52: 416057.9339 | X52: 416057.9339 | Y52: 0.03 | Z52: 0.0021 | AA52: -0.003206374621 | AC52: -0.00151797469 | AD52: 0 | AE52: 0 | AF52: 0.03 | AG52: 0.0168 | AH52: 0.0111 | AJ52: 416057.9339 | AV52: 0.25 | AW52: 416057.9339 | AX52: 0.03 | AY52: 0.0168 | AZ52: 0.0111 | BA52: 1.488863734
B53: 2055 | E53: 0.0025 | F53: 0.0021 | G53: -0.001129192054 | H53: 0.0025 | I53: 434141.602 | J53: 42873.10478 | K53: 391268.4972 | L53: 0.9012462649 | M53: 434147.4539 | N53: 431190.0285 | O53: 388316.9237 | P53: 0.9005702777 | Q53: 431195.876 | R53: 428539.6719 | S53: 381495.4024 | T53: 42873.10478 | U53: 0.8902219035 | V53: 0.025 | W53: 428539.6719 | X53: 428539.6719 | Y53: 0.03 | Z53: 0.0021 | AA53: -0.003229192054 | AC53: -0.001540021766 | AD53: 0 | AE53: 0 | AF53: 0.03 | AG53: 0.0168 | AH53: 0.0111 | AJ53: 428539.6719 | AV53: 0.25 | AW53: 428539.6719 | AX53: 0.03 | AY53: 0.0168 | AZ53: 0.0111 | BA53: 1.503752371
B54: 2056 | E54: 0.0025 | F54: 0.0021 | G54: -0.001254672193 | H54: 0.0025 | I54: 447208.4291 | J54: 43944.93239 | K54: 403263.4967 | L54: 0.9017350087 | M54: 446198.7534 | N54: 444166.3701 | O54: 400221.4377 | P54: 0.9010619998 | Q54: 443164.3417 | R54: 441395.862 | S54: 392940.2645 | T54: 43944.93239 | U54: 0.8902219035 | V54: 0.025 | W54: 440211.3512 | X54: 441395.862 | Y54: 0.03 | Z54: 0.0021 | AA54: -0.003354672193 | AC54: -0.001665855178 | AD54: 0 | AE54: 0 | AF54: 0.03 | AG54: 0.0168 | AH54: 0.0111 | AJ54: 440211.3512 | AV54: 0.25 | AW54: 441395.862 | AX54: 0.03 | AY54: 0.0168 | AZ54: 0.0111 | BA54: 1.518789895
B55: 2057 | E55: 0.0025 | F55: 0.0021 | G55: -0.001483574773 | H55: 0.0025 | I55: 460669.7789 | J55: 45043.5557 | K55: 415626.2232 | L55: 0.9022215961 | M55: 457546.0143 | N55: 457534.4604 | O55: 412490.9047 | P55: 0.901551556 | Q55: 454434.2888 | R55: 454637.7379 | S55: 404728.4724 | T55: 45043.5557 | U55: 0.8902219035 | V55: 0.025 | W55: 450987.4129 | X55: 454637.7379 | Y55: 0.03 | Z55: 0.0021 | AA55: -0.003583574773 | AC55: -0.001896245482 | AD55: 0 | AE55: 0 | AF55: 0.03 | AG55: 0.0168 | AH55: 0.0111 | AJ55: 450987.4129 | AV55: 0.25 | AW55: 454637.7379 | AX55: 0.03 | AY55: 0.0168 | AZ55: 0.0111 | BA55: 1.533977794
B56: 2058 | E56: 0.0025 | F56: 0.0021 | G56: -0.001816544609 | H56: 0.0025 | I56: 474537.5946 | J56: 46169.6446 | K56: 428367.95 | L56: 0.902706034 | M56: 468121.0566 | N56: 471306.1577 | O56: 425136.5131 | P56: 0.9020389531 | Q56: 464938.0703 | R56: 468276.87 | S56: 416870.3266 | T56: 46169.6446 | U56: 0.8902219035 | V56: 0.025 | W56: 460787.3886 | X56: 468276.87 | Y56: 0.03 | Z56: 0.0021 | AA56: -0.003916544609 | AC56: -0.002231846522 | AD56: 0 | AE56: 0 | AF56: 0.03 | AG56: 0.0168 | AH56: 0.0111 | AJ56: 460787.3886 | AV56: 0.25 | AW56: 468276.87 | AX56: 0.03 | AY56: 0.0168 | AZ56: 0.0111 | BA56: 1.549317572
B57: 2059 | E57: 0.0025 | F57: 0.0021 | G57: -0.002254108418 | H57: 0.0025 | I57: 488824.1819 | J57: 47323.88571 | K57: 441500.2961 | L57: 0.9031883293 | M57: 477859.5073 | N57: 485493.6797 | O57: 438169.794 | P57: 0.9025241982 | Q57: 474611.8133 | R57: 482325.1761 | S57: 429376.4364 | T57: 47323.88571 | U57: 0.8902219035 | V57: 0.025 | W57: 469536.8989 | X57: 482325.1761 | Y57: 0.03 | Z57: 0.0021 | AA57: -0.004354108418 | AC57: -0.002673192189 | AD57: 0 | AE57: 0 | AF57: 0.03 | AG57: 0.0168 | AH57: 0.0111 | AJ57: 469536.8989 | AV57: 0.25 | AW57: 482325.1761 | AX57: 0.03 | AY57: 0.0168 | AZ57: 0.0111 | BA57: 1.564810747
B58: 2060 | E58: 0.0025 | F58: 0.0021 | G58: -0.002796671787 | H58: 0.0025 | I58: 503542.2195 | J58: 48506.98285 | K58: 455035.2366 | L58: 0.903668489 | M58: =PRODUCT(I53:I63)^(1/11) -> 486701.4611 | N58: 500109.6151 | O58: 451602.6322 | P58: 0.903007298 | Q58: 483396.0739 | R58: 496794.9314 | S58: 442257.7295 | T58: 48506.98285 | U58: 0.8902219035 | V58: 0.025 | W58: =PRODUCT(R53:R63)^(1/11) -> 477168.5919 | X58: 496794.9314 | Y58: 0.03 | Z58: 0.0021 | AA58: -0.004896671787 | AC58: -0.00322069334 | AD58: 0 | AE58: 0 | AF58: 0.03 | AG58: 0.0168 | AH58: 0.0111 | AJ58: 477168.5919 | AV58: 0.25 | AW58: 496794.9314 | AX58: 0.03 | AY58: 0.0168 | AZ58: 0.0111 | BA58: 1.580458855
B59: 2061 | E59: 0.0025 | H59: 0.0025 | I59: 505892.4821 | J59: 49719.65743 | K59: 456172.8247 | L59: 0.9017189241 | N59: 502451.2962 | O59: 452731.6388 | P59: 0.9010458172 | R59: 496794.9314 | S59: 442257.7295 | T59: 49719.65743 | U59: 0.8902219035 | V59: 0.025 | X59: 496794.9314 | AJ59: =PRODUCT(AW54:AW63)^(1/11) -> 146781.9541 | AW59: =AW58*(1+$AW$5) -> 496794.9314
B60: 2062 | E60: 0.0025 | H60: 0.0025 | I60: 508275.9056 | J60: 50962.64886 | K60: 457313.2568 | L60: 0.8997342815 | N60: 504826.1168 | O60: 453863.4679 | P60: 0.8990491039 | R60: 496794.9314 | S60: 442257.7295 | T60: 50962.64886 | U60: 0.8902219035 | V60: 0.025 | X60: 496794.9314 | AJ60: =PRODUCT(AW55:AW64)^(1/11) -> 45030.46792 | AW60: =AW59*(1+$AW$5) -> 496794.9314
B61: 2063 | E61: 0.0025 | H61: 0.0025 | I61: 510693.255 | J61: 52236.71508 | K61: 458456.5399 | L61: 0.8977141081 | N61: 507234.8417 | O61: 454998.1266 | P61: 0.8970167055 | R61: 496794.9314 | S61: 442257.7295 | T61: 52236.71508 | U61: 0.8902219035 | V61: 0.025 | X61: 496794.9314 | AJ61: =PRODUCT(AW56:AW65)^(1/11) -> 13777.58929 | AW61: =AW60*(1+$AW$5) -> 496794.9314
B62: 2064 | E62: 0.0025 | H62: 0.0025 | I62: 513145.3142 | J62: 53542.63296 | K62: 459602.6812 | L62: 0.8956579521 | N62: 509678.2549 | O62: 456135.6219 | P62: 0.8949481708 | R62: 496794.9314 | S62: 442257.7295 | T62: 53542.63296 | U62: 0.8902219035 | V62: 0.025 | X62: 496794.9314 | AJ62: =PRODUCT(AW57:AW66)^(1/11) -> 4204.09952 | AW62: =AW61*(1+$AW$5) -> 496794.9314
B63: 2065 | E63: 0.0025 | H63: 0.0025 | I63: 515632.8867 | J63: 54881.19878 | K63: 460751.6879 | L63: 0.8935653637 | N63: 512157.1597 | O63: 457275.961 | P63: 0.8928430507 | R63: 496794.9314 | S63: 442257.7295 | T63: 54881.19878 | U63: 0.8902219035 | V63: 0.025 | X63: 496794.9314 | AJ63: =PRODUCT(AW58:AW67)^(1/11) -> 1279.398159 | AW63: =AW62*(1+$AW$5) -> 496794.9314
D66: Gobierno
D67: AWG
D68: Usuario

Sheet Iterativo_C (hidden)
E2: Solución convergente: Gastos aumentan linealmente desde 2013 hasta equiparar ingresos en 2026. | X2: irrestricto | Y2: =M12*(1+F13+AJ13+AI13) | AY2: GDP growth
E3: Solución supuesto IRP fijo: Se elimina la circularidad con un IRP subyacente de 0.25 para toda la serie. | AZ3: 0.02
E4: Escenario acotado: variables derivadas de imponer límites mínimos y máximos legales | X4: acotado | Y4: =I12*(1+E13+AI13+AJ13) | AZ4: Tasa inflación
AZ5: 0.02
D6: IRP - derivado con ajuste legal | E6: IRP - legal | F6: IRP - fórmula | G6: IRP fijo | H6: IRP fijo aux | I6: G acotado | J6: G pensiones acotado | K6: G pensiones / G acotada | L6: G* acotado | M6: G fijo | N6: G pensiones fijos | O6: G pensiones / G sol fija | P6: G* fijo | Q6: G | R6: G pensiones | S6: Otros gastos | T6: G pensiones / G | V6: G* | W6: Solución inicial para G | X6: G % anual | Y6: gi-gp-gs | Z6: alfa * (I*-G*)/G* - acotado | AA6: (I*-G*/G)*alfa | AB6: alfa * (I*-G*)/G* - fijo | AC6: alfa * (I*-G*)/G* | AD6: (I*-G*)/G* | AE6: Gi | AF6: Gp | AG6: Gs | AH6: IRP + Gp + Gs | AI6: I* | AJ6: Saldo estructural acotado | AK6: Saldo estructural | AL6: Saldo nominal acotado | AM6: Saldo nominal | AN6: Saldo estructural acotado (%PIB) | AO6: Saldo estructural (%PIB) | AP6: Saldo nominal acotado, %PIB | AQ6: Saldo nominal, %PIB | AR6: Desvío sobre ajuste teórico (der) | AS6: Desvío sobre ajuste teórico, %PIB (der) | AT6: PIB nominal | AU6: alfa | AV6: I nivel | AW6: I % anual | AX6: P | AY6: S | AZ6: pi | BA6: Geomean Saldo 2015
B7: =B8-1 -> 2009 | I7: =Q7 -> 104399.28 | J7: =R7 -> 89972.08 | K7: =J7/I7 -> 0.8618074761 | M7: =Q7 -> 104399.28 | N7: =M7-S7 -> 89972.08 | O7: =N7/M7 -> 0.8618074761 | Q7: =Input!R38 -> 104399.28 | R7: =Input!V38 -> 89972.08 | S7: =Q7-R7 -> 14427.2 | T7: =R7/Q7 -> 0.8618074761 | AL7: =AV7-I7 -> 8588.04 | AT7: =Input!BA13 -> 1079.034 | AU7: =AU8 -> 0.25 | AV7: =Input!AB13 -> 112987.32 | AZ7: =AZ8/(1+$AZ$5) -> 0.9057308098 | BA7: =$AI$13-$V$13 -> 
A8: t-4 | B8: =B9-1 -> 2010 | I8: 109544.42 | J8: 95701 | K8: =J8/I8 -> 0.8736273377 | M8: 109544.42 | N8: 95701 | O8: =N8/M8 -> 0.8736273377 | Q8: =Input!R39 -> 109544.42 | R8: =Input!V39 -> 95701 | S8: =Q8-R8 -> 13843.42 | T8: =R8/Q8 -> 0.8736273377 | AL8: 2757.38 | AT8: =Input!BA14 -> 1080.913 | AU8: =AU9 -> 0.25 | AV8: =Input!AB14 -> 112301.8 | AW8: =AV8/AV7-1 -> -0.006067229491 | AX8: =IF(Escenarios!B4="Usuario_externo",Resultados_aux!I16/100,Input!AL39) -> 0.01557515163 | AY8: =Resultados_aux!J16/100 -> 0.018 | AZ8: =AZ9/(1+$AZ$5) -> 0.923845426
A9: t-3 | B9: =B10-1 -> 2011 | I9: 112665.62 | J9: 99533.71 | K9: 0.883443503 | M9: 112665.62 | N9: 99533.71 | O9: 0.883443503 | Q9: =Input!R40 -> 112665.62 | R9: =Input!V40 -> 99533.71 | S9: 13131.91 | T9: 0.883443503 | AL9: -299.85 | AT9: =Input!BA15 -> 1075.147 | AU9: =AU10 -> 0.25 | AV9: =Input!AB15 -> 112365.77 | AW9: 0.0005696257763 | AX9: =Resultados_aux!I17/100 -> 0.01398791229 | AY9: =Resultados_aux!J17/100 -> 0.018 | AZ9: =AZ10/(1+$AZ$5) -> 0.9423223345
A10: t-2 | B10: =B11-1 -> 2012 | I10: 115446.18 | J10: 103503.79 | K10: 0.8965544811 | M10: 115446.18 | N10: 103503.79 | O10: 0.8965544811 | Q10: =Input!R41 -> 115446.18 | R10: =Input!V41 -> 103503.79 | S10: 11942.39 | T10: 0.8965544811 | AL10: -5865.85 | AT10: =Input!BA16 -> 1055.158 | AU10: =AU11 -> 0.25 | AV10: =Input!AB16 -> 109580.33 | AW10: -0.02478904385 | AX10: =Resultados_aux!I18/100 -> 0.01543324163 | AY10: =Resultados_aux!J18/100 -> 0.017 | AZ10: =AZ11/(1+$AZ$5) -> 0.9611687812
A11: t-1 | B11: =B12-1 -> 2013 | I11: 119950.43 | J11: 108564.3 | K11: 0.905076372 | M11: 119950.43 | N11: 108564.3 | O11: 0.905076372 | Q11: =Input!R42 -> 119950.43 | R11: =Input!V42 -> 108564.3 | S11: 11386.13 | T11: 0.905076372 | AL11: -9740.32 | AT11: =Input!BA17 -> 1049.181 | AU11: =AU12 -> 0.25 | AV11: =Input!AB17 -> 110210.11 | AW11: 0.005747199338 | AX11: =Resultados_aux!I19/100 -> 0.01623682472 | AY11: =Resultados_aux!J19/100 -> 0.017 | AZ11: =AZ12/(1+$AZ$5) -> 0.9803921569
A12: t | B12: 2014 | H12: 0.025 | I12: 124048 | J12: =R12 -> 112201.61 | K12: 0.9045015639 | L12: =PRODUCT(I7:I17)^(1/11) ->  | M12: 124048 | N12: =M12-S12 -> 112201.61 | O12: 0.9045015639 | P12: =PRODUCT(M7:M17)^(1/11) ->  | Q12: =Input!R43 -> 124048 | R12: =Input!V43 -> 112201.61 | S12: 11846.39 | T12: 0.9045015639 | U12: =S12/S11-1 -> 0.04042286536 | V12: =PRODUCT(Q7:Q17)^(1/11) ->  | Y12: =AE12-AF12-AG12 ->  | Z12: =AU12*(AI12-L12)/L12 ->  | AC12: =AU12*(AI12-V12)/V12 ->  | AD12: =(AI12-V12)/V12 ->  | AE12: =AVERAGE(AW7:AW17) ->  | AF12: =AVERAGE(AX7:AX17) ->  | AG12: =AVERAGE(AY7:AY17) ->  | AH12: =AG12+AF12+H12 ->  | AI12: =PRODUCT(AV7:AV17)^(1/11) ->  | AL12: -10423.43739 | AT12: =Input!BA18 -> 1064.148322 | AU12: 0.25 | AV12: =Input!AB18 -> 113624.5626 | AW12: 0.03098130116 | AX12: =Resultados_aux!I20/100 -> 0.01271118169 | AY12: =Resultados_aux!J20/100 -> 0.01715 | AZ12: 1
A13: =$A$12&"+"&B13-2014 -> t+1 | B13: =B12+1 -> 2015 | D13: =Y13+Z13 ->  | E13: =IF(ISNUMBER(IF(Y13+Z13>0.025,0.025,IF(Y13+Z13<0.0025,0.0025,Y13+Z13))),IF(Y13+Z13>0.025,0.025,IF(Y13+Z13<0.0025,0.0025,Y13+Z13)),0.0025) -> 0.0025 | F13: =IF(ISNUMBER(Y13+AC13),Y13+AC13,0.025) -> 0.025 | G13: =Y13+AB13 ->  | H13: 0.0025 | I13: =J13+S13 -> 128016.3097 | J13: =IF(ISNUMBER(J12*((1+E13)*(1+AX13)*(1+AY13))),J12*((1+E13)*(1+AX13)*(1+AY13)),W13) -> 115702.2796 | K13: 0.9038088959 | M13: =N13+S13 -> 128016.3097 | N13: =N12*((1+H13)*(1+AX13)*(1+AY13)) -> 115702.2796 | O13: 0.9038088959 | Q13: =R13+S13 -> 130613.119 | R13: =R12*((1+F13)*(1+AY13)*(1+AX13)) -> 118299.0888 | S13: =S12*(1+U13) -> 12314.03018 | T13: 0.9057213374 | U13: =($U$23-$U$12)/11+U12 -> 0.03947533215 | W13: =($W$24-$Q$12)/12+Q12 ->  | AA13: =AU12*(AI13-L13)/L13 ->  | AB13: =AU13*(AI13-P13)/P13 ->  | AF13: =AVERAGE(AX8:AX18) ->  | AG13: =AVERAGE(AY8:AY18) ->  | AI13: =PRODUCT(AV8:AV18)^(1/11) ->  | AJ13: =AI13-L13 ->  | AK13: =AI13-V13 ->  | AL13: =AV13-I13 -> -6507.658946 | AM13: =AV13-Q13 -> -9104.468213 | AN13: =AJ13/$AT13/1000 ->  | AO13: =AK13/$AT13/1000 ->  | AP13: =AL13/$AT13/1000 -> -0.005948609253 | AQ13: =AM13/$AT13/1000 -> -0.008322335927 | AR13: =(SUM($AM$13:AM13)-SUM($AL$13:AL13)) -> -2596.809267 | AS13: =(SUM($AQ$13:AQ13)-SUM($AP$13:AP13)) -> -0.002373726675 | AT13: =Input!BA19 -> 1093.979898 | AU13: 0.25 | AV13: =Input!AB19 -> 121508.6508 | AW13: 0.06938718176 | AX13: =Resultados_aux!I21/100 -> 0.01292786321 | AY13: =Resultados_aux!J21/100 -> 0.0155 | AZ13: =AZ12*(1+$AZ$5) -> 1.02 | BA13: =$AI$13-$V$13 ->  | BB13: ΔI*/I*-ΔG*/G* | BC13: ΔI/I-ΔG/G | BD13: ΔI/I-ΔGa/Ga
A14: =$A$12&"+"&B14-2014 -> t+2 | B14: =B13+1 -> 2016 | E14: =IF(ISNUMBER(IF(Y14+Z14>0.025,0.025,IF(Y14+Z14<0.0025,0.0025,Y14+Z14))),IF(Y14+Z14>0.025,0.025,IF(Y14+Z14<0.0025,0.0025,Y14+Z14)),0.0025) -> 0.0025 | F14: =IF(ISNUMBER(Y14+AC14),Y14+AC14,0.025) -> 0.025 | G14: =Y14+AB14 ->  | H14: 0.0025 | J14: =IF(ISNUMBER(J13*((1+E14)*(1+AX14)*(1+AY14))),J13*((1+E14)*(1+AX14)*(1+AY14)),W14) ->  | L14: =PRODUCT(I9:I19)^(1/11) ->  | M14: =N14+S14 ->  | N14: =N13*((1+H14)*(1+AX14)*(1+AY14)) ->  | Q14: =R14+S14 ->  | R14: =R13*((1+F14)*(1+AY14)*(1+AX14)) ->  | S14: =S13*(1+U14) -> 12788.46266 | U14: =($U$23-$U$12)/11+U13 -> 0.03852779893 | V14: =PRODUCT(Q9:Q19)^(1/11) ->  | W14: =($W$24-$Q$12)/12+W13 ->  | X14: =((Q14/Q13)-1) ->  | AB14: =AU14*(AI14-P14)/P14 ->  | AG14: =AVERAGE(AY9:AY19) ->  | AI14: =PRODUCT(AV9:AV19)^(1/11) ->  | AR14: =(SUM($AM$13:AM14)-SUM($AL$13:AL14)) ->  | AS14: =(SUM($AQ$13:AQ14)-SUM($AP$13:AP14)) ->  | AT14: =Input!BA20 -> 1127.966693 | AU14: =AU13 -> 0.25 | AV14: =Input!AB20 ->  | AX14: =Resultados_aux!I22/100 ->  | AY14: =Resultados_aux!J22/100 ->  | AZ14: =AZ13*(1+$AZ$5) -> 1.0404 | BB14: =AI14/AI13-V14/V13 ->  | BC14: =AV14/AV13-Q14/Q13 ->  | BD14: =AV14/AV13-I14/I13 -> 
A15: t+3 | B15: 2017 | E15: 0.0025 | F15: 0.025 | H15: 0.0025 | S15: 13269.05648 | U15: 0.03758026572 | W15: =($W$24-$Q$12)/12+W14 ->  | X15: =((Q15/Q14)-1) ->  | AR15: =(SUM($AM$13:AM15)-SUM($AL$13:AL15)) ->  | AS15: =(SUM($AQ$13:AQ15)-SUM($AP$13:AP15)) ->  | AT15: =Input!BA21 -> 1172.281609 | AU15: 0.25 | AV15: =Input!AB21 ->  | AX15: =Resultados_aux!I23/100 ->  | AY15: =Resultados_aux!J23/100 ->  | AZ15: 1.061208
A16: t+4 | B16: 2018 | E16: 0.0025 | F16: 0.025 | H16: 0.0025 | L16: =PRODUCT(I11:I21)^(1/11) ->  | S16: 13755.13828 | U16: 0.0366327325 | V16: =PRODUCT(Q11:Q21)^(1/11) ->  | AR16: =(SUM($AM$13:AM16)-SUM($AL$13:AL16)) ->  | AS16: =(SUM($AQ$13:AQ16)-SUM($AP$13:AP16)) ->  | AT16: =Input!BA22 -> 1223.114194 | AU16: 0.25 | AV16: =Input!AB22 ->  | AX16: =Resultados_aux!I24/100 ->  | AY16: =Resultados_aux!J24/100 ->  | AZ16: 1.08243216
A17: t+5 | B17: 2019 | E17: 0.0025 | F17: 0.025 | H17: 0.0025 | S17: 14245.99313 | U17: 0.03568519929 | AR17: =(SUM($AM$13:AM17)-SUM($AL$13:AL17)) ->  | AS17: =(SUM($AQ$13:AQ17)-SUM($AP$13:AP17)) ->  | AT17: =Input!BA23 -> 1263.769718 | AU17: 0.25 | AV17: =Input!AB23 ->  | AX17: =Resultados_aux!I25/100 ->  | AY17: =Resultados_aux!J25/100 ->  | AZ17: 1.104080803
A18: t+6 | B18: 2020 | E18: 0.0025 | F18: 0.025 | H18: 0.0025 | S18: 14740.86568 | U18: 0.03473766607 | AG18: =AVERAGE(AY13:AY23) ->  | AR18: =(SUM($AM$13:AM18)-SUM($AL$13:AL18)) ->  | AS18: =(SUM($AQ$13:AQ18)-SUM($AP$13:AP18)) ->  | AT18: =Input!BA24 -> 1310.250981 | AU18: 0.25 | AV18: =Input!AB24 ->  | AX18: =Resultados_aux!I26/100 ->  | AY18: =Resultados_aux!J26/100 ->  | AZ18: 1.126162419
A19: t+7 | B19: 2021 | E19: 0.0025 | F19: 0.025 | H19: 0.0025 | S19: 15238.96149 | U19: 0.03379013286 | AR19: =(SUM($AM$13:AM19)-SUM($AL$13:AL19)) ->  | AS19: =(SUM($AQ$13:AQ19)-SUM($AP$13:AP19)) ->  | AT19: =AT18*($AZ$3+$AZ$5+1) -> 1362.66102 | AU19: 0.25 | AV19: =+AV18*(1+AW19) ->  | AW19: =AW18-($AW$18-$AW$23)/5 ->  | AX19: =AX18+0.0001 ->  | AY19: =AY18-0.0001 ->  | AZ19: 1.148685668
A20: t+8 | B20: 2022 | E20: 0.0025 | F20: 0.025 | H20: 0.0025 | S20: 15739.4486 | U20: 0.03284259964 | AR20: =(SUM($AM$13:AM20)-SUM($AL$13:AL20)) ->  | AS20: =(SUM($AQ$13:AQ20)-SUM($AP$13:AP20)) ->  | AT20: =AT19*($AZ$3+$AZ$5+1) -> 1417.167461 | AU20: 0.25 | AW20: =AW19-($AW$18-$AW$23)/5 ->  | AX20: =AX19+0.0001 ->  | AY20: =AY19-0.0001 ->  | AZ20: 1.171659381
A21: t+9 | B21: 2023 | E21: 0.0025 | F21: 0.025 | H21: 0.0025 | S21: 16241.45936 | U21: 0.03189506643 | AR21: =(SUM($AM$13:AM21)-SUM($AL$13:AL21)) ->  | AS21: =(SUM($AQ$13:AQ21)-SUM($AP$13:AP21)) ->  | AT21: 1473.85416 | AU21: 0.25 | AW21: =AW20-($AW$18-$AW$23)/5 ->  | AX21: =AX20+0.0001 ->  | AZ21: 1.195092569
A22: t+10 | B22: 2024 | E22: 0.0025 | F22: 0.025 | H22: 0.0025 | S22: 16744.09247 | U22: 0.03094753321 | AR22: =(SUM($AM$13:AM22)-SUM($AL$13:AL22)) ->  | AS22: =(SUM($AQ$13:AQ22)-SUM($AP$13:AP22)) ->  | AT22: 1532.808326 | AU22: 0.25 | AW22: =AW21-($AW$18-$AW$23)/5 ->  | AZ22: 1.21899442
A23: t+11 | B23: 2025 | E23: 0.0025 | F23: 0.025 | H23: 0.0025 | S23: 17246.41524 | U23: 0.03 | AR23: =(SUM($AM$13:AM23)-SUM($AL$13:AL23)) ->  | AS23: =(SUM($AQ$13:AQ23)-SUM($AP$13:AP23)) ->  | AT23: 1594.120659 | AU23: 0.25 | AW23: 0.03 | AZ23: 1.243374308
B24: 2026 | E24: 0.0025 | F24: 0.025 | G24: =Y24+Z24 ->  | H24: 0.0025 | Q24: =R24+S24 ->  | S24: 17763.8077 | U24: =U23 -> 0.03 | W24: =AV24 ->  | AU24: 0.25 | AW24: =AW23 -> 0.03 | AZ24: 1.268241795
B25: 2027 | E25: 0.0025 | F25: 0.025 | H25: 0.0025 | Q25: =R25+S25 ->  | S25: 18296.72193 | U25: =U24 -> 0.03 | W25: =AV25 ->  | AU25: 0.25 | AW25: =AW24 -> 0.03 | AZ25: 1.29360663
B26: 2028 | E26: 0.0025 | F26: 0.025 | H26: 0.0025 | S26: 18845.62359 | U26: 0.03 | AC26: =AU26*(AI26-V26)/V26 ->  | AD26: =(AI26-V26)/V26 ->  | AE26: =AVERAGE(AW21:AW31) ->  | AF26: =AVERAGE(AX21:AX31) ->  | AG26: =AVERAGE(AY21:AY31) ->  | AI26: =PRODUCT(AV21:AV31)^(1/11) ->  | AU26: 0.25 | AW26: =AW25 -> 0.03 | AZ26: 1.319478763
B27: 2029 | E27: 0.0025 | F27: 0.025 | H27: 0.0025 | S27: 19410.99229 | U27: 0.03 | AU27: 0.25 | AW27: 0.03 | AZ27: 1.345868338
B28: 2030 | E28: 0.0025 | F28: 0.025 | H28: 0.0025 | S28: 19993.32206 | U28: 0.03 | V28: =PRODUCT(Q23:Q33)^(1/11) ->  | AE28: 0.03 | AU28: 0.25 | AV28: =AV27*(1+AW28) ->  | AW28: 0.03 | AZ28: 1.372785705
B29: 2031 | E29: 0.0025 | F29: 0.025 | H29: 0.0025 | I29: =Q29 ->  | Q29: =W29 ->  | S29: 20593.12173 | U29: 0.03 | AE29: 0.03 | AU29: 0.25 | AW29: 0.03 | AZ29: 1.400241419
B30: 2032 | E30: 0.0025 | F30: 0.025 | H30: 0.0025 | S30: 21210.91538 | U30: 0.03 | AE30: 0.03 | AU30: 0.25 | AW30: 0.03 | AZ30: 1.428246248
B31: 2033 | E31: 0.0025 | F31: 0.025 | H31: 0.0025 | S31: 21847.24284 | U31: 0.03 | AE31: 0.03 | AU31: 0.25 | AW31: 0.03 | AZ31: 1.456811173
B32: 2034 | E32: 0.0025 | F32: 0.025 | H32: 0.0025 | S32: 22502.66012 | U32: 0.03 | AE32: 0.03 | AU32: 0.25 | AW32: 0.03 | AZ32: 1.485947396
B33: 2035 | E33: 0.0025 | F33: 0.025 | H33: 0.0025 | S33: 23177.73993 | U33: 0.03 | AE33: 0.03 | AU33: 0.25 | AW33: 0.03 | AZ33: 1.515666344
B34: 2036 | E34: 0.0025 | F34: 0.025 | H34: 0.0025 | S34: 23873.07212 | U34: 0.03 | AE34: 0.03 | AU34: 0.25 | AW34: 0.03 | AZ34: 1.545979671
B35: 2037 | E35: 0.0025 | F35: 0.025 | H35: 0.0025 | S35: 24589.26429 | U35: 0.03 | AE35: 0.03 | AU35: 0.25 | AW35: 0.03 | AZ35: 1.576899264
B36: 2038 | E36: 0.0025 | F36: 0.025 | H36: 0.0025 | S36: 25326.94222 | U36: 0.03 | AE36: 0.03 | AU36: 0.25 | AW36: 0.03 | AZ36: 1.608437249
B37: 2039 | E37: 0.0025 | F37: 0.025 | H37: 0.0025 | S37: 26086.75048 | U37: 0.03 | AE37: 0.03 | AU37: 0.25 | AW37: 0.03 | AZ37: =AZ36*(1+$AZ$5) -> 1.640605994
B38: 2040 | E38: 0.0025 | F38: 0.025 | H38: 0.0025 | S38: 26869.353 | U38: 0.03 | AE38: 0.03 | AU38: 0.25 | AW38: 0.03 | AZ38: =AZ37*(1+$AZ$5) -> 1.673418114
B39: 2041 | E39: 0.0025 | F39: 0.025 | H39: 0.0025 | S39: 27675.43359 | U39: 0.03 | AE39: 0.03 | AU39: 0.25 | AW39: 0.03 | AZ39: 1.706886477
B40: 2042 | E40: 0.0025 | F40: 0.025 | H40: 0.0025 | S40: 28505.6966 | U40: 0.03 | AE40: 0.03 | AU40: 0.25 | AW40: 0.03 | AZ40: 1.741024206
B41: 2043 | E41: 0.0025 | F41: 0.025 | H41: 0.0025 | S41: 29360.86749 | U41: 0.03 | AE41: 0.03 | AU41: 0.25 | AW41: 0.03 | AZ41: 1.77584469
B42: 2044 | E42: 0.0025 | F42: 0.025 | H42: 0.0025 | S42: 30241.69352 | U42: 0.03 | AE42: 0.03 | AU42: 0.25 | AW42: 0.03 | AZ42: 1.811361584
B43: 2045 | E43: 0.0025 | F43: 0.025 | H43: 0.0025 | S43: 31148.94432 | U43: 0.03 | AE43: 0.03 | AU43: 0.25 | AW43: 0.03 | AZ43: 1.847588816
B44: 2046 | E44: 0.0025 | F44: 0.025 | H44: 0.0025 | S44: 32083.41265 | U44: 0.03 | V44: =PRODUCT(Q39:Q49)^(1/11) ->  | AE44: 0.03 | AU44: 0.25 | AW44: 0.03 | AZ44: 1.884540592
B45: 2047 | E45: 0.0025 | F45: 0.025 | H45: 0.0025 | S45: 33045.91503 | U45: 0.03 | AE45: 0.03 | AU45: 0.25 | AW45: 0.03 | AZ45: 1.922231404
B46: 2048 | E46: 0.0025 | F46: 0.025 | H46: 0.0025 | S46: 34037.29248 | U46: 0.03 | AE46: 0.03 | AU46: 0.25 | AW46: 0.03 | AZ46: 1.960676032
B47: 2049 | E47: 0.0025 | F47: 0.025 | H47: 0.0025 | I47: =Q47 ->  | N47: =N46*((1+H47)*(1+AX47)*(1+AY47)) ->  | Q47: =W47 ->  | S47: 35058.41126 | U47: 0.03 | AE47: 0.03 | AU47: 0.25 | AW47: 0.03 | AZ47: 1.999889553
B48: 2050 | E48: =IF(Y48+Z48>0.025,0.025,IF(Y48+Z48<0.0025,0.0025,Y48+Z48)) ->  | F48: 0.025 | H48: 0.0025 | J48: =IF(ISNUMBER(J47*(1+E48+AX48+AY48)),J47*(1+E48+AX48+AY48),W48) ->  | Q48: =W48 ->  | S48: 36110.1636 | U48: 0.03 | AB48: =AU48*(AI48-P48)/P48 ->  | AE48: 0.03 | AU48: 0.25 | AW48: 0.03 | AZ48: 2.039887344
B49: 2051 | F49: 0.025 | H49: 0.0025 | S49: 37193.4685 | U49: 0.03 | AE49: 0.03 | AU49: 0.25 | AW49: 0.03 | AZ49: 2.080685091
B50: 2052 | F50: 0.025 | H50: 0.0025 | S50: 38309.27256 | U50: 0.03 | AE50: 0.03 | AU50: 0.25 | AW50: 0.03 | AZ50: 2.122298792
B51: 2053 | F51: 0.025 | H51: 0.0025 | S51: 39458.55074 | U51: 0.03 | AE51: 0.03 | AU51: 0.25 | AW51: 0.03 | AZ51: 2.164744768
B52: 2054 | F52: 0.025 | H52: 0.0025 | S52: 40642.30726 | U52: 0.03 | AE52: 0.03 | AU52: 0.25 | AW52: 0.03 | AZ52: 2.208039664
B53: 2055 | F53: 0.025 | H53: 0.0025 | S53: 41861.57648 | U53: 0.03 | AE53: 0.03 | AU53: 0.25 | AW53: 0.03 | AZ53: 2.252200457
B54: 2056 | F54: 0.025 | H54: 0.0025 | S54: 43117.42377 | U54: 0.03 | AE54: 0.03 | AU54: 0.25 | AW54: 0.03 | AZ54: 2.297244466
B55: 2057 | F55: 0.025 | H55: 0.0025 | S55: 44410.94648 | U55: 0.03 | AE55: 0.03 | AU55: 0.25 | AW55: 0.03 | AZ55: 2.343189355
B56: 2058 | F56: 0.025 | H56: 0.0025 | S56: 45743.27488 | U56: 0.03 | AE56: 0.03 | AU56: 0.25 | AW56: 0.03 | AZ56: 2.390053142
B57: 2059 | F57: 0.025 | H57: 0.0025 | S57: 47115.57312 | U57: 0.03 | AE57: 0.03 | AU57: 0.25 | AW57: 0.03 | AZ57: 2.437854205
B58: 2060 | F58: 0.025 | H58: 0.0025 | L58: =PRODUCT(I53:I63)^(1/11) ->  | S58: 48529.04032 | U58: 0.03 | V58: =PRODUCT(Q53:Q63)^(1/11) ->  | AE58: 0.03 | AU58: 0.25 | AW58: 0.03 | AZ58: 2.486611289
B59: 2061 | E59: 0.0025 | H59: 0.0025 | S59: 49984.91153 | U59: 0.03 | AI59: =PRODUCT(AV54:AV63)^(1/11) ->  | AV59: =AV58*(1+$AV$5) -> 
B60: 2062 | E60: 0.0025 | H60: 0.0025 | S60: 51484.45887 | U60: 0.03 | AI60: =PRODUCT(AV55:AV64)^(1/11) ->  | AV60: =AV59*(1+$AV$5) -> 
B61: 2063 | E61: 0.0025 | H61: 0.0025 | S61: 53028.99264 | U61: 0.03 | AI61: =PRODUCT(AV56:AV65)^(1/11) ->  | AV61: =AV60*(1+$AV$5) -> 
B62: 2064 | E62: 0.0025 | H62: 0.0025 | S62: 54619.86242 | U62: 0.03 | AI62: =PRODUCT(AV57:AV66)^(1/11) ->  | AV62: =AV61*(1+$AV$5) -> 
B63: 2065 | E63: 0.0025 | H63: 0.0025 | S63: 56258.45829 | U63: 0.03 | AI63: =PRODUCT(AV58:AV67)^(1/11) ->  | AV63: =AV62*(1+$AV$5) -> 

Sheet Input (hidden)
A1: INGRESOS | AO1: BASES MACROECONOMICAS
BI2: plan presupuestario 2015 + extensión 2020
B3: Total ingresos no financieros CONSOLIDADOS | C3: Cotizaciones del gobierno | D3: % var | E3: Cotizaciones del modelo | F3: % var | G3: Variación en las cotizaciones por cambios normativos | H3: % ingresos año anterior | I3: Otros ingresos variación anual | J3: Otros ingresos permanentes | K3: % ingresos año anterior | L3: Ocupados | M3: % var | N3: Desempleados | O3: % var | P3: Cotizaciones por cese de actividad | Q3: Tasas y otros ingresos | R3: TR de OOAA y Exterior | S3: Transf AGE compl mínimos | T3: Ingresos patrimoniales | U3: % var | V3: Otros ingresos corrientes | W3: % var | X3: Otros ingresos corrientes consolidados | Y3: % var | Z3: Total ingresos computables CONSOLIDADO del gobierno | AA3: % var | AB3: Total ingresos computables CONSOLIDADO modelo | AC3: % var | AD3: Eliminaciones | AE3: Ingresos computables AGREGADO provisto por SS | AF3: % var | AG3: Ingresos computables CONSOLIDADO provisto por SS | AH3: % var | AI3: Ingresos computables AGREGADO | AJ3: % var | AK3: Ingresos computables AGREGADO del gobierno | AL3: % var | AM3: Peso de las Cotizaciones en los ingresos computables | AN3: Residuo modelo % INGRESOS TOTALES | AQ3: Base de cotización | AR3: % var | AS3: Número Total de Asalariados (miles) | AT3: % var | AU3: Remuneración por Asalariado | AV3: % var | AW3: Base Máxima de Cotización | AX3: % var | AY3: PIB real índice | AZ3: % var | BA3: PIB nominal niveles | BB3: % var | BC3: deflactor | BD3: % var | BE3: Empleo tiempo completo | BF3: % var | BG3: PAFT real (+% var PIB real - %var empleo) | BH3: PAFT nominal (+% var PIB nom- %var empleo) | BI3: Tipo implícito | BK3: PIB real índice | BL3: % var | BM3: PIB nominal niveles | BN3: % var | BO3: deflactor | BP3: % var | BQ3: Número Total de Asalariados (miles) - NO TIEMPO COMPLETO | BR3: % var | BS3: Remuneración por Asalariado | BT3: % var | BU3: Base Máxima de Cotización | BV3: % var | BW3: Remuneración de asalariados | BX3: % var
A4: 2000 | B4: 92032.42 | C4: =E4 -> 60539.03 | E4: 60539.03 | L4: 56619.7 | N4: 3919.33 | Q4: 1331.65 | R4: 52.02 | S4: 97.89 | T4: 343.77 | V4: =S4+R4+Q4 -> 1481.56 | X4: =V4-P4 -> 1481.56 | Z4: =C4+SUM(Q4:T4)-P4 -> 62364.36 | AB4: =E4+SUM(Q4:T4)-P4 -> 62364.36 | AD4: 2251.46 | AE4: =AI4 -> 64615.82 | AG4: =AE4-AD4 -> 62364.36 | AI4: =AB4+AD4 -> 64615.82 | AK4: =AI4 -> 64615.82 | AM4: =100*E4/AB4 -> 97.07311997 | AQ4: 313294 | AS4: 12378 | AU4: 25.22022944 | AW4: 2450.87 | AY4: 78.3865 | BA4: 646.25 | BC4: 73.87387796 | BE4: 15669 | BI4: =E4/AQ4 -> 0.1932339272 | BK4: 78.3865 | BM4: 646.25 | BO4: 73.87387796 | BQ4: 12378 | BS4: 25.22022944 | BU4: 2450.87
A5: 2001 | B5: 99723.64 | C5: =E5 -> 66071.66 | D5: =C5/C4-1 -> 0.09138947221 | E5: 66071.66 | F5: =E5/E4-1 -> 0.09138947221 | L5: 62104.88 | M5: =L5/L4-1 -> 0.09687758854 | N5: 3966.78 | O5: =N5/N4-1 -> 0.01210666109 | Q5: 1213.75 | R5: 57.33 | S5: 97.89 | T5: 501.16 | U5: =T5/T4-1 -> 0.4578351805 | V5: =S5+R5+Q5 -> 1368.97 | X5: =V5-P5 -> 1368.97 | Y5: =X5/X4-1 -> -0.07599422231 | Z5: 67941.79 | AA5: =Z5/Z4-1 -> 0.08943297101 | AB5: 67941.79 | AC5: =AB5/AB4-1 -> 0.08943297101 | AD5: 2468.99 | AE5: 70410.78 | AF5: =AE5/AE4-1 -> 0.08968330047 | AG5: =AE5-AD5 -> 67941.79 | AH5: =AG5/AG4-1 -> 0.08943297101 | AI5: 70410.78 | AJ5: =AI5/AI4-1 -> 0.08968330047 | AK5: =AI5 -> 70410.78 | AL5: =AK5/AK4-1 -> 0.08968330047 | AM5: 97.24745256 | AQ5: 337976 | AR5: =AQ5/AQ4-1 -> 0.07878223011 | AS5: 12949 | AT5: =AS5/AS4-1 -> 0.04613023106 | AU5: 25.86230597 | AV5: =AU5/AU4-1 -> 0.02545879021 | AW5: 2499.91 | AX5: =AW5/AW4-1 -> 0.02000922122 | AY5: 81.26284 | AZ5: =AY5/AY4-1 -> 0.03669432874 | BA5: 699.528 | BB5: =BA5/BA4-1 -> 0.0824417795 | BC5: 76.97082303 | BD5: =BB5-AZ5 -> 0.04574745075 | BE5: 16197 | BF5: =BE5/BE4-1 -> 0.03369710894 | BG5: =AZ5-BF5 -> 0.002997219802 | BH5: =BB5-BF5 -> 0.04874467056 | BI5: 0.1954921651 | BK5: 81.26284 | BL5: 0.03669432874 | BM5: 699.528 | BN5: 0.0824417795 | BO5: 76.97082303 | BP5: =BO5/BO4-1 -> 0.04192205895 | BQ5: 12949 | BR5: 0.04613023106 | BS5: 25.86230597 | BT5: 0.02545879021 | BU5: 2499.91 | BV5: 0.02000922122
A6: 2002 | B6: 79932.29 | C6: 70577.82 | D6: =C6/C5-1 -> 0.06820110165 | E6: 70577.82 | F6: =E6/E5-1 -> 0.06820110165 | L6: 65999.29 | M6: =L6/L5-1 -> 0.06270698857 | N6: 4578.53 | O6: =N6/N5-1 -> 0.1542182828 | Q6: 886.93 | R6: 45.91 | S6: 306.35 | T6: 570.67 | U6: =T6/T5-1 -> 0.1386982201 | V6: 1239.19 | X6: 1239.19 | Y6: =X6/X5-1 -> -0.0948012009 | Z6: 72387.68 | AA6: =Z6/Z5-1 -> 0.06543675108 | AB6: 72387.68 | AC6: =AB6/AB5-1 -> 0.06543675108 | AD6: 2459.53 | AE6: 74847.21 | AF6: =AE6/AE5-1 -> 0.06300782352 | AG6: 72387.68 | AH6: =AG6/AG5-1 -> 0.06543675108 | AI6: 74847.21 | AJ6: =AI6/AI5-1 -> 0.06300782352 | AK6: 74847.21 | AL6: =AK6/AK5-1 -> 0.06300782352 | AM6: 97.49976792 | AQ6: 360911 | AR6: =AQ6/AQ5-1 -> 0.06785984804 | AS6: 13472 | AT6: =AS6/AS5-1 -> 0.04038921924 | AU6: 26.41285629 | AV6: =AU6/AU5-1 -> 0.02128775081 | AW6: 2574.9 | AX6: 0.02999707989 | AY6: 83.46521 | AZ6: 0.02710180939 | BA6: 749.288 | BB6: 0.07113367871 | BC6: 80.32143301 | BD6: =BB6-AZ6 -> 0.04403186932 | BE6: 16576 | BF6: 0.02339939495 | BG6: 0.003702414438 | BH6: 0.04773428376 | BI6: 0.1955546381 | BK6: 83.46521 | BL6: 0.02710180939 | BM6: 749.288 | BN6: 0.07113367871 | BO6: 80.32143301 | BP6: =BO6/BO5-1 -> 0.04353091013 | BQ6: 13472 | BR6: 0.04038921924 | BS6: 26.41285629 | BT6: 0.02128775081 | BU6: 2574.9 | BV6: 0.02999707989
A7: 2003 | B7: 82121.18 | C7: 76159.19 | D7: 0.07908107675 | E7: 76159.19 | F7: 0.07908107675 | L7: 70996.57 | M7: 0.07571717817 | N7: 5162.62 | O7: =Input!BG5 -> 0.002997219802 | Q7: 939.33 | R7: 51.51 | S7: 606.35 | T7: 685.77 | U7: 0.2016927471 | V7: 1597.19 | X7: 1597.19 | Y7: 0.2888983933 | Z7: 78442.15 | AA7: 0.08363950882 | AB7: 78442.15 | AC7: 0.08363950882 | AD7: 2584.68 | AE7: 81026.83 | AF7: 0.08256313094 | AG7: 78442.15 | AH7: 0.08363950882 | AI7: 81026.83 | AJ7: 0.08256313094 | AK7: 81026.83 | AL7: 0.08256313094 | AM7: 97.08962592 | AQ7: 386543 | AR7: 0.07102027924 | AS7: 14127 | AT7: 0.04861935867 | AU7: 26.84179231 | AV7: 0.01623966803 | AW7: 2652 | AX7: 0.0299429104 | AY7: 86.04382 | AZ7: 0.03089442895 | BA7: 803.472 | BB7: 0.07231398341 | BC7: 83.66489969 | BD7: =BB7-AZ7 -> 0.04141955446 | BE7: 17004.9 | BF7: 0.02587475869 | BG7: 0.005019670261 | BH7: 0.04643922472 | BI7: 0.1970264369 | BK7: 86.04382 | BL7: 0.03089442895 | BM7: 803.472 | BN7: 0.07231398341 | BO7: 83.66489969 | BP7: 0.0416260836 | BQ7: 14127 | BR7: 0.04861935867 | BS7: 26.84179231 | BT7: 0.01623966803 | BU7: 2652 | BV7: 0.0299429104
A8: 2004 | B8: 88246.05 | C8: 81600.08 | D8: 0.07144101716 | E8: 81600.08 | F8: 0.07144101716 | L8: 75863.63 | M8: 0.06855345265 | N8: 5736.45 | O8: 0.1111509272 | Q8: 999.98 | R8: 51.35 | S8: 906.35 | T8: 884.72 | U8: 0.2901118451 | V8: 1957.68 | X8: 1957.68 | Y8: 0.2257026403 | Z8: 84442.48 | AA8: 0.07649369631 | AB8: 84442.48 | AC8: 0.07649369631 | AD8: 2936.34 | AE8: 87378.82 | AF8: 0.07839366294 | AG8: 84442.48 | AH8: 0.07649369631 | AI8: 87378.82 | AJ8: 0.07839366294 | AK8: 87378.82 | AL8: 0.07839366294 | AM8: 96.63392169 | AQ8: 411567 | AR8: 0.06473794636 | AS8: 14721 | AT8: 0.04204714377 | AU8: 27.3075878 | AV8: 0.01735336753 | AW8: 2731.5 | AX8: 0.02997737557 | AY8: 88.8482475 | AZ8: 0.03259301482 | BA8: 861.42 | BB8: 0.07212199056 | BC8: 87.04717117 | BD8: 0.03952897575 | BE8: 17490 | BF8: 0.02852707161 | BG8: 0.004065943206 | BH8: 0.04359491895 | BI8: 0.1982668193 | BK8: 88.8482475 | BL8: 0.03259301482 | BM8: 861.42 | BN8: 0.07212199056 | BO8: 87.04717117 | BP8: 0.04042640924 | BQ8: 14721 | BR8: 0.04204714377 | BS8: 27.3075878 | BT8: 0.01735336753 | BU8: 2731.5 | BV8: 0.02997737557
A9: 2005 | B9: 95133.82 | C9: 87906.84 | D9: 0.07728864972 | E9: 87906.84 | F9: 0.07728864972 | L9: 81554.54 | M9: 0.07501499731 | N9: 6352.3 | O9: 0.1073573377 | Q9: 978.87 | R9: 55.62 | S9: 1206.35 | T9: 1176.18 | U9: 0.3294375622 | V9: 2240.84 | X9: 2240.84 | Y9: 0.144640595 | Z9: 91323.86 | AA9: 0.08149192208 | AB9: 91323.86 | AC9: 0.08149192208 | AD9: 2977.05 | AE9: 94300.91 | AF9: 0.07921931196 | AG9: 91323.86 | AH9: 0.08149192208 | AI9: 94300.91 | AJ9: 0.07921931196 | AK9: 94300.91 | AL9: 0.07921931196 | AM9: 96.25834913 | AQ9: 444370 | AR9: 0.07970269725 | AS9: 15502 | AT9: 0.05305346104 | AU9: 27.86962973 | AV9: 0.02058189576 | AW9: 2813.4 | AX9: 0.02998352554 | AY9: 92.032255 | AZ9: 0.03583646937 | BA9: 930.566 | BB9: 0.0802697871 | BC9: 90.82845125 | BD9: 0.04443331773 | BE9: 18096.6 | BF9: 0.03468267581 | BG9: 0.001153793554 | BH9: 0.04558711128 | BI9: 0.1978235254 | BK9: 92.032255 | BL9: 0.03583646937 | BM9: 930.566 | BN9: 0.0802697871 | BO9: 90.82845125 | BP9: 0.04343943672 | BQ9: 15502 | BR9: 0.05305346104 | BS9: 27.86962973 | BT9: 0.02058189576 | BU9: 2813.4 | BV9: 0.02998352554
A10: 2006 | B10: 103507.98 | C10: 95401.95 | D10: 0.08526196596 | E10: 95401.95 | F10: 0.08526196596 | L10: 88940.52 | M10: 0.09056491521 | N10: 6461.43 | O10: 0.01717960424 | Q10: 1007.15 | R10: 51.59 | S10: 1506.4 | T10: 1633.32 | U10: 0.3886650003 | V10: 2565.14 | X10: 2565.14 | Y10: 0.1447225148 | Z10: 99600.41 | AA10: 0.09062856082 | AB10: 99600.41 | AC10: 0.09062856082 | AD10: 3100.49 | AE10: 102700.9 | AF10: 0.08907644688 | AG10: 99600.41 | AH10: 0.09062856082 | AI10: 102700.9 | AJ10: 0.08907644688 | AK10: 102700.9 | AL10: 0.08907644688 | AM10: 95.78469607 | AQ10: 481540 | AR10: 0.08364651079 | AS10: 16208 | AT10: 0.04554251064 | AU10: 28.75795903 | AV10: 0.03187445675 | AW10: 2897.7 | AX10: 0.02996374493 | AY10: 95.7836925 | AZ10: 0.04076220343 | BA10: 1007.974 | BB10: 0.08318378277 | BC10: 94.58918891 | BD10: 0.04242157935 | BE10: 18726.1 | BF10: 0.03478553983 | BG10: 0.0059766636 | BH10: 0.04839824295 | BI10: 0.1981184325 | BK10: 95.7836925 | BL10: 0.04076220343 | BM10: 1007.974 | BN10: 0.08318378277 | BO10: 94.58918891 | BP10: 0.04140484186 | BQ10: 16208 | BR10: 0.04554251064 | BS10: 28.75795903 | BT10: 0.03187445675 | BU10: 2897.7 | BV10: 0.02996374493
A11: 2007 | B11: 113691.35 | C11: 103263.13 | D11: 0.08240062179 | E11: 103263.13 | F11: 0.08240062179 | L11: 96005.82 | M11: 0.07943848316 | N11: 7257.31 | O11: 0.1231739723 | Q11: 960.12 | R11: 52.73 | S11: 1806.35 | T11: 2189.33 | U11: 0.3404170646 | V11: 2819.2 | X11: 2819.2 | Y11: 0.09904332707 | Z11: 108271.66 | AA11: 0.08706038459 | AB11: 108271.66 | AC11: 0.08706038459 | AD11: 4146.63 | AE11: 112418.29 | AF11: 0.09461835291 | AG11: 108271.66 | AH11: 0.08706038459 | AI11: 112418.29 | AJ11: 0.09461835291 | AK11: 112418.29 | AL11: 0.09461835291 | AM11: 95.37410805 | AQ11: 523123 | AR11: 0.08635419695 | AS11: 16760 | AT11: 0.03405725568 | AU11: 30.08042959 | AV11: 0.04598624541 | AW11: 2996.1 | AX11: 0.03395796666 | AY11: 99.1161825 | AZ11: 0.03479183056 | BA11: 1080.807 | BB11: 0.07225682408 | BC11: 97.68006456 | BD11: 0.03746499352 | BE11: 19283.4 | BF11: 0.02976060151 | BG11: 0.005031229048 | BH11: 0.04249622257 | BI11: 0.197397419 | BK11: 99.1161825 | BL11: 0.03479183056 | BM11: 1080.807 | BN11: 0.07225682408 | BO11: 97.68006456 | BP11: 0.03267683851 | BQ11: 16760 | BR11: 0.03405725568 | BS11: 30.08042959 | BT11: 0.04598624541 | BU11: 2996.1 | BV11: 0.03395796666
A12: 2008 | B12: 120000.02 | C12: 108103.73 | D12: 0.04687636333 | E12: 108103.73 | F12: 0.04687636333 | L12: 99637.42 | M12: 0.03782687341 | N12: 8466.31 | O12: 0.1665906514 | Q12: 1125.13 | R12: 50.76 | S12: 2106.35 | T12: 2827.99 | U12: 0.2917148169 | V12: 3282.24 | X12: 3282.24 | Y12: 0.1642451759 | Z12: 114213.96 | AA12: 0.05488324461 | AB12: 114213.96 | AC12: 0.05488324461 | AD12: 5245.67 | AE12: 119459.63 | AF12: 0.06263518152 | AG12: 114213.96 | AH12: 0.05488324461 | AI12: 119459.63 | AJ12: 0.06263518152 | AK12: 119459.63 | AL12: 0.06263518152 | AM12: 94.65018987 | AQ12: 560517 | AR12: 0.07148223267 | AS12: 16681 | AT12: -0.004713603819 | AU12: 32.23086146 | AV12: 0.07148940005 | AW12: 3074.1 | AX12: 0.026033844 | AY12: 100 | AZ12: 0.008916984873 | BA12: 1116.207 | BB12: 0.03275330378 | BC12: 100 | BD12: 0.02383631891 | BE12: 19247.5 | BF12: -0.001861704886 | BG12: 0.01077868976 | BH12: 0.03461500867 | BI12: 0.1928643199 | BK12: 100 | BL12: 0.008916984873 | BM12: 1116.207 | BN12: 0.03275330378 | BO12: 100 | BP12: 0.02375034709 | BQ12: 16681 | BR12: -0.004713603819 | BS12: 32.23086146 | BT12: 0.07148940005 | BU12: 3074.1 | BV12: 0.026033844
A13: 2009 | B13: 119246.85 | C13: 106552.9 | D13: -0.01434575847 | E13: 106552.9 | F13: -0.01434575847 | L13: 95393.31 | M13: -0.04259554292 | N13: 11159.59 | O13: 0.318117338 | Q13: 1205.24 | R13: 43.65 | S13: 2406.8 | T13: 2778.73 | U13: -0.01741873203 | V13: 3655.69 | X13: 3655.69 | Y13: 0.1137790046 | Z13: 112987.32 | AA13: -0.01073984301 | AB13: 112987.32 | AC13: -0.01073984301 | AD13: 4392.47 | AE13: 117396.98 | AF13: -0.0172665025 | AG13: 113004.51 | AH13: -0.01058933601 | AI13: 117379.79 | AJ13: -0.01741040048 | AK13: 117379.79 | AL13: -0.01741040048 | AM13: 94.30518398 | AQ13: 549867 | AR13: -0.01900031578 | AS13: 15681 | AT13: -0.05994844434 | AU13: 33.45819782 | AV13: 0.03807953943 | AW13: 3166.2 | AX13: 0.02995998829 | AY13: 96.1676375 | AZ13: -0.038323625 | BA13: 1079.034 | BB13: -0.03330296262 | BC13: 100.075899 | BD13: 0.005020662377 | BE13: 18050.5 | BF13: -0.06218989479 | BG13: 0.02386626979 | BH13: 0.02888693217 | BI13: 0.1937794048 | BK13: 96.1676375 | BL13: -0.038323625 | BM13: 1079.034 | BN13: -0.03330296262 | BO13: 100.075899 | BP13: 0.0007589899396 | BQ13: 15681 | BR13: -0.05994844434 | BS13: 33.45819782 | BT13: 0.03807953943 | BU13: 3166.2 | BV13: 0.02995998829
A14: 2010 | B14: 118492.9 | C14: 105491.02 | D14: -0.0099657541 | E14: 105491.02 | F14: -0.0099657541 | L14: 94660.49 | M14: -0.007682090075 | N14: 10816.19 | O14: -0.03077173982 | P14: 14.34 | Q14: 1282.73 | R14: 41.64 | S14: 2706.35 | T14: 2794.4 | U14: 0.005639266859 | V14: 4030.72 | X14: 4016.38 | Y14: 0.09866536823 | Z14: 112301.8 | AA14: -0.006067229491 | AB14: 112301.8 | AC14: -0.006067229491 | AD14: 4083.61 | AE14: 116458.18 | AF14: -0.007996798555 | AG14: 112374.57 | AH14: -0.00557446778 | AI14: 116385.41 | AJ14: -0.008471475371 | AK14: 116385.41 | AL14: -0.008471475371 | AM14: 93.93528866 | AQ14: 542334 | AR14: -0.01369967647 | AS14: 15347 | AT14: -0.02129966201 | AU14: 33.54557894 | AV14: 0.002611650573 | AW14: 3198 | AX14: 0.01004358537 | AY14: 95.9740875 | AZ14: -0.002012631328 | BA14: 1080.913 | BB14: 0.001741372376 | BC14: 100.1556898 | BD14: 0.003754003704 | BE14: 17630.9 | BF14: -0.02324589347 | BG14: 0.02123326214 | BH14: 0.02498726584 | BI14: 0.1945130123 | BK14: 95.9740875 | BL14: -0.002012631328 | BM14: 1080.913 | BN14: 0.001741372376 | BO14: 100.1556898 | BP14: 0.0007973028676 | BQ14: 15347 | BR14: -0.02129966201 | BS14: 33.54557894 | BT14: 0.002611650573 | BU14: 3198 | BV14: 0.01004358537
A15: 2011 | B15: 118015.49 | C15: 105311.66 | D15: -0.001700239509 | E15: 105311.66 | F15: -0.001700239509 | L15: 94992.24 | M15: 0.003504630073 | N15: 10207.33 | O15: -0.05629154074 | P15: 112.09 | Q15: 1254.88 | R15: 42.98 | S15: 2806.35 | T15: 3061.99 | U15: 0.09575937589 | V15: 4104.21 | X15: 3992.12 | Y15: -0.006040265114 | Z15: 112365.77 | AA15: 0.0005696257763 | AB15: 112365.77 | AC15: 0.0005696257763 | AD15: 3712.83 | AE15: 116119 | AF15: -0.002912461795 | AG15: 112406.17 | AH15: 0.0002812024108 | AI15: 116078.6 | AJ15: -0.002636155168 | AK15: 116078.6 | AL15: -0.002636155168 | AM15: 93.7221896 | AQ15: 532770 | AR15: -0.0176348892 | AS15: 15105 | AT15: -0.01576855411 | AU15: 33.82773916 | AV15: 0.008411249041 | AW15: 3230.1 | AX15: 0.01003752345 | AY15: 96.022365 | AZ15: 0.0005030264028 | BA15: 1075.147 | BB15: -0.005334379363 | BC15: 100.1730208 | BD15: -0.005837405765 | BE15: 17238.1 | BF15: -0.02227906687 | BG15: 0.02278209327 | BH15: 0.0169446875 | BI15: 0.1976681495 | BK15: 96.022365 | BL15: 0.0005030264028 | BM15: 1075.147 | BN15: -0.005334379363 | BO15: 100.1730208 | BP15: 0.0001730404141 | BQ15: 15105 | BR15: -0.01576855411 | BS15: 33.82773916 | BT15: 0.008411249041 | BU15: 3230.1 | BV15: 0.01003752345
A16: 2012 | B16: 115085.09 | C16: 101059.19 | D16: -0.04037985917 | E16: 101059.19 | F16: -0.04037985917 | L16: 90530.4 | M16: -0.0469705736 | N16: 10388.72 | O16: 0.01777056292 | P16: 140.07 | Q16: 1503.88 | R16: 39.87 | S16: 3806.35 | T16: 3311.11 | U16: 0.08135885486 | V16: 5350.1 | X16: 5210.03 | Y16: 0.3050785047 | Z16: 109580.33 | AA16: -0.02478904385 | AB16: 109580.33 | AC16: -0.02478904385 | AD16: 3552.47 | AE16: 113081.34 | AF16: -0.0261598877 | AG16: 109528.87 | AH16: -0.02559734933 | AI16: 113132.8 | AJ16: -0.02537763205 | AK16: 113132.8 | AL16: -0.02537763205 | AM16: 92.22384163 | AQ16: 503260 | AR16: -0.05538975543 | AS16: 14242 | AT16: -0.05713339954 | AU16: 33.88618172 | AV16: 0.00172765187 | AW16: 3262.5 | AX16: 0.01003064921 | AY16: 94.44622 | AZ16: -0.01641435305 | BA16: 1055.158 | BB16: -0.01859187627 | BC16: 100.185361 | BD16: -0.002177523222 | BE16: 16413.9 | BF16: -0.04781269397 | BG16: 0.03139834092 | BH16: 0.0292208177 | BI16: 0.2008091046 | BK16: 94.44622 | BL16: -0.01641435305 | BM16: 1055.158 | BN16: -0.01859187627 | BO16: 100.185361 | BP16: 0.0001231895375 | BQ16: 14242 | BR16: -0.05713339954 | BS16: 33.88618172 | BT16: 0.00172765187 | BU16: 3262.5 | BV16: 0.01003064921
A17: 2013 | B17: 118179.32 | C17: 98210.3 | D17: -0.02819031104 | E17: 98210.3 | F17: -0.02819031104 | L17: 88987.87 | M17: -0.01703880685 | N17: 9079.96 | O17: =N17/N16-1 -> -0.1259789464 | P17: 142.47 | Q17: 1384.52 | R17: 41.37 | S17: 7895.33 | T17: 2821.06 | U17: -0.1480017275 | V17: 9321.22 | X17: 9178.75 | Y17: 0.7617460936 | Z17: 110210.11 | AA17: 0.005747199338 | AB17: 110210.11 | AC17: 0.005747199338 | AD17: 3363.83 | AE17: 112934.97 | AF17: -0.001294378011 | AG17: 109571.14 | AH17: 0.0003859256468 | AI17: 113573.94 | AJ17: 0.003899311252 | AK17: 113573.94 | AL17: 0.003899311252 | AM17: 89.11187912 | AQ17: 492270 | AR17: -0.02183761873 | AS17: 13706 | AT17: -0.0376351636 | AU17: 33.98351087 | AV17: =AU17/AU16-1 -> 0.002872237301 | AW17: 3426 | AX17: =AW17/AW16-1 -> 0.05011494253 | AY17: 93.2914375 | AZ17: =AY17/AY16-1 -> -0.01222687896 | BA17: 1049.181 | BB17: =BA17/BA16-1 -> -0.005664554503 | BC17: 100.805561 | BD17: 0.006562324455 | BE17: 15854.8 | BF17: =BE17/BE16-1 -> -0.03406259329 | BG17: 0.02183571433 | BH17: 0.02839803879 | BI17: 0.1995049465 | BK17: 93.2914375 | BL17: -0.01222687896 | BM17: 1049.181 | BN17: -0.005664554503 | BO17: 100.805561 | BP17: 0.006190524328 | BQ17: 13706 | BR17: -0.0376351636 | BS17: 33.98351087 | BT17: 0.002872237301 | BU17: 3426 | BV17: 0.05011494253 | BW17: 465778
A18: 2014 inicial | C18: 102839.92 | D18: 0.04713986211 | E18: =EXP(Resultados!$L$52*LN(Input!AS18)+Resultados!$L$53*LN(Input!AU18)+Resultados!$L$54*LN(Input!AW18)+Resultados!$L$55)+SUM($G$18:G18) -> 102315.5826 | F18: 0.04180093746 | G18: =Escenarios!I11*AB17/100 -> 0 | H18: =G18/AB17 -> 0 | I18: =Escenarios!J11*AB17/100 -> 0 | J18: =SUM($I$18:I18) -> 0 | K18: =J18/AB17 -> 0 | L18: =L17*(1+Resultados_aux!K20/100+Resultados_aux!M20/100) -> 90257.34603 | M18: 0.01426571996 | P18: 150.24 | Q18: 1316.09 | R18: 34.46 | S18: 7633.02 | T18: 2475.65 | U18: -0.1224397921 | V18: =S18+R18+Q18+J18 -> 8983.57 | X18: 8833.33 | Y18: -0.03763257524 | Z18: 114148.9 | AA18: 0.03573891724 | AB18: =E18+SUM(Q18:T18)-P18+J18 -> 113624.5626 | AC18: 0.03098130116 | AD18: 3763.62 | AE18: 117993.95 | AF18: 0.04479551374 | AG18: 114230.33 | AH18: 0.04252205462 | AI18: =AB18+AD18+J18 -> 117388.1826 | AJ18: 0.03358378347 | AK18: =Z18+AD18 -> 117912.52 | AL18: 0.0382004886 | AM18: 90.047064 | AQ18: =AQ17*(1+AT18+AV18) -> 499161.78 | AR18: 0.014 | AS18: =AS17*(1+Escenarios!F11/100) -> 13801.942 | AT18: 0.007 | AU18: =AU17*(1+Escenarios!G11/100) -> 34.25537896 | AV18: 0.007 | AW18: =AW17*(1+Escenarios!H11/100) -> 3597.3 | AX18: =AW18/AW17-1 -> 0.05 | AY18: =AY17*(AZ18+1) -> 94.36242319 | AZ18: 0.01147999983 | BA18: =BA17*(BB18+1) -> 1064.148322 | BB18: =AZ18+BD18 -> 0.01426571996 | BC18: =BC17*(BD18+1) -> 101.086377 | BD18: 0.002785720132 | BE18: =BE17*(BF18+1) -> 16017.25608 | BF18: 0.01024649214 | BG18: 0.001233507683 | BH18: 0.004019227815 | BI18: 0.2049747932 | BK18: =BK17*(BL18+1) -> 94.50422619 | BL18: 0.013 | BM18: 1064.3 | BN18: =BM18/BM17-1 -> 0.01441028764 | BO18: =BO17*(BP18+1) -> 100.9477258 | BP18: =BN18-BL18 -> 0.001410287643 | BQ18: =BQ17*(BR18+1) -> 13801.942 | BR18: 0.007 | BS18: 34.22139545 | BT18: =BX18-BR18 -> 0.007 | BU18: 3597.3 | BV18: 0.05 | BW18: =(BX18+1)*BW17 -> 472298.892 | BX18: 0.014 | BY18: PLAN PRESUPUESTARIO
A19: 2015 inicial | C19: 109833 | D19: 0.06799966394 | E19: =EXP(Resultados!$L$52*LN(Input!AS19)+Resultados!$L$53*LN(Input!AU19)+Resultados!$L$54*LN(Input!AW19)+Resultados!$L$55)+SUM($G$18:G19) -> 110842.9608 | F19: 0.08334388527 | G19: =Escenarios!I12*AB18/100 -> 6249.350943 | H19: 0.055 | I19: =Escenarios!J12*AB18/100 -> 0 | J19: =SUM($I$18:I19) -> 0 | K19: 0 | L19: =L18*(1+Resultados_aux!K21/100+Resultados_aux!M21/100) -> 92062.49295 | M19: 0.02 | P19: 159.08 | Q19: 1078.25 | R19: 33.5 | S19: 7563.02 | T19: 2150 | U19: -0.1315412114 | V19: =S19+R19+Q19+J19 -> 8674.77 | X19: 8515.69 | Y19: -0.03595925885 | Z19: 120498.69 | AA19: 0.05562725528 | AB19: =E19+SUM(Q19:T19)-P19+J19 -> 121508.6508 | AC19: 0.06938718176 | AD19: 4104.97 | AE19: 124803.04 | AF19: 0.05770711125 | AG19: 120698.07 | AH19: 0.05662016384 | AI19: 125613.6208 | AJ19: 0.0700704108 | AK19: =Z19+AD19 -> 124603.66 | AL19: 0.05674664573 | AM19: 91.22227929 | AN19: =(AG19-AB19)/AB19 -> -0.006670971831 | AQ19: =AQ18*(1+AT19+AV19) -> 511141.6627 | AR19: 0.024 | AS19: =AS18*(1+Escenarios!F12/100) -> 13995.16919 | AT19: 0.014 | AU19: =AU18*(1+Escenarios!G12/100) -> 34.59793275 | AV19: =AU19/AU18-1 -> 0.01 | AW19: =AW18*(1+Escenarios!H12/100) -> 3606.29325 | AX19: 0.0025 | AY19: =AY18*(AZ19+1) -> 96.30427364 | AZ19: 0.0205786413 | BA19: =BA18*(BB19+1) -> 1093.979898 | BB19: =AZ19+BD19 -> 0.02803328779 | BC19: =BC18*(BD19+1) -> 101.8399402 | BD19: 0.007454646487 | BE19: =BE18*(BF19+1) -> 16346.52488 | BF19: 0.02055712911 | BG19: 2.151218478e-05 | BH19: 0.007476158672 | BI19: 0.2168537 | BK19: =BK18*(BL19+1) -> 96.4321124 | BL19: 0.0204 | BM19: 1092.8 | BN19: =BM19/BM18-1 -> 0.02677816405 | BO19: =BO18*(BP19+1) -> 101.591587 | BP19: 0.006378164051 | BQ19: =BQ18*(BR19+1) -> 13995.16919 | BR19: 0.014 | BS19: 34.47724003 | BT19: 0.01 | BU19: 3606.29325 | BV19: 0.0025 | BW19: 483634.0654 | BX19: 0.024 | BY19: PLAN PRESUPUESTARIO
A20: =2016 -> 2016 | C20: =Z20-SUM(Q20:T20) -> 114975.5745 | D20: 0.04682176104 | E20: =EXP(Resultados!$L$52*LN(Input!AS20)+Resultados!$L$53*LN(Input!AU20)+Resultados!$L$54*LN(Input!AW20)+Resultados!$L$55)+SUM($G$18:G20) ->  | G20: =Escenarios!I13*AB19/100 ->  | I20: =Escenarios!J13*AB19/100 ->  | J20: =SUM($I$18:I20) ->  | L20: =L19*(1+Resultados_aux!K22/100+Resultados_aux!M22/100) -> 94922.60862 | M20: 0.03106711077 | Q20: =Q19*(1+$L$25) -> 1099.815 | R20: =R19*(1+$M$25) -> 33.5 | S20: =S19*(1+$N$25) -> 7680.24681 | T20: =IF(T19-$O$25>$O$25,T19-$O$25,0) -> 1650 | U20: -0.2325581395 | Z20: =Z19*($X$25+1) -> 125439.1363 | AA20: 0.041 | AD20: =AVERAGE($AD$4:$AD$19)/AVERAGE($AE$4:$AE$19)*AB20 ->  | AE20: 131799.3 | AF20: 0.05605841012 | AK20: =AK19*($X$25+1) -> 129712.4101 | AL20: 0.041 | AN20: =(AG20-AB20)/AB20 ->  | AS20: =AS19*(1+Escenarios!F13/100) ->  | AU20: =AU19*(1+Escenarios!G13/100) ->  | AW20: =AW19*(1+Escenarios!H13/100) ->  | AY20: 98.17553115 | AZ20: 0.01943067978 | BA20: 1127.966693 | BB20: 0.03106711077 | BC20: 103.0249937 | BD20: 0.01163643099 | BE20: 16559.83412 | BF20: 0.0130492097 | BG20: 0.00638147008 | BH20: 0.01801790107 | BK20: 98.84291521 | BL20: 0.025 | BM20: 1133.7 | BN20: 0.03742679356 | BO20: 102.8540446 | BP20: 0.01242679356 | BQ20: 14205.09673 | BR20: 0.015 | BS20: 35.09844753 | BT20: 0.011 | BU20: 3615.308983 | BV20: 0.0025 | BW20: 496208.5511 | BX20: 0.026 | BY20: PLAN DE ESTABILIDAD
A21: =A20+1 -> 2017 | C21: =Z21-SUM(Q21:T21) -> 120477.5389 | D21: 0.04785333309 | E21: =EXP(Resultados!$L$52*LN(Input!AS21)+Resultados!$L$53*LN(Input!AU21)+Resultados!$L$54*LN(Input!AW21)+Resultados!$L$55)+SUM($G$18:G21) ->  | G21: =Escenarios!I14*AB20/100 ->  | I21: =Escenarios!J14*AB20/100 ->  | J21: =SUM($I$18:I21) ->  | L21: =L20*(1+Resultados_aux!K23/100+Resultados_aux!M23/100) -> 98651.87425 | M21: 0.03928743305 | Q21: =Q20*(1+$L$25) -> 1121.8113 | R21: =R20*(1+$M$25) -> 33.5 | S21: =S20*(1+$N$25) -> 7799.290636 | T21: =IF(T20-$O$25>$O$25,T20-$O$25,0) -> 1150 | U21: -0.303030303 | Z21: =Z20*($X$25+1) -> 130582.1409 | AA21: 0.041 | AD21: =AVERAGE($AD$4:$AD$19)/AVERAGE($AE$4:$AE$19)*AB21 ->  | AE21: 139048.26 | AF21: 0.05499998862 | AK21: =AK20*($X$25+1) -> 135030.6189 | AL21: 0.041 | AS21: =AS20*(1+Escenarios!F14/100) ->  | AU21: =AU20*(1+Escenarios!G14/100) ->  | AW21: =AW20*(1+Escenarios!H14/100) ->  | AY21: 100.479634 | AZ21: 0.02346921755 | BA21: 1172.281609 | BB21: 0.03928743305 | BC21: 104.6546652 | BD21: 0.0158182155 | BE21: 16758.14444 | BF21: 0.01197538101 | BG21: 0.01149383655 | BH21: 0.02731205204 | BK21: 101.7612064 | BL21: 0.02952453577 | BM21: 1184 | BN21: 0.04436799859 | BO21: 104.3807548 | BP21: =BN21-BL21 -> 0.01484346282 | BQ21: 14531.81395 | BR21: 0.023 | BS21: 36.05705816 | BT21: 0.017 | BU21: 3624.347256 | BV21: 0.0025 | BW21: 516056.8932 | BX21: 0.04 | BY21: PLAN DE ESTABILIDAD
A22: =A21+1 -> 2018 | C22: =Z22-SUM(Q22:T22) -> 126188.0815 | D22: 0.04739922973 | E22: =EXP(Resultados!$L$52*LN(Input!AS22)+Resultados!$L$53*LN(Input!AU22)+Resultados!$L$54*LN(Input!AW22)+Resultados!$L$55)+SUM($G$18:G22) ->  | G22: =Escenarios!I15*AB21/100 ->  | I22: =Escenarios!J15*AB21/100 ->  | J22: =SUM($I$18:I22) ->  | L22: =L21*(1+Resultados_aux!K24/100+Resultados_aux!M24/100) -> 102929.6261 | M22: 0.04336209389 | Q22: =Q21*(1+$L$25) -> 1144.247526 | R22: =R21*(1+$M$25) -> 33.5 | S22: =S21*(1+$N$25) -> 7920.17964 | T22: =IF(T21-$O$25>$O$25,T21-$O$25,0) -> 650 | U22: -0.4347826087 | Z22: =Z21*($X$25+1) -> 135936.0087 | AA22: 0.041 | AE22: 143303.14 | AF22: 0.03060002333 | AK22: =AK21*($X$25+1) -> 140566.8742 | AL22: 0.041 | AS22: =AS21*(1+Escenarios!F15/100) ->  | AU22: =AU21*(1+Escenarios!G15/100) ->  | AW22: =AW21*(1+Escenarios!H15/100) ->  | AY22: 102.8270487 | AZ22: 0.02336209389 | BA22: 1223.114194 | BB22: 0.04336209389 | BC22: 106.7477585 | BD22: 0.02 | BE22: 16952.49251 | BF22: 0.011597231 | BG22: 0.01176486289 | BH22: 0.03176486289 | BK22: 104.1855248 | BL22: =BN22-BP22 -> 0.02382360098 | BM22: =BM21*(BN22+1) -> 1232.834474 | BN22: =($BN$24-$BN$21)/3+BN21 -> 0.04124533239 | BO22: 106.1992483 | BP22: =(BP23-BP21)/2+BP21 -> 0.01742173141 | BQ22: 14843.39407 | BR22: =+BL22*0.9 -> 0.02144124089 | BS22: 37.20240566 | BT22: 0.01555875911 | BU22: 3633.408124 | BV22: 0.0025 | BW22: 535150.9982 | BX22: 0.037 | BY22: CONSISTENTE CON PIB NOMINAL DE 3.5 A 2020
A23: =A22+1 -> 2019 | C23: =Z23-SUM(Q23:T23) -> 132265.8101 | D23: 0.04816404646 | E23: =EXP(Resultados!$L$52*LN(Input!AS23)+Resultados!$L$53*LN(Input!AU23)+Resultados!$L$54*LN(Input!AW23)+Resultados!$L$55)+SUM($G$18:G23) ->  | G23: =Escenarios!I16*AB22/100 ->  | I23: =Escenarios!J16*AB22/100 ->  | J23: =SUM($I$18:I23) ->  | L23: =L22*(1+Resultados_aux!K25/100+Resultados_aux!M25/100) -> 106350.9402 | M23: 0.03323935223 | Q23: =Q22*(1+$L$25) -> 1167.132477 | R23: =R22*(1+$M$25) -> 33.5 | S23: =S22*(1+$N$25) -> 8042.942425 | T23: =IF(T22-$O$25>$O$25,T22-$O$25,0) -> 0 | U23: -1 | Z23: =Z22*($X$25+1) -> 141509.385 | AA23: 0.041 | AE23: 147903.17 | AF23: 0.03209999446 | AK23: =AK22*($X$25+1) -> 146330.1161 | AL23: 0.041 | AS23: =AS22*(1+Escenarios!F16/100) ->  | AU23: =AU22*(1+Escenarios!G16/100) ->  | AW23: =AW22*(1+Escenarios!H16/100) ->  | AY23: 104.1884122 | AZ23: 0.01323935223 | BA23: 1263.769718 | BB23: 0.03323935223 | BC23: 108.8827137 | BD23: 0.02 | BE23: 17050.1261 | BF23: 0.005759246545 | BG23: 0.007480105689 | BH23: 0.02748010569 | BK23: 106.0736443 | BL23: 0.0181226662 | BM23: 1279.833411 | BN23: =($BN$24-$BN$21)/3+BN22 -> 0.0381226662 | BO23: 108.3232333 | BP23: 0.02 | BQ23: 15085.49576 | BR23: =+BL23*0.9 -> 0.01631039958 | BS23: 38.2247317 | BT23: 0.01668960042 | BU23: 3642.491644 | BV23: 0.0025 | BW23: 552810.9811 | BX23: 0.033 | BY23: CONSISTENTE CON PIB NOMINAL DE 3.5 A 2020
A24: =A23+1 -> 2020 | C24: =Z24-SUM(Q24:T24) -> 137919.6866 | D24: 0.04274631913 | E24: =EXP(Resultados!$L$52*LN(Input!AS24)+Resultados!$L$53*LN(Input!AU24)+Resultados!$L$54*LN(Input!AW24)+Resultados!$L$55)+SUM($G$18:G24) ->  | G24: =Escenarios!I17*AB23/100 ->  | I24: =Escenarios!J17*AB23/100 ->  | J24: =SUM($I$18:I24) ->  | L24: =L23*(1+Resultados_aux!K26/100+Resultados_aux!M26/100) -> 110262.512 | M24: 0.03677985212 | Q24: =Q23*(1+$L$25) -> 1190.475126 | R24: =R23*(1+$M$25) -> 33.5 | S24: =S23*(1+$N$25) -> 8167.608032 | T24: =IF(T23-$O$25>$O$25,T23-$O$25,0) -> 0 | Z24: =Z23*($X$25+1) -> 147311.2698 | AA24: 0.041 | AE24: 152325.47 | AF24: 0.02989996766 | AK24: =AK23*($X$25+1) -> 152329.6509 | AL24: 0.041 | AN24: =(AG24-AB24)/AB24 ->  | AS24: =AS23*(1+Escenarios!F17/100) ->  | AU24: =AU23*(1+Escenarios!G17/100) ->  | AW24: =AW23*(1+Escenarios!H17/100) ->  | AY24: 105.9366784 | AZ24: 0.01677985212 | BA24: 1310.250981 | BB24: =AZ24+BD24 -> 0.03677985212 | BC24: =BC23*(BD24+1) -> 111.060368 | BD24: 0.02 | BE24: 17200.45103 | BF24: 0.008816646759 | BG24: 0.00796320536 | BH24: 0.02796320536 | BK24: 107.6647489 | BL24: =BN24-BP24 -> 0.015 | BM24: 1324.62758 | BN24: 0.035 | BO24: 110.4896979 | BP24: 0.02 | BQ24: 15289.14996 | BR24: 0.0135 | BS24: 39.29361773 | BT24: 0.0165 | BU24: 3651.597873 | BV24: 0.0025 | BW24: 569395.3106 | BX24: 0.03 | BY24: CONSISTENTE CON PIB NOMINAL DE 3.5 A 2020
L25: 0.02 | M25: 0 | N25: 0.0155 | O25: 500 | X25: 0.041
A26: GASTOS | AO26: Memo growth 2014 | AT26: =Resultados!C20 -> 0.7 | AV26: =Resultados!D22 -> 0 | AX26: =Resultados!E20 -> 5 | BC26: 100
AA27: COMPOSICIÓN DEL GASTO
B28: Agregado entidades (+) | C28: INGESA (-) | D28: % var | E28: IMSERSO (-) | F28: % var | G28: Cap 8 y 9 (-) | H28: % var | I28: GnF agregado sin INGESA ni IMSERSO | J28: Cese de actividad (-) | K28: Prestaciones No Contributivas total (-) | L28: PNC Imserso+ PV y N (+) | N28: Gastos computables AGREGADO provisto por la SS | O28: % var | P28: Gastos computables AGREGADO | Q28: % var | R28: Gastos computables CONSOLIDADOS | S28: % var | T28: Gastos computables IGSS | U28: Diferencia con IGSS | V28: Otros gastos | W28: % var | AA28: Pensiones Contributivas CONSOLIDADO | AB28: % var | AC28: Incapacidad temp | AD28: % var | AE28: Maternidad, Paternidad, CUME | AF28: % var | AG28: Otras prestaciones contributivas | AH28: % var | AI28: Resto de gastos computables | AJ28: % var | AK28: Control
A29: 2000 | B29: 91830.71 | C29: 26507.06 | E29: 2905.89 | G29: 861.95 | I29: =B29-C29-E29-G29 -> 61555.81 | K29: 2863.7 | L29: 1662.82 | N29: =P29 -> 60354.93 | P29: =I29-K29+L29-J29 -> 60354.93 | R29: =P29-AD4 -> 58103.47 | V29: 51077.84 | AA29: 51077.84 | AC29: 3784.36 | AE29: 739.53 | AG29: 145.91 | AI29: 2355.83 | AK29: =R29-AA29-AE29-AG29-AI29-AC29 -> 0
A30: 2001 | B30: 97634.33 | C30: 26376.52 | D30: =C30/C29-1 -> -0.004924725715 | E30: 2990.76 | F30: =E30/E29-1 -> 0.02920619845 | G30: 1200.69 | H30: =G30/G29-1 -> 0.392992633 | I30: 67066.36 | K30: 2832.17 | L30: 1733.79 | N30: =P30 -> 65967.98 | O30: =N30/N29-1 -> 0.09300068776 | P30: 65967.98 | Q30: =P30/P29-1 -> 0.09300068776 | R30: 63498.99 | S30: =R30/R29-1 -> 0.09286054688 | V30: 53374.62 | W30: =V30/V29-1 -> 0.04496627109 | AA30: 53374.62 | AB30: =AA30/AA29-1 -> 0.04496627109 | AC30: 4278.29 | AD30: =AC30/AC29-1 -> 0.1305187667 | AE30: 847.53 | AF30: =AE30/AE29-1 -> 0.1460387003 | AG30: 164.68 | AH30: =AG30/AG29-1 -> 0.128640943 | AI30: 4833.87 | AJ30: =AI30/AI29-1 -> 1.05187556 | AK30: 0 | BO30: CALCULO AUXILIAR
A31: 2002 | B31: 79512.22 | C31: 3960.33 | D31: =C31/C30-1 -> -0.849853961 | E31: 2198.22 | F31: -0.2649961883 | G31: 3668.87 | H31: 2.055634677 | I31: 69684.8 | K31: 2879.61 | L31: 1802.2 | N31: 68607.39 | O31: 0.04001047175 | P31: 68607.39 | Q31: 0.04001047175 | R31: 66147.86 | S31: 0.04171515169 | V31: 56852.5 | W31: =V31/V30-1 -> 0.06515980816 | AA31: 56852.5 | AB31: =AA31/AA30-1 -> 0.06515980816 | AC31: 4754.48 | AD31: =AC31/AC30-1 -> 0.1113038153 | AE31: 943.38 | AF31: 0.1130933418 | AG31: 344.11 | AH31: =AG31/AG30-1 -> 1.089567646 | AI31: 3253.39 | AJ31: =AI31/AI30-1 -> -0.3269595583 | AK31: 0 | BP31: PIB - L | BQ31: PIB | BR31: L+w
A32: 2003 | B32: 81814.37 | C32: 250.09 | D32: -0.936851222 | E32: 2261.89 | F32: 0.02896434388 | G32: 5633.46 | H32: 0.5354755006 | I32: 73668.93 | K32: 3118.04 | L32: 1864.73 | N32: 72415.62 | O32: 0.05550757724 | P32: 72415.62 | Q32: 0.05550757724 | R32: 69830.94 | S32: 0.05567950346 | V32: 60151.39 | W32: 0.05802541665 | AA32: 60151.39 | AB32: 0.05802541665 | AC32: 5154.21 | AD32: 0.08407438879 | AE32: 1080.91 | AF32: 0.1457843075 | AG32: 174.43 | AH32: -0.4930981372 | AI32: 3270 | AJ32: 0.00510544386 | AK32: 0 | BO32: 2014 | BP32: =+BN18-BR18 -> 0.007410287643 | BQ32: =+BN18 -> 0.01441028764 | BR32: =+BT18+BR18 -> 0.014 | BS32: =+BR32-BQ32 -> -0.0004102876434
A33: 2004 | B33: 90027.56 | C33: 197.06 | D33: -0.2120436643 | E33: 2326.31 | F33: 0.02848060693 | G33: 9931.47 | H33: 0.7629432001 | I33: 77572.72 | K33: 2982.8 | L33: 1914.39 | N33: 76504.31 | O33: 0.05646143746 | P33: 76504.31 | Q33: 0.05646143746 | R33: 73567.97 | S33: 0.05351539017 | V33: 64453.17 | W33: 0.07151588683 | AA33: 64453.17 | AB33: 0.07151588683 | AC33: 5830.17 | AD33: 0.1311471593 | AE33: 1187.28 | AF33: 0.09840782304 | AG33: 346.23 | AH33: 0.9849223184 | AI33: 1751.12 | AJ33: -0.4644892966 | AK33: 0 | BO33: 2015 | BP33: 0.01277816405 | BQ33: 0.02677816405 | BR33: 0.024 | BS33: -0.002778164051
A34: 2005 | B34: 96296.73 | C34: 210.76 | D34: 0.069521973 | E34: 2347.5 | F34: 0.009108846198 | G34: 6646.54 | H34: -0.3307596962 | I34: 87091.93 | K34: 3060.81 | L34: 1981.93 | N34: 86013.05 | O34: 0.1242902524 | P34: 86013.05 | Q34: 0.1242902524 | R34: 83036 | S34: 0.1286977199 | V34: 68950.14 | W34: 0.0697711222 | AA34: 68950.14 | AB34: 0.0697711222 | AC34: 6406.7 | AD34: 0.09888733948 | AE34: 1319.49 | AF34: 0.1113553669 | AG34: 379.42 | AH34: 0.09586113277 | AI34: 5980.25 | AJ34: 2.41510005 | AK34: 0 | BO34: 2016 | BP34: 0.02242679356 | BQ34: 0.03742679356 | BR34: 0.026 | BS34: -0.01142679356
A35: 2006 | B35: 103570.21 | C35: 209.13 | D35: -0.007733915354 | E35: 2557.56 | F35: 0.08948242812 | G35: 9789.18 | H35: 0.472823454 | I35: 91014.34 | K35: 3138.03 | L35: 2040 | N35: 89916.31 | O35: 0.04537985806 | P35: 89916.31 | Q35: 0.04537985806 | R35: 86815.82 | S35: 0.04552025627 | V35: 73724.99 | W35: 0.06925076584 | AA35: 73724.99 | AB35: 0.06925076584 | AC35: 6850.49 | AD35: 0.06926967081 | AE35: 1480.75 | AF35: 0.1222138857 | AG35: 391.05 | AH35: 0.03065204786 | AI35: 4368.54 | AJ35: -0.2695054555 | AK35: 0 | AL35: provisto por MIGUEL ANGEL | BO35: 2017 | BP35: 0.02136799859 | BQ35: 0.04436799859 | BR35: 0.04 | BS35: -0.004367998589
A36: 2007 | B36: 113326.98 | C36: 233.19 | D36: 0.1150480562 | E36: 2798.72 | F36: 0.09429299801 | G36: 11348.57 | H36: 0.1592973058 | I36: 98946.5 | K36: 3255.65 | L36: 2119.04 | N36: 97809.89 | O36: 0.0877880776 | P36: 97809.89 | Q36: 0.0877880776 | R36: 93663.26 | S36: 0.07887318233 | V36: 79805.4 | W36: 0.08247420583 | AA36: 79805.4 | AB36: 0.08247420583 | AC36: 7253.6 | AD36: 0.05884396591 | AE36: 1787.4 | AF36: 0.2070910012 | AG36: 417.63 | AH36: 0.06797084772 | AI36: 4399.23 | AJ36: 0.007025230397 | AK36: 0 | BO36: 2018 | BP36: 0.01980409151 | BQ36: 0.04124533239 | BR36: 0.037 | BS36: -0.004245332392
A37: 2008 | B37: 122010.2 | C37: 257.64 | D37: 0.1048501222 | E37: 3264.11 | F37: 0.1662867311 | G37: 12326.07 | H37: 0.08613420017 | I37: 106162.38 | K37: 3490.59 | L37: 2163.08 | N37: 104834.87 | O37: 0.07182279829 | P37: 104834.87 | Q37: 0.07182279829 | R37: 99589.2 | S37: 0.06326856443 | V37: 84728.54 | W37: 0.06168930924 | AA37: 84728.54 | AB37: 0.06168930924 | AC37: 7533.87 | AD37: 0.0386387449 | AE37: 2208.97 | AF37: 0.2358565514 | AG37: 455.67 | AH37: 0.09108541053 | AI37: 4662.15 | AJ37: 0.05976500433 | AK37: 0 | AL37: P | AM37: S | BO37: 2019 | BP37: 0.02181226662 | BQ37: 0.0381226662 | BR37: 0.033 | BS37: -0.005122666196
A38: 2009 | B38: 118010.74 | C38: 268.96 | D38: 0.04393727682 | E38: 4418.07 | F38: 0.3535297524 | G38: 3133.34 | H38: -0.7457956997 | I38: 110190.37 | K38: 3579.57 | L38: 2180.95 | N38: 108791.75 | O38: 0.03774393005 | P38: 108791.75 | Q38: 0.03774393005 | R38: 104399.28 | S38: 0.04829921317 | T38: 108800.284 | U38: 8.534 | V38: 89972.08 | W38: 0.06188634904 | AA38: 89972.08 | AB38: 0.06188634904 | AC38: 7178.03 | AD38: -0.04723203347 | AE38: 2292.84 | AF38: 0.0379679217 | AG38: 458.65 | AH38: 0.006539820484 | AI38: 4497.68 | AJ38: -0.03527771522 | AK38: 0 | BO38: 2020 | BP38: 0.0215 | BQ38: 0.035 | BR38: 0.03 | BS38: =+BR38-BQ38 -> -0.005
A39: 2010 | B39: 131306.15 | C39: 239.08 | D39: -0.1110945866 | E39: 4539.58 | F39: 0.02750295944 | G39: 11428.61 | H39: 2.647420963 | I39: 115098.88 | K39: 3643.84 | L39: 2172.99 | N39: 113646.09 | O39: 0.04462047903 | P39: 113628.03 | Q39: 0.0444544738 | R39: 109544.42 | S39: 0.04928329008 | T39: 113646.087 | U39: 18.057 | V39: 95701 | W39: 0.06367441989 | AA39: 95701.8 | AB39: 0.06368331153 | AC39: 6732.98 | AD39: -0.06200169127 | AE39: 2316.93 | AF39: 0.01050662061 | AG39: 442.82 | AH39: -0.03451433555 | AI39: 4349.89 | AJ39: -0.03285916295 | AK39: 0 | AL39: 0.01557515163 | AM39: 0.018
A40: 2011 | B40: 126878.41 | C40: 226.08 | D40: -0.05437510457 | E40: 4148.63 | F40: -0.08612030188 | G40: 4732.9 | H40: -0.5858726477 | I40: 117770.8 | J40: 0.02 | K40: 3531.05 | L40: 2138.72 | N40: 116415.8 | O40: 0.02437136201 | P40: 116378.45 | Q40: 0.02420547113 | R40: 112665.62 | S40: 0.02849255124 | T40: 116415.79 | U40: 37.34 | V40: 99533.71 | W40: 0.04004879782 | AA40: 99533.71 | AB40: 0.04004010374 | AC40: 6241.07 | AD40: -0.07305977442 | AE40: 2351.59 | AF40: 0.01495945065 | AG40: 433.59 | AH40: -0.02084368366 | AI40: 4105.66 | AJ40: -0.05614624738 | AK40: 0 | AL40: 0.01398791229 | AM40: 0.018
A41: 2012 | B41: 125673.14 | C41: 344.41 | D41: 0.5233987969 | E41: 3897.16 | F41: -0.06061519104 | G41: 1366.95 | H41: -0.7111813053 | I41: 120064.62 | J41: 2.8 | K41: 3200.76 | L41: 2137.59 | N41: 119029.84 | O41: 0.02245434039 | P41: 118998.65 | Q41: 0.02251447755 | R41: 115446.18 | S41: 0.0246797559 | T41: 119029.839 | U41: 31.189 | V41: 103503.79 | W41: 0.0398867881 | AA41: 103503.79 | AB41: 0.0398867881 | AC41: 5360.16 | AD41: -0.1411472712 | AE41: 2264.05 | AF41: -0.03722587696 | AG41: 399.16 | AH41: -0.07940681289 | AI41: 3919.02 | AJ41: -0.04545919535 | AK41: 0 | AL41: 0.01543324163 | AM41: 0.017
A42: 2013 | B42: 131302.19 | C42: 224.1 | D42: -0.349322029 | E42: 5188.82 | F42: 0.3314362254 | G42: 1146.16 | H42: -0.1615201726 | I42: =B42-C42-E42-G42 -> 124743.11 | J42: 6.81 | K42: 4099.37 | L42: 2677.33 | N42: 123332.68 | O42: 0.03614925467 | P42: 123314.26 | Q42: 0.03626604167 | R42: 119950.43 | S42: 0.03901601595 | T42: 123339.49 | U42: 25.23 | V42: 108564.3 | W42: 0.04889202608 | AA42: 108564.3 | AB42: 0.04889202608 | AC42: 5014.65 | AD42: -0.06445889675 | AE42: 2128.49 | AF42: -0.05987500276 | AG42: 371.07 | AH42: -0.07037278284 | AI42: 3871.92 | AJ42: -0.0120183107 | AK42: 0 | AL42: 0.01623682472 | AM42: 0.017
A43: =A42+1 -> 2014 | C43: 223.35 | D43: -0.003346720214 | E43: 3708.33 | F43: -0.28532306 | I43: 129266.55 | J43: 11.06 | K43: 4065.82 | L43: 2320.94 | N43: 127521.99 | O43: 0.03396755831 | P43: 127510.61 | R43: 124048 | S43: 0.03416052781 | V43: 112201.61 | W43: 0.03350373926 | AC43: 4878.37 | AD43: -0.02717637323 | AE43: 2177.29 | AF43: 0.02292705157 | AL43: 0.01271118169 | AM43: 0.01715
A44: =A43+1 -> 2015 | C44: 227.28 | D44: 0.01759570181 | E44: 3785.57 | F44: 0.02082878277 | I44: 132802.45 | J44: 11.06 | K44: 3832.34 | L44: 2402.87 | N44: 131367.37 | O44: 0.03015464235 | P44: 131361.92 | R44: 127160.17 | S44: 0.02508843351 | AC44: 4942.72 | AD44: 0.01319088138 | AE44: 2097.69 | AF44: -0.03655920892 | AL44: 0.01292786321 | AM44: 0.0155
A45: =2016 -> 2016 | N45: 135901.91 | AL45: 0.01290087348 | AM45: 0.016
A46: =A45+1 -> 2017 | N46: 139929.52 | AL46: 0.01315634683 | AM46: 0.0158
A47: =A46+1 -> 2018 | N47: 144005.76 | AL47: 0.003461196435 | AM47: 0.0158
A48: =A47+1 -> 2019 | N48: 148310.34 | AL48: 0.02254736732 | AM48: 0.015
A49: =A48+1 -> 2020 | N49: 152774.48 | AL49: 0.01373571198 | AM49: 0.014

Sheet Resultados_aux (hidden)
D1: Supuestos a introducir:
D4: Número Total de Asalariados (miles) | E4: Remuneración por Asalariado | F4: Base Máxima de Cotización | G4: Cambios normativos permanentes | H4: Nuevos ingresos corrientes permanentes | I4: Número de pensiones | J4: Tasa de sustitución | K4: PIB real | L4: PAFT nominal | M4: Deflactor | N4: Total ingresos | O4: Tipo implícito (sobre la base de cotización)
D5: A | E5: B | F5: C | G5: E | H5: F | I5: G | J5: H
D6: T. anual | E6: T. anual | F6: T. anual | G6: % Ing. Totales | H6: % Ing. Totales | I6: T. anual | J6: T. anual | K6: T. anual | L6: T. anual | M6: T. anual | N6: T. anual | O6: %
C7: =C8-1 -> 2001 | D7: =100*Input!AT5 -> 4.613023106 | E7: =100*Input!AV5 -> 2.545879021 | F7: =100*Input!AX5 -> 2.000922122 | K7: =100*Input!AZ5 -> 3.669432874 | L7: =Input!BH5*100 -> 4.874467056 | M7: =Input!BD5*100 -> 4.574745075 | N7: =Input!AC5*100 -> 8.943297101 | O7: =Input!BI5 -> 0.1954921651
C8: 2002 | D8: =100*Input!AT6 -> 4.038921924 | E8: =100*Input!AV6 -> 2.128775081 | F8: =100*Input!AX6 -> 2.999707989 | K8: =100*Input!AZ6 -> 2.710180939 | L8: =Input!BH6*100 -> 4.773428376 | M8: =Input!BD6*100 -> 4.403186932 | N8: =Input!AC6*100 -> 6.543675108 | O8: =Input!BI6 -> 0.1955546381 | R8: Saldo 2015 | S8: Saldo 2016-2020 promedio anual
C9: 2003 | D9: =100*Input!AT7 -> 4.861935867 | E9: =100*Input!AV7 -> 1.623966803 | F9: =100*Input!AX7 -> 2.99429104 | K9: =100*Input!AZ7 -> 3.089442895 | L9: =Input!BH7*100 -> 4.643922472 | M9: =Input!BD7*100 -> 4.141955446 | N9: =Input!AC7*100 -> 8.363950882 | O9: =Input!BI7 -> 0.1970264369
C10: 2004 | D10: =100*Input!AT8 -> 4.204714377 | E10: =100*Input!AV8 -> 1.735336753 | F10: =100*Input!AX8 -> 2.997737557 | K10: =100*Input!AZ8 -> 3.259301482 | L10: =Input!BH8*100 -> 4.359491895 | M10: =Input!BD8*100 -> 3.952897575 | N10: =Input!AC8*100 -> 7.649369631 | O10: =Input!BI8 -> 0.1982668193
C11: 2005 | D11: =100*Input!AT9 -> 5.305346104 | E11: =100*Input!AV9 -> 2.058189576 | F11: =100*Input!AX9 -> 2.998352554 | K11: =100*Input!AZ9 -> 3.583646937 | L11: =Input!BH9*100 -> 4.558711128 | M11: =Input!BD9*100 -> 4.443331773 | N11: =Input!AC9*100 -> 8.149192208 | O11: =Input!BI9 -> 0.1978235254 | Q11: mill EUR | R11: =Iterativo_C!AL13 -> -6507.658946 | S11: =AVERAGE(Iterativo_C!AL14:AL18) -> 
C12: 2006 | D12: =100*Input!AT10 -> 4.554251064 | E12: =100*Input!AV10 -> 3.187445675 | F12: =100*Input!AX10 -> 2.996374493 | K12: =100*Input!AZ10 -> 4.076220343 | L12: =Input!BH10*100 -> 4.839824295 | M12: =Input!BD10*100 -> 4.242157935 | N12: =Input!AC10*100 -> 9.062856082 | O12: =Input!BI10 -> 0.1981184325 | Q12: % PIB | R12: =Iterativo_C!AP13 -> -0.005948609253 | S12: =AVERAGE(Iterativo_C!AP14:AP18) -> 
C13: 2007 | D13: =100*Input!AT11 -> 3.405725568 | E13: =100*Input!AV11 -> 4.598624541 | F13: =100*Input!AX11 -> 3.395796666 | K13: =100*Input!AZ11 -> 3.479183056 | L13: =Input!BH11*100 -> 4.249622257 | M13: =Input!BD11*100 -> 3.746499352 | N13: =Input!AC11*100 -> 8.706038459 | O13: =Input!BI11 -> 0.197397419
C14: 2008 | D14: =100*Input!AT12 -> -0.4713603819 | E14: =100*Input!AV12 -> 7.148940005 | F14: =100*Input!AX12 -> 2.6033844 | K14: =100*Input!AZ12 -> 0.8916984873 | L14: =Input!BH12*100 -> 3.461500867 | M14: =Input!BD12*100 -> 2.383631891 | N14: =Input!AC12*100 -> 5.488324461 | O14: =Input!BI12 -> 0.1928643199
C15: 2009 | D15: =100*Input!AT13 -> -5.994844434 | E15: =100*Input!AV13 -> 3.807953943 | F15: =100*Input!AX13 -> 2.995998829 | K15: =100*Input!AZ13 -> -3.8323625 | L15: =Input!BH13*100 -> 2.888693217 | M15: =Input!BD13*100 -> 0.5020662377 | N15: =Input!AC13*100 -> -1.073984301 | O15: =Input!BI13 -> 0.1937794048
C16: 2010 | D16: =100*Input!AT14 -> -2.129966201 | E16: =100*Input!AV14 -> 0.2611650573 | F16: =100*Input!AX14 -> 1.004358537 | I16: =Resultados!H16 -> 1.557515163 | J16: =Resultados!I16 -> 1.8 | K16: =100*Input!AZ14 -> -0.2012631328 | L16: =Input!BH14*100 -> 2.498726584 | M16: =Input!BD14*100 -> 0.3754003704 | N16: =Input!AC14*100 -> -0.6067229491 | O16: =Input!BI14 -> 0.1945130123
C17: 2011 | D17: =100*Input!AT15 -> -1.576855411 | E17: =100*Input!AV15 -> 0.8411249041 | F17: =100*Input!AX15 -> 1.003752345 | I17: =Resultados!H17 -> 1.398791229 | J17: =Resultados!I17 -> 1.8 | K17: =100*Input!AZ15 -> 0.05030264028 | L17: =Input!BH15*100 -> 1.69446875 | M17: =Input!BD15*100 -> -0.5837405765 | N17: =Input!AC15*100 -> 0.05696257763 | O17: =Input!BI15 -> 0.1976681495
C18: 2012 | D18: =100*Input!AT16 -> -5.713339954 | E18: =100*Input!AV16 -> 0.172765187 | F18: =100*Input!AX16 -> 1.003064921 | I18: =Resultados!H18 -> 1.543324163 | J18: =Resultados!I18 -> 1.7 | K18: =100*Input!AZ16 -> -1.641435305 | L18: =Input!BH16*100 -> 2.92208177 | M18: =Input!BD16*100 -> -0.2177523222 | N18: =Input!AC16*100 -> -2.478904385 | O18: =Input!BI16 -> 0.2008091046
C19: 2013 | D19: =100*Input!AT17 -> -3.76351636 | E19: =100*Input!AV17 -> 0.2872237301 | F19: =100*Input!AX17 -> 5.011494253 | I19: =Resultados!H19 -> 1.623682472 | J19: =Resultados!I19 -> 1.7 | K19: =100*Input!AZ17 -> -1.222687896 | L19: =Input!BH17*100 -> 2.839803879 | M19: =Input!BD17*100 -> 0.6562324455 | N19: =Input!AC17*100 -> 0.5747199338 | O19: =Input!BI17 -> 0.1995049465
C20: =C19+1 -> 2014 | D20: =Resultados!C20 -> 0.7 | E20: =Resultados!D20 -> 0.8 | F20: =Resultados!E20 -> 5 | G20: =Resultados!F20 -> 0 | H20: =Resultados!G20 -> 0 | I20: =Resultados!H20 -> 1.271118169 | J20: =Resultados!I20 -> 1.715 | K20: =100*Input!AZ18 -> 1.147999983 | L20: =+K20-D20 -> 0.4479999825 | M20: =Input!BD18*100 -> 0.2785720132 | N20: =Input!AC18*100 -> 3.098130116 | O20: =Input!BI18 -> 0.2049747932
C21: 2015 | D21: =Resultados!C21 -> 1.4 | E21: =Resultados!D21 -> 1 | F21: =Resultados!E21 -> 0.25 | G21: =Resultados!F21 -> 5.5 | H21: =Resultados!G21 -> 0 | I21: =Resultados!H21 -> 1.292786321 | J21: =Resultados!I21 -> 1.55 | K21: 1 | L21: 1 | M21: 1 | N21: =Input!AC19*100 -> 6.938718176 | O21: =Input!BI19 -> 0.2168537
C22: 2016 | D22: =IF(ISNUMBER(Resultados!C$22),Resultados!C$22,"ND") -> ND | E22: =IF(ISNUMBER(Resultados!D$22),Resultados!D$22,"ND") -> ND | F22: =IF(ISNUMBER(Resultados!E$22),Resultados!E$22,"ND") -> ND | G22: =IF(ISNUMBER(Resultados!F$22),Resultados!F$22,"ND") -> ND | H22: =IF(ISNUMBER(Resultados!G$22),Resultados!G$22,"ND") -> ND | I22: =IF(ISNUMBER(Resultados!H$22),Resultados!H$22,"ND") -> ND | J22: =IF(ISNUMBER(Resultados!I$22),Resultados!I$22,"ND") -> ND | K22: =100*Input!AZ20 -> 1.943067978 | L22: =+K22-D22 ->  | M22: =Input!BD20*100 -> 1.163643099 | N22: =Input!AC20*100 ->  | O22: =Input!BI20 -> 
C23: 2017 | D23: =IF(ISNUMBER(Resultados!C$22),Resultados!C$22,"ND") -> ND | E23: =IF(ISNUMBER(Resultados!D$22),Resultados!D$22,"ND") -> ND | F23: =IF(ISNUMBER(Resultados!E$22),Resultados!E$22,"ND") -> ND | G23: =IF(ISNUMBER(Resultados!F$22),Resultados!F$22,"ND") -> ND | H23: =IF(ISNUMBER(Resultados!G$22),Resultados!G$22,"ND") -> ND | I23: =IF(ISNUMBER(Resultados!H$22),Resultados!H$22,"ND") -> ND | J23: =IF(ISNUMBER(Resultados!I$22),Resultados!I$22,"ND") -> ND | K23: =100*Input!AZ21 -> 2.346921755 | L23: =+K23-D23 ->  | M23: =Input!BD21*100 -> 1.58182155 | N23: =Input!AC21*100 ->  | O23: =Input!BI21 -> 
C24: 2018 | D24: =IF(ISNUMBER(Resultados!C$22),Resultados!C$22,"ND") -> ND | E24: =IF(ISNUMBER(Resultados!D$22),Resultados!D$22,"ND") -> ND | F24: =IF(ISNUMBER(Resultados!E$22),Resultados!E$22,"ND") -> ND | G24: =IF(ISNUMBER(Resultados!F$22),Resultados!F$22,"ND") -> ND | H24: =IF(ISNUMBER(Resultados!G$22),Resultados!G$22,"ND") -> ND | I24: =IF(ISNUMBER(Resultados!H$22),Resultados!H$22,"ND") -> ND | J24: =IF(ISNUMBER(Resultados!I$22),Resultados!I$22,"ND") -> ND | K24: =100*Input!AZ22 -> 2.336209389 | L24: =+K24-D24 ->  | M24: =Input!BD22*100 -> 2 | N24: =Input!AC22*100 ->  | O24: =Input!BI22 -> 
C25: 2019 | D25: =IF(ISNUMBER(Resultados!C$22),Resultados!C$22,"ND") -> ND | E25: =IF(ISNUMBER(Resultados!D$22),Resultados!D$22,"ND") -> ND | F25: =IF(ISNUMBER(Resultados!E$22),Resultados!E$22,"ND") -> ND | G25: =IF(ISNUMBER(Resultados!F$22),Resultados!F$22,"ND") -> ND | H25: =IF(ISNUMBER(Resultados!G$22),Resultados!G$22,"ND") -> ND | I25: =IF(ISNUMBER(Resultados!H$22),Resultados!H$22,"ND") -> ND | J25: =IF(ISNUMBER(Resultados!I$22),Resultados!I$22,"ND") -> ND | K25: =100*Input!AZ23 -> 1.323935223 | L25: =+K25-D25 ->  | M25: =Input!BD23*100 -> 2 | N25: =Input!AC23*100 ->  | O25: =Input!BI23 -> 
C26: 2020 | D26: =IF(ISNUMBER(Resultados!C$22),Resultados!C$22,"ND") -> ND | E26: =IF(ISNUMBER(Resultados!D$22),Resultados!D$22,"ND") -> ND | F26: =IF(ISNUMBER(Resultados!E$22),Resultados!E$22,"ND") -> ND | G26: =IF(ISNUMBER(Resultados!F$22),Resultados!F$22,"ND") -> ND | H26: =IF(ISNUMBER(Resultados!G$22),Resultados!G$22,"ND") -> ND | I26: =IF(ISNUMBER(Resultados!H$22),Resultados!H$22,"ND") -> ND | J26: =IF(ISNUMBER(Resultados!I$22),Resultados!I$22,"ND") -> ND | K26: =100*Input!AZ24 -> 1.677985212 | L26: =+K26-D26 ->  | M26: =Input!BD24*100 -> 2 | N26: =Input!AC24*100 ->  | O26: =Input!BI24 -> 
